Departmental Family,Entity,Date,Expense Type,Expense Area,Supplier,Transaction Number,Amount
Department for Work and Pensions ,Corporate,29/05/2015,PRIME FACILITY PRICE,FG CD OPS & CMG ESTATES PRIME COSTS,TELEREAL TRILLIUM,2033698847,"35,252,670"
Department for Work and Pensions ,Corporate,27/05/2015,FAS - NON ASSET BACKED ASSISTANCE PAYMENTS,STR FAS ASSISTANCE PAYMENTS,PENSION PROTECTION FUND,1007193,"11,511,000"
Department for Work and Pensions ,Corporate,18/05/2015,HOSTING SERVICES,CIO ITLR HOSTING DEL P,HP ENTERPRISE SERVICES UK LTD,2033679358,"8,505,080"
Department for Work and Pensions ,Corporate,15/05/2015,MEDICAL SERVICES FIXED COSTS,FG HS HDAS TCIF CONTRACT,CENTRE FOR HEALTH & DISABILITY ASSESSMENTS LTD,2033677030,"7,508,724"
Department for Work and Pensions ,Corporate,12/05/2015,NETWORK SERVICES,CIO ITLR NETWORK,BT GLOBAL SERVICES,2033667140,"6,986,122"
Department for Work and Pensions ,Employment Programmes,06/05/2015,SERVICE FEE,WWEG EP REMPLOY,REMPLOY LTD,1007165,"6,949,781"
Department for Work and Pensions ,Corporate,29/05/2015,PRIME BUSINESS RATES,FG CD ESTATES RESIDUAL COSTS,TELEREAL TRILLIUM,2033698848,"6,514,771"
Department for Work and Pensions ,Corporate,19/05/2015,AMS SERVICES,CIO ITLR AMS,HP ENTERPRISE SERVICES UK LTD,2033682238,"4,763,336"
Department for Work and Pensions ,Corporate,15/05/2015,MEDICAL SERVICES FIXED COSTS,FG HS HDAS CONTRACT,CENTRE FOR HEALTH & DISABILITY ASSESSMENTS LTD,2033677030,"4,585,073"
Department for Work and Pensions ,Corporate,21/05/2015,POST OFFICE CARD ACCOUNT,FG FIN CONT COBAP POCA,POST OFFICE LTD,1007186,"4,509,297"
Department for Work and Pensions ,Corporate,19/05/2015,DESKTOP SERVICES,CIO ITLR DESKTOP,HP ENTERPRISE SERVICES UK LTD,2033682238,"4,087,566"
Department for Work and Pensions ,Employment Programmes,28/05/2015,CPS LP RECOVERIES,BALANCE SHEET,DWP MANUAL PAYMENTS,2005460,"4,045,999"
Department for Work and Pensions ,European Social Fund,05/05/2015,MA ESF(D) PROGRAMME EXPENDITURE EC PREFUNDED DWP,WWEG EUROPEAN SOCIAL FUND PROGRAMME 2007-2013,NORTH WEST DWP,5000001839,"3,295,611"
Department for Work and Pensions ,Corporate,19/05/2015,HOSTING SERVICES,CIO ITLR HOSTING DEL P,HP ENTERPRISE SERVICES UK LTD,2033682238,"3,218,152"
Department for Work and Pensions ,Corporate,13/05/2015,CONTRACTED OUT OFFICE SERVICES,FG CD CENTRAL CONTRACTS,COFELY WORKPLACE LTD,2033672873,"3,190,995"
Department for Work and Pensions ,Corporate,22/05/2015,NEST Loan - in year additions,CHG ERSP DEL P,NEST CORPORATION,2005453,"2,900,000"
Department for Work and Pensions ,Child Maintenance and Enforcement Commission,05/05/2015,CONTRACTED OUT OFFICE SERVICES,EXTERNAL CONTRACTS VERTEX,SERCO PUBLIC SERVICES LTD,1000234890,"2,626,796"
Department for Work and Pensions ,Corporate,29/05/2015,AR PRIME RECOVERIES,BALANCE SHEET,TELEREAL TRILLIUM,2033698847,"2,585,326"
Department for Work and Pensions ,Corporate,07/05/2015,MEDICAL SERVICES - PERFORMANCE PAYMENTS,FG HS PIP LOT 1,ATOS IT SERVICES UK LTD,2033663008,"2,573,421"
Department for Work and Pensions ,Child Maintenance and Enforcement Commission,27/05/2015,BELFAST BENEFIT CENTRE (RUN COSTS),CSA CD CENT HELD NORTHERN IRELAND PAYMENTS,DSD GROUP ACCOUNT,1002078,"2,475,458"
Department for Work and Pensions ,Corporate,19/05/2015,PROFESSIONAL ADVICE & OPINION VAT RECOVERABLE,STR LEGAL SERVICES,GOVERNMENT LEGAL DEPARTMENT,2005443,"2,467,500"
Department for Work and Pensions ,Corporate,20/05/2015,SOFTWARE LICENCES,CIO ITLR SOFTWARE P,SAS SOFTWARE LTD,2033683510,"2,422,653"
Department for Work and Pensions ,European Social Fund,05/05/2015,MA ESF(D) PROGRAMME EXPENDITURE EC PREFUNDED OGDS,WWEG EUROPEAN SOCIAL FUND PROGRAMME 2007-2013,SOUTH EAST SKILLS FUNDING AGENCY,5000001835,"2,394,608"
Department for Work and Pensions ,Corporate,08/05/2015,SOFTWARE LICENCES GREATER THAN ONE YEAR TERM,CIO ITLR SOFTWARE P,IBM UNITED KINGDOM LTD,2033666062,"1,919,576"
Department for Work and Pensions ,Corporate,19/05/2015,NON PRIME PROPERTY COSTS,FG CD BENTON PARK VIEW,HM REVENUE & CUSTOMS,2033679987,"1,814,880"
Department for Work and Pensions ,Corporate,19/05/2015,NON PRIME PROPERTY COSTS,FG CD OPS & CMG ESTATES NON-PRIME COSTS,HM REVENUE & CUSTOMS,2033680134,"1,680,613"
Department for Work and Pensions ,Corporate,19/05/2015,SIAM FIXED PRICE CONTRACTS,CIO ITLR SIAM,HP ENTERPRISE SERVICES UK LTD,2033682238,"1,663,819"
Department for Work and Pensions ,Corporate,28/05/2015,NON PRIME UTILITIES,FG CD DWP GAS & ELECTRICITY PAYMENTS / RECHARGES,EDF ENERGY 1 LTD SCC UTILITIES ONLY,2033695953,"1,631,446"
Department for Work and Pensions ,Corporate,21/05/2015,AMS SERVICES,CIO ITLR AMS - IBM,IBM UNITED KINGDOM LTD,2033684832,"1,625,387"
Department for Work and Pensions ,Corporate,27/05/2015,BELFAST BENEFIT CENTRE (RUN COSTS),OPS BEN BD LN BELFAST,DEPARTMENT FOR SOCIAL DEVELOPMENT,1007192,"1,588,726"
Department for Work and Pensions ,European Social Fund,05/05/2015,MA ESF(D) PROGRAMME EXPENDITURE EC PREFUNDED DWP,WWEG EUROPEAN SOCIAL FUND PROGRAMME 2007-2013,SOUTH EAST DWP,5000001840,"1,587,178"
Department for Work and Pensions ,Corporate,29/05/2015,CONTRACTED OUT HR SERVICES,HR SHARED SERVICES,SHARED SERVICES CONNECTED LTD,2033699303,"1,586,577"
Department for Work and Pensions ,Corporate,12/05/2015,POSTAGE,FG CD ACC POSTAGE,UK MAIL,2033666998,"1,447,576"
Department for Work and Pensions ,Corporate,08/05/2015,SOFTWARE LICENCES,CIO ITLR SOFTWARE P,IBM UNITED KINGDOM LTD,2033666062,"1,434,431"
Department for Work and Pensions ,European Social Fund,08/05/2015,MA ESF(D) PROGRAMME EXPENDITURE EC PREFUNDED DWP,WWEG EUROPEAN SOCIAL FUND PROGRAMME 2007-2013,LONDON DWP,5000001842,"1,402,092"
Department for Work and Pensions ,Corporate,19/05/2015,NON PRIME PROPERTY COSTS,FG CD DURHAM HOUSE,HM REVENUE & CUSTOMS,2033680135,"1,362,383"
Department for Work and Pensions ,Corporate,20/05/2015,NON PRIME UTILITIES,FG CD DWP GAS & ELECTRICITY PAYMENTS / RECHARGES,EDF ENERGY 1 LTD SCC UTILITIES ONLY,2033683916,"1,360,651"
Department for Work and Pensions ,Child Maintenance and Enforcement Commission,08/05/2015,NON-TREDDS IS IT SERVICES (AMS),CMG PORTFOLIO - RELEASE 25 TCS,TATA CONSULTANCY SERVICES LTD,1000235253,"1,359,000"
Department for Work and Pensions ,Corporate,13/05/2015,RENEWALS OF SOFTWARE SUPPORT AND MAINTENANCE,CHG UC PATHFINDER RECURRENT COSTS,SPECIALIST COMPUTER CENTRES PLC,2033672938,"1,306,378"
Department for Work and Pensions ,Corporate,29/05/2015,PRIME FACILITY PRICE,FG CD CAXTON,TELEREAL TRILLIUM,2033698847,"1,297,116"
Department for Work and Pensions ,Corporate,29/05/2015,CONTRACTED OUT ACCOUNTING SERVICES,FG FIN CONT SHARED SERVICES CORE COSTS,SHARED SERVICES CONNECTED LTD,2033699303,"1,266,598"
Department for Work and Pensions ,Corporate,29/05/2015,NON-TREDDS IS IT APPS DEV MANDAY,CHG UC PATHFINDER DELIVERY MANAGEMENT,ACCENTURE UK LTD,2033697805,"1,188,600"
Department for Work and Pensions ,Corporate,15/05/2015,MEDICAL SERVICES FIXED COSTS,CHG FIT FOR WORK,HEALTH MANAGEMENT LTD,2033677772,"1,166,667"
Department for Work and Pensions ,Corporate,05/05/2015,MEDICAL SERVICES FIXED COSTS,FG HS MEDICAL SERVICES CONTRACT DEL P,ATOS HEALTHCARE,2033659828,"1,112,290"
Department for Work and Pensions ,Corporate,14/05/2015,COURIER COSTS,FG CD CENTRAL CONTRACTS,TNT UK LTD,2033675809,"1,108,580"
Department for Work and Pensions ,Corporate,05/05/2015,NON-TREDDS IS IT SERVICES (AMS),CIO ITLR AMS - ACCENTURE,ACCENTURE UK LTD,2033659859,"1,047,656"
Department for Work and Pensions ,Corporate,19/05/2015,NON-TREDDS IS IT APPS DEV MANDAY,CHG UC PATHFINDER DELIVERY MANAGEMENT,IBM UNITED KINGDOM LTD,2033681381,"970,661"
Department for Work and Pensions ,Corporate,19/05/2015,TREDDS IS IT CONSULTANCY (HOSTING) NON ADVICE,CHG UC PATHFINDER DELIVERY MANAGEMENT,HP ENTERPRISE SERVICES UK LTD,2033682238,"951,593"
Department for Work and Pensions ,Corporate,14/05/2015,CONTRACTED OUT OFFICE SERVICES,OPS NET CC CAPITA,CAPITA,2033675406,"894,713"
Department for Work and Pensions ,Corporate,15/05/2015,PRIME VARIABLE CHARGE,FG CD OPS & CMG ESTATES PRIME COSTS,TELEREAL TRILLIUM,2033676633,"881,530"
Department for Work and Pensions ,Corporate,12/05/2015,NON-TREDDS IS IT SERVICES (HOSTING),FG HS HDAS NEW PROCUREMENT,ATOS ORIGIN IT SERVICES UK LTD,2033670630,"833,333"
Department for Work and Pensions ,Corporate,29/05/2015,NON-TREDDS IS IT SERVICES (HOSTING),FG HS HDAS NEW PROCUREMENT,ATOS ORIGIN IT SERVICES UK LTD,2033697769,"833,333"
Department for Work and Pensions ,Corporate,18/05/2015,PRIME UNAVOIDABLE COSTS (UAC),CHG ESTATES RATIONALISATION FORMER JCP OPS,TELEREAL TRILLIUM,2033678446,"774,624"
Department for Work and Pensions ,European Social Fund,19/05/2015,MA ESF(D) PROGRAMME EXPENDITURE EC PREFUNDED DWP,WWEG EUROPEAN SOCIAL FUND PROGRAMME 2007-2013,SOUTH WEST DWP,5000001846,"744,658"
Department for Work and Pensions ,Corporate,05/05/2015,MEDICAL OPINIONS INCAPACITY BENEFIT,FG HS MEDICAL SERVICES CONTRACT DEL P,ATOS HEALTHCARE,2033659828,"733,202"
Department for Work and Pensions ,Corporate,05/05/2015,HOSTING SERVICES,CIO ITLR HOSTING DEL P,HP ENTERPRISE SERVICES UK LTD,2033660443,"712,520"
Department for Work and Pensions ,Corporate,28/05/2015,RENEWALS OF SOFTWARE SUPPORT AND MAINTENANCE,CIO ITLR SOFTWARE P,SPECIALIST COMPUTER CENTRES PLC,2033694976,"699,171"
Department for Work and Pensions ,Corporate,20/05/2015,VAT CLEARING,BALANCE SHEET,CMG,2005444,"691,074"
Department for Work and Pensions ,Corporate,13/05/2015,PIP FACE TO FACE ASSESSMENTS,FG HS PIP LOT 2,CAPITA BUSINESS SERVICES LTD,2033672765,"688,204"
Department for Work and Pensions ,Corporate,14/05/2015,CONNECTIVITY,CIO ITLR PSN CONNECTIVITY,BT GLOBAL SERVICES,2033674851,"685,346"
Department for Work and Pensions ,Corporate,22/05/2015,REMOTE STORAGE COSTS VAT RECOV,FG CD CENTRAL CONTRACTS,CAPITA BUSINESS SERVICES LTD,2033687023,"674,967"
Department for Work and Pensions ,Corporate,07/05/2015,REMOTE STORAGE COSTS VAT RECOV,FG CD CENTRAL CONTRACTS,CAPITA BUSINESS SERVICES LTD,2033663233,"670,314"
Department for Work and Pensions ,Corporate,12/05/2015,CONNECTIVITY,CIO ITLR PSN CONNECTIVITY,BT GLOBAL SERVICES,2033667140,"666,581"
Department for Work and Pensions ,Employment Programmes,05/05/2015,PERFORMANCE FEE,WWEP EP FG CEP SJ BLACK COUNTRY AND MERCIA,LEARNDIRECT LTD,2033660471,"637,874"
Department for Work and Pensions ,Corporate,08/05/2015,RENEWALS OF SOFTWARE SUPPORT AND MAINTENANCE,CIO ITLR SOFTWARE P,IBM UNITED KINGDOM LTD,2033666062,"607,744"
Department for Work and Pensions ,Corporate,13/05/2015,CONTRACTED OUT OFFICE SERVICES,FG CD OFFICE SERVICES,COFELY WORKPLACE LTD,2033672873,"547,812"
Department for Work and Pensions ,Corporate,06/05/2015,POSTAGE,FG CD ACC POSTAGE,ROYAL MAIL GROUP PLC,2033662275,"547,394"
Department for Work and Pensions ,European Social Fund,05/05/2015,MA ESF(D) PROGRAMME EXPENDITURE EC PREFUNDED DWP,WWEG EUROPEAN SOCIAL FUND PROGRAMME 2007-2013,SOUTH WEST DWP,5000001838,"545,162"
Department for Work and Pensions ,Corporate,28/05/2015,NON-TREDDS IS IT SERVICES (AMS),CIO ITLR AMS - TATA CONSULTING,TATA CONSULTANCY SERVICES LTD,2033695119,"531,606"
Department for Work and Pensions ,Corporate,29/05/2015,AR PRIME RECOVERIES,BALANCE SHEET,TELEREAL TRILLIUM,2033698848,"528,722"
Department for Work and Pensions ,Housing Benefits,14/05/2015,HOUSING BENEFIT ADMINISTRATION,HB ENGLAND,BIRMINGHAM CITY COUNCIL,2033673814,"526,694"
Department for Work and Pensions ,Corporate,19/05/2015,NON PRIME UTILITIES,FG CD DWP GAS & ELECTRICITY PAYMENTS / RECHARGES,CORONA ENERGY RETAIL 4 LTD SCC UTILITIES ONLY,2033680455,"525,010"
Department for Work and Pensions ,European Social Fund,11/05/2015,MA ESF(D) PROGRAMME EXPENDITURE EC PREFUNDED DWP,WWEG EUROPEAN SOCIAL FUND PROGRAMME 2007-2013,LONDON DWP,5000001843,"520,027"
Department for Work and Pensions ,Corporate,29/05/2015,PRIME FACILITY PRICE,FG CD LEEDS QUARRY HOUSE,TELEREAL TRILLIUM,2033698847,"507,549"
Department for Work and Pensions ,Corporate,19/05/2015,TREDDS APPS DEV MANDAYS,CHG PIP IT PHASE 4,HP ENTERPRISE SERVICES UK LTD,2033682238,"490,339"
Department for Work and Pensions ,Corporate,29/05/2015,NON-TREDDS IS IT SERVICES (HOSTING),CIO ITLR HOSTING DEL P,HMRC,2033697458,"477,159"
Department for Work and Pensions ,Corporate,20/05/2015,VAT CLEARING,BALANCE SHEET,CMG,2005445,"470,691"
Department for Work and Pensions ,Corporate,05/05/2015,MEDICAL OPINIONS OTHER,CHG FIT FOR WORK,HEALTH MANAGEMENT LTD,2033660476,"460,835"
Department for Work and Pensions ,Corporate,01/05/2015,"CREDIT UNION SHSVCS, ADMIN & PRODUCTS",CHG CREDIT UNION EXPANSION AND DEVELOPMENT DELP,THE ASSOCIATION OF BRITISH CREDIT UNIONS LTD,2033658190,"458,898"
Department for Work and Pensions ,Corporate,13/05/2015,PROFESSIONAL SERVICES NON VAT RECOVERABLE,STR LEGAL SERVICES,GOVERNMENT LEGAL DEPARTMENT,2033671774,"451,193"
Department for Work and Pensions ,Corporate,29/05/2015,PRIME UTILITIES,FG CD OPS & CMG ESTATES PRIME COSTS,TELEREAL TRILLIUM,2033698849,"448,436"
Department for Work and Pensions ,Corporate,28/05/2015,CONTRACTORS & STAFF SUBSTITUTIONS,CHG UC DESIGN & BUILD PROGRAMME MANAGER,CAPITA BUSINESS SERVICES LTD,2033694736,"433,380"
Department for Work and Pensions ,Housing Benefits,14/05/2015,HOUSING BENEFIT ADMINISTRATION,HB SCOTLAND,CITY OF GLASGOW,2033673874,"409,974"
Department for Work and Pensions ,Corporate,27/05/2015,CONTRACTED OUT DOCUMENT SCANNING,CHG SCANNING & DIGITAL STORAGE - AGILITY,XEROX UK LTD 3W,2033694367,"405,338"
Department for Work and Pensions ,Corporate,13/05/2015,NON PRIME PROPERTY COSTS,FG CD OPS & CMG ESTATES NON-PRIME COSTS,CROWN OFFICE,2033673019,"396,379"
Department for Work and Pensions ,Corporate,14/05/2015,NETWORK SERVICES,CIO ITLR NETWORK,BT GLOBAL SERVICES,2033674851,"377,375"
Department for Work and Pensions ,Corporate,12/05/2015,MANAGED SERVICE UNIVERSAL JOBMATCH,CHG BTG - UNIVERSAL JOBMATCH,MONSTER GOVERNMENT SOLUTIONS,2033668450,"370,832"
Department for Work and Pensions ,Child Maintenance and Enforcement Commission,26/05/2015,CONTRACTED OUT OFFICE SERVICES,OPTIONS,G4S CUSTOMER SUPPORT SERVICES,1000236503,"369,872"
Department for Work and Pensions ,Corporate,11/05/2015,SIMPLE PAYMENT SERVICE,FG FIN CONT COBAP CHEQUES,CITIBANK GLOBAL CORPORATE BANKING,2033666594,"366,879"
Department for Work and Pensions ,Employment Programmes,13/05/2015,INNOVATION FUND,WWEG EP NATIONAL,TRIODOS NEW HORIZONS LTD,2033670715,"364,200"
Department for Work and Pensions ,Corporate,27/05/2015,SIMPLE PAYMENT SERVICE,FG FIN CONT COBAP CHEQUES,CITIBANK GLOBAL CORPORATE BANKING,1007190,"362,702"
Department for Work and Pensions ,Corporate,29/05/2015,NON-TREDDS IS IT APPS DEV MANDAY,CHG STATE PENSION REFORM SINGLE TIER,ACCENTURE UK LTD,2033697805,"362,274"
Department for Work and Pensions ,Child Maintenance and Enforcement Commission,05/05/2015,CONTRACTED OUT OFFICE SERVICES,OPTIONS,G4S CUSTOMER SUPPORT SERVICES,1000234895,"355,900"
Department for Work and Pensions ,Corporate,21/05/2015,NETWORK SERVICES,CIO ITLR NETWORK,BT GLOBAL SERVICES,2033686839,"354,525"
Department for Work and Pensions ,Corporate,01/05/2015,CONSULTANTS VAT RECOVERABLE,FG HS MEDICAL SERVICES CONTRACT EXIT COSTS,ERNST & YOUNG LLP,2033658996,"344,254"
Department for Work and Pensions ,Housing Benefits,14/05/2015,HOUSING BENEFIT ADMINISTRATION,HB ENGLAND,MANCHESTER CITY COUNCIL,2033673889,"341,688"
Department for Work and Pensions ,Housing Benefits,14/05/2015,HOUSING BENEFIT ADMINISTRATION,HB ENGLAND,LIVERPOOL CITY COUNCIL,2033673908,"337,531"
Department for Work and Pensions ,Employment Programmes,29/05/2015,SERVICE FEE,WWEG EP WORK CHOICE S WEST WALES S WALES VALLEYS,SHAW TRUST,2033698499,"336,399"
Department for Work and Pensions ,Corporate,11/05/2015,MEDICAL SERVICES VAT NON-RECOVERABLE,FG HS MEDICAL SERVICES CONTRACT DEL P,PERTEMPS PEOPLE DEVELOPMENT GROUP,2033666280,"335,572"
Department for Work and Pensions ,Corporate,29/05/2015,PRIME FACILITY PRICE,FG CD PEEL PARK,TELEREAL TRILLIUM,2033698847,"334,403"
Department for Work and Pensions ,Corporate,29/05/2015,PRIME FACILITY PRICE,FG CD MANCHESTER HEYWOOD STORES,TELEREAL TRILLIUM,2033698847,"321,862"
Department for Work and Pensions ,Corporate,18/05/2015,TREDDS APPS DEV MANDAYS,CHG UC PATHFINDER DELIVERY MANAGEMENT,HP ENTERPRISE SERVICES UK LTD,2033679358,"320,135"
Department for Work and Pensions ,Housing Benefits,14/05/2015,HOUSING BENEFIT ADMINISTRATION,HB ENGLAND,LEEDS CITY COUNCIL,2033674024,"312,569"
Department for Work and Pensions ,Employment Programmes,06/05/2015,INNOVATION FUND,WWEG EP NATIONAL,T & T INNOVATION LTD,2033661397,"290,834"
Department for Work and Pensions ,Corporate,06/05/2015,NON-TREDDS IS IT SERVICES (AMS),OPS PEN PS TUO ISIT,ATOS ORIGIN IT SERVICES UK LTD,2033661150,"283,144"
Department for Work and Pensions ,Employment Programmes,29/05/2015,SERVICE FEE,WWEG EP WORK CHOICE DEVON AND CORNWALL,THE PLUSS ORGANISATION,2033697817,"280,472"
Department for Work and Pensions ,Employment Programmes,29/05/2015,SERVICE FEE,WWEG EP WORK CHOICE SURREY AND SUSSEX KENT,WORKING LINKS,2033697390,"279,703"
Department for Work and Pensions ,Corporate,06/05/2015,NON-TREDDS APPS DEV FIXED PRICE CONTRACTS,OPS PEN PS TUO ISIT,ATOS ORIGIN IT SERVICES UK LTD,2033661150,"278,975"
Department for Work and Pensions ,Employment Programmes,29/05/2015,SERVICE FEE,WWEG EP WORK CHOICE DERBYSHIRE SOUTH YORKSHIRE,SHAW TRUST,2033698499,"278,786"
Department for Work and Pensions ,Corporate,14/05/2015,CONTRACTED OUT OFFICE SERVICES,OPS NET CC CAPITA,CAPITA BUSINESS SERVICES LTD,2033674910,"278,369"
Department for Work and Pensions ,Corporate,08/05/2015,CONTRACTED OUT OFFICE SERVICES,OPS NET CC CAPITA,CAPITA BUSINESS SERVICES LTD,2033665903,"277,942"
Department for Work and Pensions ,Corporate,26/05/2015,PRINTING/BINDING,FG CD CORPORATE CHARGES,XEROX UK LTD 3W,2033689891,"277,000"
Department for Work and Pensions ,Corporate,19/05/2015,NON-TREDDS IS IT APPS DEV MANDAY,CHG PIP IT ASSESSMENT TOOL,IBM UNITED KINGDOM LTD,2033681381,"276,560"
Department for Work and Pensions ,Corporate,01/05/2015,CREDIT UNION IT,CHG CREDIT UNION EXPANSION AND DEVELOPMENT DELP,THE ASSOCIATION OF BRITISH CREDIT UNIONS LTD,2033658190,"275,000"
Department for Work and Pensions ,Corporate,12/05/2015,CONTRACTORS & STAFF SUBSTITUTIONS,CHG UC DESIGN & BUILD PROGRAMME MANAGER,CAPITA BUSINESS SERVICES LTD,2033668219,"273,656"
Department for Work and Pensions ,Employment Programmes,29/05/2015,SERVICE FEE,WWEG EP WORK CHOICE W LON C LON BARNET ENFIELD HARINGEY,SEETEC BUSINESS TECHNOLOGY CENTRE LTD,2033698529,"269,611"
Department for Work and Pensions ,Corporate,26/05/2015,PROFESSIONAL SERVICES NON VAT RECOVERABLE,STR LEGAL SERVICES,GOVERNMENT LEGAL DEPARTMENT,2033689309,"269,236"
Department for Work and Pensions ,Child Maintenance and Enforcement Commission,19/05/2015,TREDDS APPS DEV MANDAYS,CMG PORTFOLIO - RELEASE 25 HPES,HP ENTERPRISE SERVICES UK LTD,1000236073,"263,708"
Department for Work and Pensions ,Corporate,29/05/2015,PUBLICITY ADVERTISING MEDIA,CHG ERSP COMMS,CARAT LTD,2033697057,"263,701"
Department for Work and Pensions ,Housing Benefits,14/05/2015,HOUSING BENEFIT ADMINISTRATION,HB ENGLAND,LONDON BOROUGH OF TOWER HAMLETS,2033674129,"254,827"
Department for Work and Pensions ,Corporate,12/05/2015,PROFESSIONAL SERVICES NON VAT RECOVERABLE,STR LMSD EU YEAR OF SOCIAL POVERTY,RELATE,2033669107,"252,618"
Department for Work and Pensions ,Corporate,28/05/2015,CONTRACTORS & STAFF SUBSTITUTIONS,CIO ADC DIRECTOR,CAPITA BUSINESS SERVICES LTD,2033694736,"252,049"
Department for Work and Pensions ,Corporate,21/05/2015,IT Owned Additions Cost,CHG UC DESIGN & BUILD PROGRAMME MANAGER,SPECIALIST COMPUTER CENTRES PLC,2033686169,"250,830"
Department for Work and Pensions ,Corporate,22/05/2015,ADEP AM SERVICES - VAT NON-RECOVERABLE,CHG NSP - SECURE DIGITAL CHANGE OF ADDRESS,KAINOS SOFTWARE LTD,2033687340,"249,785"
Department for Work and Pensions ,Corporate,06/05/2015,IT Owned Additions Cost,CHG UC DESIGN & BUILD PROGRAMME MANAGER,SPECIALIST COMPUTER CENTRES PLC,2033661183,"248,416"
Department for Work and Pensions ,Employment Programmes,19/05/2015,RESIDENTIAL TRAINING COSTS,WWEG EP DELIVERY WELFARE TO WORK PRODUCT SUPPORT,QUEEN ELIZABETH'S FOUNDATION,2033681994,"245,971"
Department for Work and Pensions ,Housing Benefits,14/05/2015,HOUSING BENEFIT ADMINISTRATION,HB ENGLAND,LONDON BOROUGH OF LEWISHAM,2033674016,"242,422"
Department for Work and Pensions ,Housing Benefits,14/05/2015,HOUSING BENEFIT ADMINISTRATION,HB ENGLAND,DURHAM COUNCIL,2033673929,"241,653"
Department for Work and Pensions ,Housing Benefits,14/05/2015,HOUSING BENEFIT ADMINISTRATION,HB ENGLAND,LONDON BOROUGH OF SOUTHWARK,2033673797,"237,699"
Department for Work and Pensions ,Corporate,05/05/2015,SOFTWARE LICENCES GREATER THAN ONE YEAR TERM,CHG UC DESIGN & BUILD PROGRAMME MANAGER,SPECIALIST COMPUTER CENTRES PLC,2033660461,"237,033"
Department for Work and Pensions ,Housing Benefits,14/05/2015,HOUSING BENEFIT ADMINISTRATION,HB ENGLAND,HACKNEY LBC,2033673813,"235,881"
Department for Work and Pensions ,Housing Benefits,14/05/2015,HOUSING BENEFIT ADMINISTRATION,HB ENGLAND,BRADFORD METROPOLITAN BOROUGH COUNCIL,2033674073,"235,204"
Department for Work and Pensions ,Housing Benefits,14/05/2015,HOUSING BENEFIT ADMINISTRATION,HB ENGLAND,LONDON BOROUGH OF LAMBETH,2033674094,"234,979"
Department for Work and Pensions ,Corporate,19/05/2015,BANK COMMISSION & CHARGES,FG FIN CONT COBAP BANKING,HSBC BANK PLC,2033680139,"234,017"
Department for Work and Pensions ,Housing Benefits,14/05/2015,HOUSING BENEFIT ADMINISTRATION,HB ENGLAND,SHEFFIELD CITY COUNCIL,2033674106,"230,451"
Department for Work and Pensions ,Employment Programmes,29/05/2015,SERVICE FEE,WWEG EP WORK CHOICE BEDFORDSHIRE AND HERTFORDSHIRE ESSEX,SHAW TRUST,2033698499,"225,747"
Department for Work and Pensions ,Employment Programmes,29/05/2015,SERVICE FEE,WWEG EP WORK CHOICE THE MARCHES COVENTRY AND WARKS,SHAW TRUST,2033698499,"221,541"
Department for Work and Pensions ,European Social Fund,05/05/2015,MA ESF(D) PROGRAMME EXPENDITURE EC PREFUNDED L A's,WWEG EUROPEAN SOCIAL FUND PROGRAMME 2007-2013,LOCAL AUTHORITIES IN THE EAST MIDLANDS,5000001834,"215,685"
Department for Work and Pensions ,Housing Benefits,14/05/2015,HOUSING BENEFIT ADMINISTRATION,HB ENGLAND,BRISTOL CITY COUNCIL,2033674126,"215,328"
Department for Work and Pensions ,Corporate,19/05/2015,TREDDS IS IT CONSULTANCY (HOSTING) NON ADVICE,CHG VME MIDDLEWARE-R,HP ENTERPRISE SERVICES UK LTD,2033682238,"215,083"
Department for Work and Pensions ,Employment Programmes,29/05/2015,SERVICE FEE,WWEG EP WORK CHOICE WEST YORKSHIRE,THE PLUSS ORGANISATION,2033697817,"211,371"
Department for Work and Pensions ,Employment Programmes,19/05/2015,RESIDENTIAL TRAINING COSTS,WWEG EP DELIVERY WELFARE TO WORK PRODUCT SUPPORT,ST LOYES COLLEGE FOUNDATION,2033681427,"210,059"
Department for Work and Pensions ,Corporate,28/05/2015,CONTRACTORS & STAFF SUBSTITUTIONS,CHG IT TRANSFORMATION PROG,CAPITA BUSINESS SERVICES LTD,2033694736,"205,334"
Department for Work and Pensions ,Corporate,06/05/2015,PROFESSIONAL SERVICES NON VAT RECOVERABLE,STR LMSD EU YEAR OF SOCIAL POVERTY,MARRIAGE CARE,2033661309,"204,557"
Department for Work and Pensions ,Employment Programmes,29/05/2015,SERVICE FEE,WWEG EP WORK CHOICE G MANCHESTER CENTRAL; G MANCHESTER E & W,SHAW TRUST,2033698499,"202,602"
Department for Work and Pensions ,Corporate,13/05/2015,TREDDS APPS DEV MANDAYS,CHG PIP IT PHASE 4,HP ENTERPRISE SERVICES UK LTD,2033672878,"200,907"
Department for Work and Pensions ,Employment Programmes,29/05/2015,SERVICE FEE,WWEG EP WORK CHOICE HIGH ISLDS AND CLYDE COAST AND GRAMP,MOMENTUM SCOTLAND,2033698502,"200,422"
Department for Work and Pensions ,Corporate,13/05/2015,CONTRACTED OUT OFFICE SERVICES,CHG MOSAIC RECURRENT,COFELY WORKPLACE LTD,2033672873,"200,381"
Department for Work and Pensions ,Employment Programmes,29/05/2015,SERVICE FEE,WWEG EP WORK CHOICE CAMBRIDGESHIRE AND SUFFOLK NORFOLK,SHAW TRUST,2033698499,"199,679"
Department for Work and Pensions ,Housing Benefits,14/05/2015,HOUSING BENEFIT ADMINISTRATION,HB ENGLAND,LONDON BOROUGH OF NEWHAM,2033673862,"198,553"
Department for Work and Pensions ,Employment Programmes,29/05/2015,SERVICE FEE,WWEG EP WORK CHOICE NORTH AND MID WALES SOUTH EAST WALES,WORKING LINKS,2033697390,"196,934"
Department for Work and Pensions ,European Social Fund,13/05/2015,MA ESF(D) PROGRAMME EXPENDITURE EC PREFUNDED L A's,WWEG EUROPEAN SOCIAL FUND PROGRAMME 2007-2013,BIRMINGHAM CITY COUNCIL,5000001844,"196,350"
Department for Work and Pensions ,Corporate,08/05/2015,NON-TREDDS IS IT SERVICES (AMS),CIO GG SERVICE DELIVERY,ATOS ORIGIN IT SERVICES UK LTD,2033665200,"196,347"
Department for Work and Pensions ,Housing Benefits,14/05/2015,HOUSING BENEFIT ADMINISTRATION,HB ENGLAND,LONDON BOROUGH OF HARINGEY,2033673861,"195,709"
Department for Work and Pensions ,Housing Benefits,14/05/2015,HOUSING BENEFIT ADMINISTRATION,HB ENGLAND,LONDON BOROUGH OF ISLINGTON,2033674010,"192,394"
Department for Work and Pensions ,Employment Programmes,19/05/2015,RESIDENTIAL TRAINING COSTS,WWEG EP DELIVERY WELFARE TO WORK PRODUCT SUPPORT,FINCHALE TRAINING COLLEGE,2033682088,"192,392"
Department for Work and Pensions ,Housing Benefits,14/05/2015,HOUSING BENEFIT ADMINISTRATION,HB ENGLAND,CORNWALL COUNCIL,2033673928,"192,389"
Department for Work and Pensions ,Housing Benefits,14/05/2015,HOUSING BENEFIT ADMINISTRATION,HB ENGLAND,LONDON BOROUGH OF BRENT,2033673860,"192,206"
Department for Work and Pensions ,Employment Programmes,29/05/2015,SERVICE FEE,WWEG EP WORK CHOICE GLASGOW LANARKS AND E DUNBART,SHAW TRUST,2033698499,"191,774"
Department for Work and Pensions ,Housing Benefits,14/05/2015,HOUSING BENEFIT ADMINISTRATION,HB ENGLAND,ASHFIELD DISTRICT COUNCIL,2033674068,"191,477"
Department for Work and Pensions ,European Social Fund,05/05/2015,MA ESF(D) PROGRAMME EXPENDITURE EC PREFUNDED THIRD PARTIES,WWEG EUROPEAN SOCIAL FUND PROGRAMME 2007-2013,CORNWALL COLLEGE,5000001836,"189,710"
Department for Work and Pensions ,Housing Benefits,14/05/2015,HOUSING BENEFIT ADMINISTRATION,HB ENGLAND,NOTTINGHAM CITY COUNCIL,2033673882,"187,341"
Department for Work and Pensions ,Housing Benefits,14/05/2015,HOUSING BENEFIT ADMINISTRATION,HB SCOTLAND,EDINBURGH DISTRICT COUNCIL,2033673873,"185,849"
Department for Work and Pensions ,Employment Programmes,29/05/2015,SERVICE FEE,WWEG EP WORK CHOICE HAMPSHIRE AND ISLE OF WIGHT,CDG WISE ABILITY LTD,2033697634,"185,598"
Department for Work and Pensions ,Corporate,05/05/2015,CONTRACTED OUT ORIGINAL RESEARCH,F&C IGS STAT SERVICES,NATIONAL CENTRE FOR SOCIAL RESEARCH,2033660381,"185,399"
Department for Work and Pensions ,Corporate,06/05/2015,CONTRACTORS & STAFF SUBSTITUTIONS,CHG UC DESIGN & BUILD PROGRAMME MANAGER,CAPITA BUSINESS SERVICES LTD,2033661197,"185,239"
Department for Work and Pensions ,Employment Programmes,29/05/2015,SERVICE FEE,WWEG EP WORK CHOICE NOTTINGHAMSHIRE LINCOLNSHIRE AND RUTLAND,SHAW TRUST,2033698499,"185,095"
Department for Work and Pensions ,Corporate,29/05/2015,NON-TREDDS IS IT APPS DEV MANDAY,CHG SCANNING & DIGITAL STORAGE,ACCENTURE UK LTD,2033697805,"180,217"
Department for Work and Pensions ,Housing Benefits,14/05/2015,HOUSING BENEFIT ADMINISTRATION,HB ENGLAND,LONDON BOROUGH OF GREENWICH,2033673835,"178,115"
Department for Work and Pensions ,Housing Benefits,14/05/2015,HOUSING BENEFIT ADMINISTRATION,HB ENGLAND,CROYDON PEO%,2033673769,"177,988"
Department for Work and Pensions ,Employment Programmes,29/05/2015,SERVICE FEE,WWEG EP WORK CHOICE S TYNE AND WEAR VALLEY NORTHUMBRIA,SHAW TRUST,2033698499,"172,506"
Department for Work and Pensions ,Employment Programmes,29/05/2015,SERVICE FEE,WWEG EP WORK CHOICE N E YORKS AND THE HUMBER TEES VALLEY,SHAW TRUST,2033698499,"171,161"
Department for Work and Pensions ,Employment Programmes,29/05/2015,SERVICE FEE,WWEG EP WORK CHOICE MERSEYSIDE CHESH HALTON & WARRINGTON,SHAW TRUST,2033698499,"169,727"
Department for Work and Pensions ,Housing Benefits,14/05/2015,HOUSING BENEFIT ADMINISTRATION,HB ENGLAND,LONDON BOROUGH OF WANDSWORTH,2033673994,"169,388"
Department for Work and Pensions ,Housing Benefits,14/05/2015,HOUSING BENEFIT ADMINISTRATION,HB ENGLAND,LEICESTER CITY COUNCIL,2033674065,"169,274"
Department for Work and Pensions ,Housing Benefits,14/05/2015,HOUSING BENEFIT ADMINISTRATION,HB ENGLAND,LONDON BOROUGH OF ENFIELD,2033673817,"168,947"
Department for Work and Pensions ,Housing Benefits,14/05/2015,HOUSING BENEFIT ADMINISTRATION,HB ENGLAND,SANDWELL BOROUGH COUNCIL,2033673921,"168,379"
Department for Work and Pensions ,Corporate,28/05/2015,COST VARIANCE ACCOUNT,CHG DEPARTMENTAL & BUSINESS STRATEGY,PA CONSULTING SERVICES LTD,2033696142,"168,377"
Department for Work and Pensions ,Housing Benefits,14/05/2015,HOUSING BENEFIT ADMINISTRATION,HB ENGLAND,KINGSTON UPON HULL CITY COUNCIL,2033674119,"168,215"
Department for Work and Pensions ,Housing Benefits,14/05/2015,HOUSING BENEFIT ADMINISTRATION,HB ENGLAND,LONDON BOROUGH OF EALING,2033673858,"167,835"
Department for Work and Pensions ,Housing Benefits,14/05/2015,HOUSING BENEFIT ADMINISTRATION,HB ENGLAND,LONDON BOROUGH OF BARNET,2033673816,"167,407"
Department for Work and Pensions ,Employment Programmes,29/05/2015,SERVICE FEE,WWEG EP WORK CHOICE BIRMINGHAM SOLIHULL BLACK COUNTRY,ADVANCE HOUSING & SUPPORT LTD,2033697555,"167,260"
Department for Work and Pensions ,Housing Benefits,14/05/2015,HOUSING BENEFIT ADMINISTRATION,HB ENGLAND,LONDON BOROUGH OF CAMDEN,2033674104,"167,241"
Department for Work and Pensions ,Employment Programmes,29/05/2015,SERVICE FEE,WWEG EP WORK CHOICE ED LOTH BORDS AYR DUM GALL INVER,SHAW TRUST,2033698499,"164,511"
Department for Work and Pensions ,Employment Programmes,29/05/2015,SERVICE FEE,WWEG EP WORK CHOICE W OF ENGLAND GLOS WILTS AND SWINDON,WORKING LINKS,2033697390,"164,373"
Department for Work and Pensions ,Housing Benefits,14/05/2015,HOUSING BENEFIT ADMINISTRATION,HB ENGLAND,KIRKLEES METROPOLITAN BOROUGH COUNCIL,2033674075,"163,495"
Department for Work and Pensions ,Employment Programmes,06/05/2015,INNOVATION FUND,WWEG EP NATIONAL,PREVISTA LTD,2033660937,"161,284"
Department for Work and Pensions ,Corporate,27/05/2015,CONTRACTED OUT OFFICE SERVICES,UCO DIRECTOR CENTRAL COSTS,CAPITA BUSINESS SERVICES LTD,2033690840,"159,641"
Department for Work and Pensions ,Employment Programmes,29/05/2015,SERVICE FEE,WWEG EP WORK CHOICE S LON LAMBETH SOUTHWARK WANDSWORTH,INGEUS UK LTD,2033697557,"159,345"
Department for Work and Pensions ,Employment Programmes,20/05/2015,INNOVATION FUND,WWEG EP NATIONAL,NOTTINGHAM CITY COUNCIL,2033683632,"157,700"
Department for Work and Pensions ,Housing Benefits,14/05/2015,HOUSING BENEFIT ADMINISTRATION,HB ENGLAND,WIRRAL BOROUGH COUNCIL,2033673910,"155,896"
Department for Work and Pensions ,Housing Benefits,14/05/2015,HOUSING BENEFIT ADMINISTRATION,HB SCOTLAND,NORTH LANARKSHIRE COUNCIL,2033674048,"155,638"
Department for Work and Pensions ,Corporate,19/05/2015,TREDDS APPS DEV MANDAYS,CHG PIP IT PHASE 5,HP ENTERPRISE SERVICES UK LTD,2033682238,"152,863"
Department for Work and Pensions ,Housing Benefits,14/05/2015,HOUSING BENEFIT ADMINISTRATION,HB ENGLAND,CITY OF WESTMINSTER,2033673965,"149,212"
Department for Work and Pensions ,Employment Programmes,29/05/2015,SERVICE FEE,WWEG EP WORK CHOICE FORTH VALLEY FIFE AND TAYSIDE,SHAW TRUST,2033698499,"149,040"
Department for Work and Pensions ,Housing Benefits,14/05/2015,HOUSING BENEFIT ADMINISTRATION,HB ENGLAND,SALFORD CITY COUNCIL,2033673933,"148,802"
Department for Work and Pensions ,Corporate,13/05/2015,CONTRACTED OUT OFFICE SERVICES,FG OPS FIN DM CONTRACTS,COFELY WORKPLACE LTD,2033672873,"146,067"
Department for Work and Pensions ,Housing Benefits,14/05/2015,HOUSING BENEFIT ADMINISTRATION,HB ENGLAND,WAKEFIELD  DISTRICT COUNCIL,2033674090,"144,657"
Department for Work and Pensions ,Corporate,19/05/2015,TREDDS APPS DEV MANDAYS,CHG VME WFPS-R,HP ENTERPRISE SERVICES UK LTD,2033682238,"144,320"
Department for Work and Pensions ,Housing Benefits,14/05/2015,HOUSING BENEFIT ADMINISTRATION,HB SCOTLAND,FIFE COUNCIL,2033673776,"142,576"
Department for Work and Pensions ,Housing Benefits,14/05/2015,HOUSING BENEFIT ADMINISTRATION,HB ENGLAND,NEWCASTLE CITY COUNCIL,2033673972,"142,325"
Department for Work and Pensions ,Housing Benefits,14/05/2015,HOUSING BENEFIT ADMINISTRATION,HB ENGLAND,SUNDERLAND CITY COUNCIL,2033673920,"141,849"
Department for Work and Pensions ,Housing Benefits,14/05/2015,HOUSING BENEFIT ADMINISTRATION,HB ENGLAND,WOLVERHAMPTON CITY COUNCIL,2033673770,"141,561"
Department for Work and Pensions ,Housing Benefits,14/05/2015,HOUSING BENEFIT ADMINISTRATION,HB WALES,CARDIFF CITY COUNCIL,2033673967,"141,114"
Department for Work and Pensions ,Housing Benefits,14/05/2015,HOUSING BENEFIT ADMINISTRATION,HB ENGLAND,WALSALL BOROUGH COUNCIL,2033673922,"139,270"
Department for Work and Pensions ,Corporate,14/05/2015,VOCA Charges,FG FIN CONT COBAP BANKING,VOCALINK,2033675822,"138,925"
Department for Work and Pensions ,Employment Programmes,29/05/2015,SERVICE FEE,WWEG EP WORK CHOICE DORSET AND SOMERSET,SHAW TRUST,2033698499,"138,587"
Department for Work and Pensions ,Housing Benefits,14/05/2015,HOUSING BENEFIT ADMINISTRATION,HB ENGLAND,DONCASTER METROPOLITAN BOROUGH COUNCIL,2033674093,"138,172"
Department for Work and Pensions ,Corporate,19/05/2015,NON-TREDDS IS IT APPS DEV MANDAY,CHG UC DESIGN & BUILD PROGRAMME MANAGER,CAPGEMINI UK PLC,2033682237,"137,504"
Department for Work and Pensions ,Housing Benefits,14/05/2015,HOUSING BENEFIT ADMINISTRATION,HB ENGLAND,COVENTRY CITY COUNCIL,2033673792,"136,307"
Department for Work and Pensions ,Housing Benefits,14/05/2015,HOUSING BENEFIT ADMINISTRATION,HB ENGLAND,LONDON BOROUGH OF WALTHAM FOREST,2033674040,"133,883"
Department for Work and Pensions ,Employment Programmes,29/05/2015,SERVICE FEE,WWEG EP WORK CHOICE BERKSHIRE BUCKS AND OXFORDSHIRE,SHAW TRUST,2033698499,"132,748"
Department for Work and Pensions ,Housing Benefits,14/05/2015,HOUSING BENEFIT ADMINISTRATION,HB ENGLAND,WILTSHIRE COUNCIL,2033673932,"132,709"
Department for Work and Pensions ,Corporate,06/05/2015,RENEWALS OF SOFTWARE SUPPORT AND MAINTENANCE,CIO ITLR SOFTWARE P,SPECIALIST COMPUTER CENTRES PLC,2033661183,"130,736"
Department for Work and Pensions ,Corporate,29/05/2015,PRIME FACILITY PRICE,FG CD BIRCHWOOD,TELEREAL TRILLIUM,2033698847,"130,417"
Department for Work and Pensions ,Housing Benefits,14/05/2015,HOUSING BENEFIT ADMINISTRATION,HB ENGLAND,BRIGHTON & HOVE COUNCIL,2033674108,"130,411"
Department for Work and Pensions ,Corporate,29/05/2015,RENEWALS OF SOFTWARE SUPPORT AND MAINTENANCE,CIO ITLR SOFTWARE P,SPECIALIST COMPUTER CENTRES PLC,2033697339,"129,698"
Department for Work and Pensions ,Employment Programmes,29/05/2015,SERVICE FEE,WWEG EP CHOICE WALT FOR RBRID HAV BARK DAG C E LON,WORKING LINKS,2033697390,"129,633"
Department for Work and Pensions ,Corporate,15/05/2015,MEDICAL SERVICES VAT NON-RECOVERABLE,FG HS HDAS PASSTHROUGH,CENTRE FOR HEALTH & DISABILITY ASSESSMENTS LTD,2033677030,"128,234"
Department for Work and Pensions ,Housing Benefits,14/05/2015,HOUSING BENEFIT ADMINISTRATION,HB ENGLAND,STOKE ON TRENT CITY COUNCIL,2033673793,"128,186"
Department for Work and Pensions ,Housing Benefits,14/05/2015,HOUSING BENEFIT ADMINISTRATION,HB ENGLAND,PLYMOUTH CITY COUNCIL,2033674012,"127,462"
Department for Work and Pensions ,Employment Programmes,27/05/2015,SUSTAINMENT FEE,REMPLOY WORK CHOICE PAYMENTS,REMPLOY LTD,2033691658,"126,655"
Department for Work and Pensions ,Corporate,28/05/2015,CONTRACTORS & STAFF SUBSTITUTIONS,CIO COO IT DIRECTOR,CAPITA BUSINESS SERVICES LTD,2033694736,"123,253"
Department for Work and Pensions ,Housing Benefits,14/05/2015,HOUSING BENEFIT ADMINISTRATION,HB SCOTLAND,SOUTH LANARKSHIRE COUNCIL,2033673773,"122,460"
Department for Work and Pensions ,Corporate,18/05/2015,TREDDS APPS DEV MANDAYS,CHG VME CACS-R,HP ENTERPRISE SERVICES UK LTD,2033679358,"121,349"
Department for Work and Pensions ,Housing Benefits,14/05/2015,HOUSING BENEFIT ADMINISTRATION,HB ENGLAND,WIGAN BOROUGH COUNCIL,2033673841,"121,215"
Department for Work and Pensions ,Housing Benefits,14/05/2015,HOUSING BENEFIT ADMINISTRATION,HB ENGLAND,SEFTON METROPOLITAN BOROUGH COUNCIL,2033673799,"120,971"
Department for Work and Pensions ,Employment Programmes,29/05/2015,SERVICE FEE,WWEG EP WORK CHOICE CUMBRIA AND LANCASHIRE,SHAW TRUST,2033698499,"120,924"
Department for Work and Pensions ,Corporate,19/05/2015,TREDDS APPS DEV MANDAYS,CHG STATE PENSION REFORM SINGLE TIER,HP ENTERPRISE SERVICES UK LTD,2033682238,"120,655"
Department for Work and Pensions ,Housing Benefits,14/05/2015,HOUSING BENEFIT ADMINISTRATION,HB ENGLAND,NORTHUMBERLAND COUNCIL,2033673930,"119,847"
Department for Work and Pensions ,Corporate,18/05/2015,TREDDS APPS DEV MANDAYS,CHG VME WFPS-R,HP ENTERPRISE SERVICES UK LTD,2033679358,"118,389"
Department for Work and Pensions ,Housing Benefits,14/05/2015,HOUSING BENEFIT ADMINISTRATION,HB ENGLAND,BOLTON METROPOLITAN BOROUGH COUNCIL,2033673865,"117,967"
Department for Work and Pensions ,Housing Benefits,14/05/2015,HOUSING BENEFIT ADMINISTRATION,HB ENGLAND,LONDON BOROUGH OF HAMMERSMITH & FULHAM,2033674084,"117,963"
Department for Work and Pensions ,Corporate,29/05/2015,PRIME FACILITY PRICE,FG CD SHEFFIELD KINGS COURT,TELEREAL TRILLIUM,2033698847,"117,374"
Department for Work and Pensions ,Corporate,19/05/2015,NON PRIME PROPERTY COSTS,FG CD LIVERPOOL REGRAVE COURT,HEALTH & SAFETY EXECUTIVE,2033680724,"116,655"
Department for Work and Pensions ,Housing Benefits,14/05/2015,HOUSING BENEFIT ADMINISTRATION,HB ENGLAND,PORTSMOUTH CITY COUNCIL,2033674133,"115,944"
Department for Work and Pensions ,Corporate,15/05/2015,AR PRIME RECOVERIES,BALANCE SHEET,TELEREAL TRILLIUM,2033676633,"115,671"
Department for Work and Pensions ,Housing Benefits,14/05/2015,HOUSING BENEFIT ADMINISTRATION,HB ENGLAND,ROTHERHAM BOROUGH COUNCIL,2033673896,"114,315"
Department for Work and Pensions ,Corporate,29/05/2015,PRIME FACILITY PRICE,FG HS HDAS NON CONTRACT,TELEREAL TRILLIUM,2033698847,"114,106"
Department for Work and Pensions ,Corporate,15/05/2015,STAFF RELATED COSTS,HR EYECARE,SPECSAVERS CORPORATE EYECARE,2033677445,"114,048"
Department for Work and Pensions ,Housing Benefits,14/05/2015,HOUSING BENEFIT ADMINISTRATION,HB ENGLAND,LONDON BOROUGH OF BARKING & DAGENHAM,2033673772,"112,426"
Department for Work and Pensions ,Housing Benefits,14/05/2015,HOUSING BENEFIT ADMINISTRATION,HB ENGLAND,LONDON BOROUGH OF HOUNSLOW,2033673837,"112,313"
Department for Work and Pensions ,Corporate,12/05/2015,CONTRACTORS & STAFF SUBSTITUTIONS,CIO ADC DIRECTOR,CAPITA BUSINESS SERVICES LTD,2033668219,"111,921"
Department for Work and Pensions ,Housing Benefits,14/05/2015,HOUSING BENEFIT ADMINISTRATION,HB ENGLAND,DUDLEY METROPOLITAN BOROUGH COUNCIL,2033673881,"111,368"
Department for Work and Pensions ,Housing Benefits,14/05/2015,HOUSING BENEFIT ADMINISTRATION,HB ENGLAND,CHESHIRE WEST & CHESTER COUNCIL,2033673907,"110,553"
Department for Work and Pensions ,Housing Benefits,14/05/2015,HOUSING BENEFIT ADMINISTRATION,HB ENGLAND,SOUTHAMPTON CITY COUNCIL,2033673912,"110,247"
Department for Work and Pensions ,Employment Programmes,29/05/2015,SERVICE FEE,WWEG EP WORK CHOICE LEICESTERSHIRE AND NORTHAMPTONSHIRE,WORKING LINKS,2033697390,"109,936"
Department for Work and Pensions ,Corporate,27/05/2015,CIVIL SERVICE OCCUPATIONAL HEALTH SERVICE,HR OHS,OH ASSIST,2033691816,"109,668"
Department for Work and Pensions ,Housing Benefits,14/05/2015,HOUSING BENEFIT ADMINISTRATION,HB ENGLAND,LONDON BOROUGH OF HILLINGDON,2033673941,"109,188"
Department for Work and Pensions ,Corporate,06/05/2015,CONTRACTORS & STAFF SUBSTITUTIONS,CHG IT TRANSFORMATION PROG,CAPITA BUSINESS SERVICES LTD,2033661197,"108,854"
Department for Work and Pensions ,Housing Benefits,14/05/2015,HOUSING BENEFIT ADMINISTRATION,HB ENGLAND,MEDWAY TOWNS COUNCIL,2033674141,"106,817"
Department for Work and Pensions ,Housing Benefits,14/05/2015,HOUSING BENEFIT ADMINISTRATION,HB WALES,SWANSEA CITY COUNCIL,2033673869,"106,523"
Department for Work and Pensions ,Corporate,27/05/2015,SIMPLE PAYMENT SERVICE,FG FIN CONT COBAP CHEQUES,CITIBANK GLOBAL CORPORATE BANKING,1007189,"106,362"
Department for Work and Pensions ,Housing Benefits,14/05/2015,HOUSING BENEFIT ADMINISTRATION,HB ENGLAND,BARNSLEY BOROUGH COUNCIL,2033673895,"105,233"
Department for Work and Pensions ,Housing Benefits,14/05/2015,HOUSING BENEFIT ADMINISTRATION,HB ENGLAND,DERBY CITY COUNCIL,2033673937,"105,229"
Department for Work and Pensions ,Housing Benefits,14/05/2015,HOUSING BENEFIT ADMINISTRATION,HB WALES,RHONDDA CYNON TAFF COUNTY BOROUGH COUNCIL,2033673846,"104,728"
Department for Work and Pensions ,Corporate,01/05/2015,SIMPLE PAYMENT SERVICE,FG FIN CONT COBAP CHEQUES,CITIBANK GLOBAL CORPORATE BANKING,2033658947,"104,678"
Department for Work and Pensions ,Housing Benefits,14/05/2015,HOUSING BENEFIT ADMINISTRATION,HB ENGLAND,LONDON BOROUGH OF BROMLEY,2033673834,"104,621"
Department for Work and Pensions ,Corporate,01/05/2015,IT Owned Additions Cost,CIO ITLR HOSTING DEL P,SPECIALIST COMPUTER CENTRES PLC,2033658728,"104,541"
Department for Work and Pensions ,Child Maintenance and Enforcement Commission,19/05/2015,TREDDS APPS DEV MANDAYS,CMG Legacy Releases HPES,HP ENTERPRISE SERVICES UK LTD,1000236073,"103,673"
Department for Work and Pensions ,Child Maintenance and Enforcement Commission,21/05/2015,REMOTE STORAGE COSTS VAT RECOV,CS CENTRALLY HELD BUDGETS FILESTORES,CAPITA BUSINESS SERVICES LTD,1000236303,"103,362"
Department for Work and Pensions ,Housing Benefits,14/05/2015,HOUSING BENEFIT ADMINISTRATION,HB ENGLAND,LONDON BOROUGH OF REDBRIDGE,2033673934,"103,213"
Department for Work and Pensions ,Corporate,19/05/2015,TREDDS APPS DEV MANDAYS,CHG ELECTRONIC SIGNING,HP ENTERPRISE SERVICES UK LTD,2033682238,"103,043"
Department for Work and Pensions ,Housing Benefits,14/05/2015,HOUSING BENEFIT ADMINISTRATION,HB ENGLAND,EAST RIDING OF YORKSHIRE BOROUGH COUNCIL,2033674120,"103,030"
Department for Work and Pensions ,Housing Benefits,14/05/2015,HOUSING BENEFIT ADMINISTRATION,HB ENGLAND,BLACKPOOL BOROUGH COUNCIL,2033673859,"102,629"
Department for Work and Pensions ,Housing Benefits,14/05/2015,HOUSING BENEFIT ADMINISTRATION,HB ENGLAND,CHESHIRE EAST BOROUGH COUNCIL,2033673906,"102,382"
Department for Work and Pensions ,Housing Benefits,14/05/2015,HOUSING BENEFIT ADMINISTRATION,HB ENGLAND,TAMESIDE BOROUGH COUNCIL,2033673893,"101,829"
Department for Work and Pensions ,Housing Benefits,14/05/2015,HOUSING BENEFIT ADMINISTRATION,HB ENGLAND,MILTON KEYNES BOROUGH COUNCIL,2033673802,"100,899"
Department for Work and Pensions ,Corporate,28/05/2015,CONTRACTORS & STAFF SUBSTITUTIONS,CIO IT SECURITY & BUSINESS CONTINUITY,CAPITA BUSINESS SERVICES LTD,2033694736,"100,363"
Department for Work and Pensions ,Employment Programmes,05/05/2015,WP JSA 25+ SUSTAINMENT OUTCOME PAYMENT,WWEG EP SCOTLAND WORKING LINKS,WORKING LINKS,2033660601,"99,975"
Department for Work and Pensions ,Corporate,29/05/2015,NON-TREDDS IS IT SERVICES (AMS),F&C CD STRATEGY AND BUSINESS MANAGEMENT,SPECIALIST COMPUTER CENTRES PLC,2033697339,"99,401"
Department for Work and Pensions ,Housing Benefits,14/05/2015,HOUSING BENEFIT ADMINISTRATION,HB ENGLAND,ROCHDALE BOROUGH COUNCIL,2033673868,"99,155"
Department for Work and Pensions ,Housing Benefits,14/05/2015,HOUSING BENEFIT ADMINISTRATION,HB SCOTLAND,DUNDEE CITY COUNCIL,2033674069,"98,989"
Department for Work and Pensions ,Housing Benefits,14/05/2015,HOUSING BENEFIT ADMINISTRATION,HB ENGLAND,LONDON BOROUGH OF KENSINGTON & CHELSEA,2033674077,"98,752"
Department for Work and Pensions ,Housing Benefits,14/05/2015,HOUSING BENEFIT ADMINISTRATION,HB ENGLAND,GATESHEAD BOROUGH COUNCIL,2033673897,"98,323"
Department for Work and Pensions ,Corporate,19/05/2015,TREDDS IS IT CONSULTANCY (HOSTING) NON ADVICE,CHG VIRTUAL MACHINE ENVIRONMENT REPLACEMENT,HP ENTERPRISE SERVICES UK LTD,2033682238,"98,197"
Department for Work and Pensions ,Employment Programmes,22/05/2015,INNOVATION FUND,WWEG EP NATIONAL,ENERGISE INNOVATION LTD,2033687211,"98,100"
Department for Work and Pensions ,Child Maintenance and Enforcement Commission,07/05/2015,REMOTE STORAGE COSTS VAT RECOV,CS CENTRALLY HELD BUDGETS FILESTORES,CAPITA BUSINESS SERVICES LTD,1000235096,"97,733"
Department for Work and Pensions ,Housing Benefits,14/05/2015,HOUSING BENEFIT ADMINISTRATION,HB ENGLAND,OLDHAM BOROUGH COUNCIL,2033673867,"96,926"
Department for Work and Pensions ,Housing Benefits,14/05/2015,HOUSING BENEFIT ADMINISTRATION,HB ENGLAND,LONDON BOROUGH OF HARROW,2033674043,"93,747"
Department for Work and Pensions ,Corporate,28/05/2015,FSF - TRAINING PAYMENTS TO PROVIDERS - JSA JOBSEEKERS,OPS WDC WSD WL SOUTH EAST WALES DISTRICT OFFICE,WORKING LINKS,2033696789,"93,270"
Department for Work and Pensions ,Employment Programmes,05/05/2015,WP JSA 25+ SUSTAINMENT OUTCOME PAYMENT,WWEG EP EAST OF ENGLAND INGEUS UK,INGEUS UK LTD,2033660603,"92,880"
Department for Work and Pensions ,Employment Programmes,20/05/2015,RESIDENTIAL TRAINING COSTS,WWEG EP DELIVERY WELFARE TO WORK PRODUCT SUPPORT,RNCB HEREFORD,2033683591,"92,615"
Department for Work and Pensions ,Housing Benefits,14/05/2015,HOUSING BENEFIT ADMINISTRATION,HB ENGLAND,KNOWSLEY BOROUGH COUNCIL,2033673885,"92,489"
Department for Work and Pensions ,Employment Programmes,05/05/2015,WP JSA 25+ SUSTAINMENT OUTCOME PAYMENT,WWEG EP NORTH WEST MERS HAL CUMB AND LANCS A4E,A4E LTD,2033660434,"92,235"
Department for Work and Pensions ,Housing Benefits,14/05/2015,HOUSING BENEFIT ADMINISTRATION,HB ENGLAND,MIDDLESBROUGH COUNCIL,2033674067,"92,233"
Department for Work and Pensions ,Corporate,29/05/2015,PRIME FACILITY PRICE,FG CD BRADFORD AMBLER MILL,TELEREAL TRILLIUM,2033698847,"91,763"
Department for Work and Pensions ,Corporate,11/05/2015,TREDDS APPS DEV MANDAYS,CHG RTI STRATEGIC SOLUTION,HM REVENUE & CUSTOMS,2005429,"91,682"
Department for Work and Pensions ,Employment Programmes,05/05/2015,WP JSA 25+ SUSTAINMENT OUTCOME PAYMENT,WWEG EP EAST LONDON A4E,A4E LTD,2033660434,"91,160"
Department for Work and Pensions ,Housing Benefits,14/05/2015,HOUSING BENEFIT ADMINISTRATION,HB ENGLAND,BOURNEMOUTH BOROUGH COUNCIL,2033674107,"91,016"
Department for Work and Pensions ,Corporate,15/05/2015,NETWORK SERVICES,CIO ITLR NETWORK,BT GLOBAL SERVICES,2033677407,"90,808"
Department for Work and Pensions ,Corporate,05/05/2015,AMS SERVICES,CIO ITLR AMS - CAP GEMINI,CAPGEMINI UK PLC,2033660442,"90,742"
Department for Work and Pensions ,Corporate,29/05/2015,PRIME FACILITY PRICE,FG CD DEARNE VALLEY DISCOVERY HOUSE,TELEREAL TRILLIUM,2033698847,"90,462"
Department for Work and Pensions ,Housing Benefits,14/05/2015,HOUSING BENEFIT ADMINISTRATION,HB SCOTLAND,RENFREWSHIRE COUNCIL,2033674023,"90,153"
Department for Work and Pensions ,Employment Programmes,11/05/2015,WP JSA 25+ SUSTAINMENT OUTCOME PAYMENT,WWEG EP SCOTLAND INGEUS UK,INGEUS UK LTD,2033666254,"90,085"
Department for Work and Pensions ,Corporate,19/05/2015,AMS SERVICES,CIO ITLR AMS - CAP GEMINI,CAPGEMINI UK PLC,2033682237,"89,777"
Department for Work and Pensions ,Corporate,29/05/2015,PRIME FACILITY PRICE,FG CD MANCHESTER ANCHORAGE HOUSE,TELEREAL TRILLIUM,2033698847,"89,560"
Department for Work and Pensions ,Employment Programmes,05/05/2015,ESF 2011-13 SUPPORT FOR FAMILIES WITH MULTIPLE PROBLEMS JSA CUSTOMERS JOB OUTCOME PAYMENT,CPA8 SOUTH EAST SKILLS TRAINING UK,SKILLS TRAINING UK LIMITED,2033659795,"89,527"
Department for Work and Pensions ,Housing Benefits,14/05/2015,HOUSING BENEFIT ADMINISTRATION,HB ENGLAND,SHROPSHIRE COUNCIL,2033673931,"89,286"
Department for Work and Pensions ,Corporate,06/05/2015,NON-TREDDS IS IT SERVICES (HOSTING),CIO GG SERVICE DELIVERY,ATOS ORIGIN IT SERVICES UK LTD,2033661150,"89,082"
Department for Work and Pensions ,Employment Programmes,05/05/2015,WP JSA 25+ SUSTAINMENT OUTCOME PAYMENT,WWEG EP EAST MIDLANDS A4E,A4E LTD,2033660434,"88,795"
Department for Work and Pensions ,Employment Programmes,11/05/2015,WP JSA 25+ SUSTAINMENT OUTCOME PAYMENT,WWEG EP EAST OF ENGLAND INGEUS UK,INGEUS UK LTD,2033666254,"87,720"
Department for Work and Pensions ,Corporate,18/05/2015,NON-TREDDS IS IT APPS DEV MANDAY,CIO CIS CORE,IBM UNITED KINGDOM LTD,2033677934,"87,646"
Department for Work and Pensions ,Corporate,11/05/2015,PROFESSIONAL ADVICE & OPINION VAT RECOVERABLE,HR STRATEGY AND OD,CABINET OFFICE,2005431,"87,440"
Department for Work and Pensions ,Housing Benefits,14/05/2015,HOUSING BENEFIT ADMINISTRATION,HB ENGLAND,CALDERDALE BOROUGH COUNCIL,2033674074,"87,141"
Department for Work and Pensions ,Employment Programmes,05/05/2015,SUSTAINMENT FEE,REMPLOY WORK CHOICE PAYMENTS,REMPLOY LTD,2033660293,"87,075"
Department for Work and Pensions ,Housing Benefits,14/05/2015,HOUSING BENEFIT ADMINISTRATION,HB ENGLAND,SOUTHEND ON SEA BOROUGH COUNCIL,2033673812,"87,004"
Department for Work and Pensions ,Corporate,29/05/2015,PRIME FACILITY PRICE,FG CD SHEFFIELD ROCKINGHAM HOUSE,TELEREAL TRILLIUM,2033698847,"86,590"
Department for Work and Pensions ,Housing Benefits,14/05/2015,HOUSING BENEFIT ADMINISTRATION,HB ENGLAND,LUTON BOROUGH COUNCIL,2033674062,"86,546"
Department for Work and Pensions ,Housing Benefits,14/05/2015,HOUSING BENEFIT ADMINISTRATION,HB ENGLAND,STOCKTON  BOROUGH COUNCIL,2033673823,"86,019"
Department for Work and Pensions ,Housing Benefits,14/05/2015,HOUSING BENEFIT ADMINISTRATION,HB ENGLAND,NORTHAMPTON BOROUGH COUNCIL,2033674045,"86,006"
Department for Work and Pensions ,Housing Benefits,14/05/2015,HOUSING BENEFIT ADMINISTRATION,HB ENGLAND,ST HELENS BOROUGH COUNCIL,2033673894,"85,603"
Department for Work and Pensions ,Housing Benefits,14/05/2015,HOUSING BENEFIT ADMINISTRATION,HB ENGLAND,PETERBOROUGH CITY COUNCIL,2033674105,"84,983"
Department for Work and Pensions ,Housing Benefits,14/05/2015,HOUSING BENEFIT ADMINISTRATION,HB ENGLAND,STOCKPORT BOROUGH COUNCIL,2033673892,"84,705"
Department for Work and Pensions ,Housing Benefits,14/05/2015,HOUSING BENEFIT ADMINISTRATION,HB SCOTLAND,HIGHLAND COUNCIL,2033673840,"84,627"
Department for Work and Pensions ,Employment Programmes,05/05/2015,WP JSA 25+ SUSTAINMENT OUTCOME PAYMENT,WWEG EP SCOTLAND INGEUS UK,INGEUS UK LTD,2033660603,"84,495"
Department for Work and Pensions ,Corporate,19/05/2015,NON-TREDDS IS IT APPS DEV MANDAY,CIO ITLR HOSTING DEL P,IBM UNITED KINGDOM LTD,2033681381,"84,295"
Department for Work and Pensions ,Housing Benefits,14/05/2015,HOUSING BENEFIT ADMINISTRATION,HB ENGLAND,NORTH TYNESIDE BOROUGH COUNCIL,2033673918,"84,176"
Department for Work and Pensions ,Corporate,12/05/2015,MOTABILITY ADMINISTRATION GRANT,STR MOTABILITY,MOTABILITY ADMINISTRATION FUND,2033666968,"83,330"
Department for Work and Pensions ,Employment Programmes,15/05/2015,RESIDENTIAL TRAINING COSTS,WWEG EP DELIVERY WELFARE TO WORK PRODUCT SUPPORT,PORTLAND COLLEGE,2033676305,"82,693"
Department for Work and Pensions ,Corporate,11/05/2015,SIAM FIXED PRICE CONTRACTS,CIO ITLR DIGITAL TOWER DEL P,HP LTD,2033666770,"82,628"
Department for Work and Pensions ,Housing Benefits,14/05/2015,HOUSING BENEFIT ADMINISTRATION,HB ENGLAND,NORWICH CITY COUNCIL,2033674086,"82,543"
Department for Work and Pensions ,Corporate,08/05/2015,MEDICAL SERVICES FIXED COSTS,FG HS MEDICAL SERVICES CONTRACT EXIT COSTS,ATOS HEALTHCARE,2033665941,"82,198"
Department for Work and Pensions ,Housing Benefits,14/05/2015,HOUSING BENEFIT ADMINISTRATION,HB ENGLAND,THANET DISTRICT COUNCIL,2033673939,"82,111"
Department for Work and Pensions ,Housing Benefits,14/05/2015,HOUSING BENEFIT ADMINISTRATION,HB ENGLAND,NORTH EAST LINCOLNSHIRE COUNCIL,2033673886,"82,097"
Department for Work and Pensions ,Corporate,12/05/2015,POSTAGE,FG CD NEWCASTLE ESTATE,UK MAIL,2033666998,"82,071"
Department for Work and Pensions ,Corporate,28/05/2015,NON-TREDDS IS IT APPS DEV MANDAY,CIO GG CORE,ATOS ORIGIN IT SERVICES UK LTD,2033695966,"81,732"
Department for Work and Pensions ,Corporate,29/05/2015,PRIME FACILITY PRICE,FG CD NUNEATON DISCOVERY HOUSE,TELEREAL TRILLIUM,2033698847,"80,762"
Department for Work and Pensions ,Corporate,19/05/2015,NON-TREDDS IS IT APPS DEV MANDAY,CIO CIS CORE,IBM UNITED KINGDOM LTD,2033681381,"80,732"
Department for Work and Pensions ,Housing Benefits,14/05/2015,HOUSING BENEFIT ADMINISTRATION,HB ENGLAND,SOUTH TYNESIDE METROPOLITAN BOROUGH COUNCIL,2033673919,"80,356"
Department for Work and Pensions ,Employment Programmes,05/05/2015,WP JSA 25+ SUSTAINMENT OUTCOME PAYMENT,WWEG EP NORTH WEST MERS HAL CUMB AND LANCS INGEUS UK,INGEUS UK LTD,2033660603,"79,980"
Department for Work and Pensions ,Employment Programmes,05/05/2015,WP JSA 25+ SUSTAINMENT OUTCOME PAYMENT,WWEG EP EAST OF ENGLAND SEETEC,SEETEC BUSINESS TECHNOLOGY CENTRE LTD,2033659959,"79,335"
Department for Work and Pensions ,Corporate,19/05/2015,TREDDS APPS DEV MANDAYS,CHG PIP IT ASSESSMENT TOOL,HP ENTERPRISE SERVICES UK LTD,2033682238,"78,732"
Department for Work and Pensions ,Housing Benefits,14/05/2015,HOUSING BENEFIT ADMINISTRATION,HB ENGLAND,BOROUGH OF TELFORD & WREKIN COUNCIL,2033673976,"78,222"
Department for Work and Pensions ,Housing Benefits,14/05/2015,HOUSING BENEFIT ADMINISTRATION,HB ENGLAND,LONDON BOROUGH OF HAVERING,2033673935,"78,219"
Department for Work and Pensions ,Corporate,19/05/2015,TREDDS IS IT CONSULTANCY (HOSTING) NON ADVICE,CIO INFRASTRUCTURE & SERVICE REMEDIATION,HP ENTERPRISE SERVICES UK LTD,2033682238,"78,130"
Department for Work and Pensions ,Housing Benefits,14/05/2015,HOUSING BENEFIT ADMINISTRATION,HB ENGLAND,SOUTH GLOUCESTERSHIRE COUNCIL,2033673961,"77,403"
Department for Work and Pensions ,Housing Benefits,14/05/2015,HOUSING BENEFIT ADMINISTRATION,HB ENGLAND,TORBAY  COUNCIL,2033673955,"77,095"
Department for Work and Pensions ,Employment Programmes,13/05/2015,WP JSA 25+ SUSTAINMENT OUTCOME PAYMENT,WWEG EP EAST LONDON CAREERS DEVELOPMENT GROUP,CAREERS DEVELOPMENT GROUP,2033673437,"76,755"
Department for Work and Pensions ,Employment Programmes,11/05/2015,WP JSA 25+ SUSTAINMENT OUTCOME PAYMENT,WWEG EP EAST OF ENGLAND SEETEC,SEETEC BUSINESS TECHNOLOGY CENTRE LTD,2033666666,"76,755"
Department for Work and Pensions ,Corporate,19/05/2015,TREDDS APPS DEV FIXED PRICE CONTRACTS,CHG ELECTRONIC SIGNING,HP ENTERPRISE SERVICES UK LTD,2033682238,"76,210"
Department for Work and Pensions ,Housing Benefits,14/05/2015,HOUSING BENEFIT ADMINISTRATION,HB ENGLAND,NORTH SOMERSET COUNCIL,2033673988,"76,066"
Department for Work and Pensions ,Housing Benefits,14/05/2015,HOUSING BENEFIT ADMINISTRATION,HB ENGLAND,SWINDON BOROUGH COUNCIL,2033673943,"75,415"
Department for Work and Pensions ,Housing Benefits,14/05/2015,HOUSING BENEFIT ADMINISTRATION,HB ENGLAND,BASILDON DISTRICT COUNCIL,2033674066,"75,289"
Department for Work and Pensions ,Housing Benefits,14/05/2015,HOUSING BENEFIT ADMINISTRATION,HB ENGLAND,TRAFFORD BOROUGH COUNCIL,2033674046,"75,116"
Department for Work and Pensions ,Housing Benefits,14/05/2015,HOUSING BENEFIT ADMINISTRATION,HB SCOTLAND,ABERDEEN CITY COUNCIL,2033673774,"75,014"
Department for Work and Pensions ,Employment Programmes,08/05/2015,WP JSA 25+ SUSTAINMENT OUTCOME PAYMENT,WWEG EP EAST MIDLANDS A4E,A4E LTD,2033666061,"74,390"
Department for Work and Pensions ,Corporate,06/05/2015,POSTAGE,STR WAB DIRECTOR AND SUPPORT,ROYAL MAIL GROUP PLC,2033662275,"73,834"
Department for Work and Pensions ,Housing Benefits,14/05/2015,HOUSING BENEFIT ADMINISTRATION,HB SCOTLAND,NORTH AYRSHIRE COUNCIL,2033674035,"73,611"
Department for Work and Pensions ,Housing Benefits,14/05/2015,HOUSING BENEFIT ADMINISTRATION,HB ENGLAND,LONDON BOROUGH OF BEXLEY,2033673833,"73,389"
Department for Work and Pensions ,Corporate,14/05/2015,NON-TREDDS IS IT SERVICES (HOSTING),F&C IGS INFO SERVICES,ORC INTERNATIONAL LTD,2033675808,"73,170"
Department for Work and Pensions ,Corporate,14/05/2015,CHANGE ORDER - VAT RECOVERABLE,OPS OPE FES DISCRETE BUDGET CONTROL,AIRWAVE SOLUTIONS LTD,2033674267,"72,993"
Department for Work and Pensions ,Corporate,18/05/2015,TREDDS APPS DEV MANDAYS,CHG STATE PENSION REFORM SINGLE TIER,HP ENTERPRISE SERVICES UK LTD,2033679358,"72,732"
Department for Work and Pensions ,Employment Programmes,15/05/2015,WP JSA 25+ SUSTAINMENT OUTCOME PAYMENT,WWEG EP EAST OF ENGLAND INGEUS UK,INGEUS UK LTD,2033676395,"72,670"
Department for Work and Pensions ,Corporate,12/05/2015,CONTRACTORS & STAFF SUBSTITUTIONS,CHG IT TRANSFORMATION PROG,CAPITA BUSINESS SERVICES LTD,2033668219,"72,500"
Department for Work and Pensions ,Employment Programmes,08/05/2015,WP JSA 25+ SUSTAINMENT OUTCOME PAYMENT,WWEG EP EAST LONDON A4E,A4E LTD,2033666061,"72,240"
Department for Work and Pensions ,Corporate,19/05/2015,NON PRIME PROPERTY COSTS,FG CD BENTON PARK VIEW,HM REVENUE & CUSTOMS,2033679988,"72,135"
Department for Work and Pensions ,Employment Programmes,13/05/2015,WP JSA 25+ SUSTAINMENT OUTCOME PAYMENT,WWEG EP SOUTH EAST SURR SUSSX AND KENT G4S,G4S REGIONAL MANAGEMENT UK & I LTD,2033671211,"71,380"
Department for Work and Pensions ,Corporate,22/05/2015,RENEWALS OF SOFTWARE SUPPORT AND MAINTENANCE,CHG SCANNING & DIGITAL STORAGE,SPECIALIST COMPUTER CENTRES PLC,2033687434,"71,232"
Department for Work and Pensions ,Corporate,01/05/2015,CREDIT UNION DEPOSIT VALUE GROWTH,CHG CREDIT UNION EXPANSION AND DEVELOPMENT DELP,THE ASSOCIATION OF BRITISH CREDIT UNIONS LTD,2033658190,"71,158"
Department for Work and Pensions ,Employment Programmes,05/05/2015,WP JSA 25+ SUSTAINMENT OUTCOME PAYMENT,WWEG EP EAST MIDLANDS INGEUS UK,INGEUS UK LTD,2033660603,"70,520"
Department for Work and Pensions ,Employment Programmes,22/05/2015,WP JSA 25+ SUSTAINMENT OUTCOME PAYMENT,WWEG EP EAST OF ENGLAND INGEUS UK,INGEUS UK LTD,2033687121,"70,520"
Department for Work and Pensions ,Corporate,06/05/2015,CONTRACTORS & STAFF SUBSTITUTIONS,CIO ADC DIRECTOR,CAPITA BUSINESS SERVICES LTD,2033661197,"70,392"
Department for Work and Pensions ,Employment Programmes,05/05/2015,WP JSA 25+ SUSTAINMENT OUTCOME PAYMENT,WWEG EP NORTH EAST INGEUS UK,INGEUS UK LTD,2033660603,"70,305"
Department for Work and Pensions ,Housing Benefits,14/05/2015,HOUSING BENEFIT ADMINISTRATION,HB SCOTLAND,WEST LOTHIAN COUNCIL,2033674072,"70,261"
Department for Work and Pensions ,Corporate,28/05/2015,NON-TREDDS IS IT SERVICES (HOSTING),F&C IGS INFO SERVICES,ORC INTERNATIONAL LTD,2033696498,"70,243"
Department for Work and Pensions ,Housing Benefits,14/05/2015,HOUSING BENEFIT ADMINISTRATION,HB ENGLAND,LONDON BOROUGH OF MERTON,2033673960,"70,183"
Department for Work and Pensions ,Corporate,29/05/2015,AR PRIME RECOVERIES,BALANCE SHEET,TELEREAL TRILLIUM,2033698849,"69,955"
Department for Work and Pensions ,Employment Programmes,11/05/2015,WP JSA 25+ SUSTAINMENT OUTCOME PAYMENT,WWEG EP EAST LONDON SEETEC,SEETEC BUSINESS TECHNOLOGY CENTRE LTD,2033666666,"69,875"
Department for Work and Pensions ,Corporate,18/05/2015,NON-TREDDS IS IT APPS DEV MANDAY,CIO INFRASTRUCTURE & SERVICE REMEDIATION,IBM UNITED KINGDOM LTD,2033677934,"69,850"
Department for Work and Pensions ,Corporate,01/05/2015,CONSULTANTS VAT RECOVERABLE,FG HS MEDICAL SERVICES CONTRACT EXIT COSTS,ERNST & YOUNG LLP,2033658501,"69,845"
Department for Work and Pensions ,Housing Benefits,14/05/2015,HOUSING BENEFIT ADMINISTRATION,HB WALES,NEWPORT CITY COUNCIL,2033673775,"69,506"
Department for Work and Pensions ,Corporate,05/05/2015,IT Owned Additions Cost,CHG UC DESIGN & BUILD PROGRAMME MANAGER,SPECIALIST COMPUTER CENTRES PLC,2033660461,"69,058"
Department for Work and Pensions ,Employment Programmes,15/05/2015,WP JSA 25+ SUSTAINMENT OUTCOME PAYMENT,WWEG EP SCOTLAND INGEUS UK,INGEUS UK LTD,2033676395,"68,585"
Department for Work and Pensions ,Housing Benefits,14/05/2015,HOUSING BENEFIT ADMINISTRATION,HB ENGLAND,CENTRAL BEDFORDSHIRE DISTRICT COUNCIL,2033674127,"68,415"
Department for Work and Pensions ,Housing Benefits,14/05/2015,HOUSING BENEFIT ADMINISTRATION,HB ENGLAND,WARRINGTON BOROUGH COUNCIL,2033673987,"68,281"
Department for Work and Pensions ,Housing Benefits,14/05/2015,HOUSING BENEFIT ADMINISTRATION,HB ENGLAND,REDCAR & CLEVELAND BOROUGH  COUNCIL,2033673824,"68,184"
Department for Work and Pensions ,Housing Benefits,14/05/2015,HOUSING BENEFIT ADMINISTRATION,HB WALES,CAERPHILLY COUNTY BOROUGH COUNCIL,2033673962,"68,082"
Department for Work and Pensions ,Corporate,18/05/2015,NON-TREDDS IS IT APPS DEV MANDAY,CIO CIS RELEASE 4,IBM UNITED KINGDOM LTD,2033677934,"67,761"
Department for Work and Pensions ,Housing Benefits,14/05/2015,HOUSING BENEFIT ADMINISTRATION,HB ENGLAND,READING BOROUGH COUNCIL,2033674017,"67,373"
Department for Work and Pensions ,Housing Benefits,14/05/2015,HOUSING BENEFIT ADMINISTRATION,HB SCOTLAND,ABERDEENSHIRE COUNCIL,2033674070,"67,168"
Department for Work and Pensions ,Housing Benefits,14/05/2015,HOUSING BENEFIT ADMINISTRATION,HB ENGLAND,LONDON BOROUGH OF SUTTON,2033673838,"66,994"
Department for Work and Pensions ,Housing Benefits,14/05/2015,HOUSING BENEFIT ADMINISTRATION,HB WALES,NEATH PORT TALBOT COUNTY BOROUGH COUNCIL,2033673990,"66,544"
Department for Work and Pensions ,Employment Programmes,11/05/2015,WP JSA 25+ SUSTAINMENT OUTCOME PAYMENT,WWEG EP NORTH WEST MERS HAL CUMB AND LANCS INGEUS UK,INGEUS UK LTD,2033666254,"65,790"
Department for Work and Pensions ,Housing Benefits,14/05/2015,HOUSING BENEFIT ADMINISTRATION,HB WALES,CARMARTHENSHIRE COUNTY COUNCIL,2033674085,"65,648"
Department for Work and Pensions ,Corporate,28/05/2015,CONTRACTORS & STAFF SUBSTITUTIONS,CIO ITPD IT DIGITALISATION,CAPITA BUSINESS SERVICES LTD,2033694736,"65,517"
Department for Work and Pensions ,Housing Benefits,14/05/2015,HOUSING BENEFIT ADMINISTRATION,HB ENGLAND,HALTON BOROUGH COUNCIL,2033673794,"65,149"
Department for Work and Pensions ,Employment Programmes,08/05/2015,WP JSA 25+ SUSTAINMENT OUTCOME PAYMENT,WWEG EP NORTH WEST MERS HAL CUMB AND LANCS A4E,A4E LTD,2033666061,"65,145"
Department for Work and Pensions ,Corporate,08/05/2015,CONTRACTED OUT ORIGINAL RESEARCH,PSG ANALYSIS CAD,NATIONAL CENTRE FOR SOCIAL RESEARCH,2033665580,"64,900"
Department for Work and Pensions ,Housing Benefits,14/05/2015,HOUSING BENEFIT ADMINISTRATION,HB SCOTLAND,DUMFRIES & GALLOWAY COUNCIL,2033673968,"64,857"
Department for Work and Pensions ,Housing Benefits,14/05/2015,HOUSING BENEFIT ADMINISTRATION,HB ENGLAND,THURROCK BOROUGH COUNCIL,2033673985,"64,761"
Department for Work and Pensions ,Housing Benefits,14/05/2015,HOUSING BENEFIT ADMINISTRATION,HB ENGLAND,NORTH LINCOLNSHIRE COUNCIL,2033673831,"64,348"
Department for Work and Pensions ,Housing Benefits,14/05/2015,HOUSING BENEFIT ADMINISTRATION,HB ENGLAND,BURY METROPOLITAN BOROUGH COUNCIL,2033673866,"64,331"
Department for Work and Pensions ,Housing Benefits,14/05/2015,HOUSING BENEFIT ADMINISTRATION,HB ENGLAND,TENDRING DISTRICT COUNCIL,2033674032,"64,217"
Department for Work and Pensions ,Housing Benefits,14/05/2015,HOUSING BENEFIT ADMINISTRATION,HB ENGLAND,BLACKBURN BOROUGH COUNCIL,2033673784,"64,154"
Department for Work and Pensions ,Corporate,18/05/2015,CONTRACTED OUT OFFICE SERVICES,FG OPS FIN DEBT OPS CENTRAL,EXPERIAN LTD,2033679639,"64,068"
Department for Work and Pensions ,Corporate,15/05/2015,PROFESSIONAL SERVICES NON VAT RECOVERABLE,OPS OPE CMG RELATIONSHIP SUPPORT,SILLS & BETTERIDGE SOLICITORS,2033676837,"63,776"
Department for Work and Pensions ,Housing Benefits,14/05/2015,HOUSING BENEFIT ADMINISTRATION,HB ENGLAND,IPSWICH BOROUGH COUNCIL,2033674052,"63,443"
Department for Work and Pensions ,Corporate,21/05/2015,CONTRACTED OUT OFFICE SERVICES,FG CD CENTRAL CONTRACTS,XEROX UK LTD 3W,2033686725,"63,258"
Department for Work and Pensions ,Corporate,05/05/2015,RENEWALS OF SOFTWARE SUPPORT AND MAINTENANCE,CHG UC DESIGN & BUILD PROGRAMME MANAGER,SPECIALIST COMPUTER CENTRES PLC,2033660461,"63,225"
Department for Work and Pensions ,Housing Benefits,14/05/2015,HOUSING BENEFIT ADMINISTRATION,HB ENGLAND,BEDFORD BOROUGH COUNCIL,2033674044,"63,084"
Department for Work and Pensions ,Corporate,06/05/2015,POSTAGE,FG CD CENTRAL CONTRACTS,ROYAL MAIL GROUP PLC,2033662275,"62,900"
Department for Work and Pensions ,Employment Programmes,11/05/2015,WP JSA 25+ SUSTAINMENT OUTCOME PAYMENT,WWEG EP SCOTLAND WORKING LINKS,WORKING LINKS,2033666252,"62,780"
Department for Work and Pensions ,Housing Benefits,14/05/2015,HOUSING BENEFIT ADMINISTRATION,HB SCOTLAND,WEST DUNBARTONSHIRE COUNCIL,2033674132,"62,227"
Department for Work and Pensions ,Employment Programmes,05/05/2015,WP JSA 25+ SUSTAINMENT OUTCOME PAYMENT,WWEG EP WEST LONDON INGEUS UK,INGEUS UK LTD,2033660603,"61,920"
Department for Work and Pensions ,Housing Benefits,14/05/2015,HOUSING BENEFIT ADMINISTRATION,HB ENGLAND,ISLE OF WIGHT COUNTY COUNCIL,2033674121,"61,671"
Department for Work and Pensions ,Corporate,18/05/2015,TREDDS APPS DEV MANDAYS,CHG ANNUAL VERIFICATION (CONDITIONALITY),HP ENTERPRISE SERVICES UK LTD,2033679358,"60,750"
Department for Work and Pensions ,Corporate,29/05/2015,PRIME FACILITY PRICE,FG CD CORBY DISCOVERY HOUSE,TELEREAL TRILLIUM,2033698847,"60,745"
Department for Work and Pensions ,Housing Benefits,14/05/2015,HOUSING BENEFIT ADMINISTRATION,HB ENGLAND,SLOUGH BOROUGH COUNCIL,2033674088,"60,734"
Department for Work and Pensions ,Corporate,29/05/2015,PRIME FACILITY PRICE,FG CD PRESTON HOLBORN HOUSE,TELEREAL TRILLIUM,2033698847,"60,635"
Department for Work and Pensions ,Employment Programmes,18/05/2015,WP JSA 25+ SUSTAINMENT OUTCOME PAYMENT,WWEG EP SCOTLAND WORKING LINKS,WORKING LINKS,2033678926,"60,415"
Department for Work and Pensions ,Corporate,15/05/2015,TREDDS APPS DEV FIXED PRICE CONTRACTS,CHG PIP RECURRENT,HP ENTERPRISE SERVICES UK LTD,2033677192,"60,379"
Department for Work and Pensions ,Housing Benefits,14/05/2015,HOUSING BENEFIT ADMINISTRATION,HB SCOTLAND,FALKIRK DISTRICT COUNCIL,2033673871,"60,361"
Department for Work and Pensions ,Employment Programmes,22/05/2015,WP JSA 25+ SUSTAINMENT OUTCOME PAYMENT,WWEG EP SCOTLAND INGEUS UK,INGEUS UK LTD,2033687121,"60,200"
Department for Work and Pensions ,Employment Programmes,05/05/2015,WP JSA 25+ SUSTAINMENT OUTCOME PAYMENT,WWEG EP EAST LONDON SEETEC,SEETEC BUSINESS TECHNOLOGY CENTRE LTD,2033659959,"59,985"
Department for Work and Pensions ,Employment Programmes,05/05/2015,WP JSA 25+ SUSTAINMENT OUTCOME PAYMENT,WWEG EP SOUTH EAST SURR SUSSX AND KENT AVANTA ENTERPRISE,AVANTA ENTERPRISE,2033660631,"59,770"
Department for Work and Pensions ,Corporate,06/05/2015,POSTAGE,OPS BEN DD SERVICE CENTRE 5 - SPECIALIST OPERATIONS,ROYAL MAIL GROUP PLC,2033662275,"59,763"
Department for Work and Pensions ,Corporate,06/05/2015,AGENCY PAYMENTS TO LOCAL AUTHORITIES & PARTNERSHIPS,CHG UC PROGRAMME RECHARGES,WIGAN COUNCIL,2033661196,"59,696"
Department for Work and Pensions ,Employment Programmes,20/05/2015,INNOVATION FUND,WWEG EP NATIONAL,THINK FORWARD SOCIAL IMPACT 1 LTD,2033682533,"59,556"
Department for Work and Pensions ,Employment Programmes,05/05/2015,WP JSA 25+ SUSTAINMENT OUTCOME PAYMENT,WWEG EP WALES WORKING LINKS WALES,WORKING LINKS,2033660601,"59,340"
Department for Work and Pensions ,Housing Benefits,14/05/2015,HOUSING BENEFIT ADMINISTRATION,HB ENGLAND,PRESTON BOROUGH COUNCIL,2033673991,"59,203"
Department for Work and Pensions ,Housing Benefits,14/05/2015,HOUSING BENEFIT ADMINISTRATION,HB ENGLAND,COLCHESTER BOROUGH COUNCIL,2033674019,"59,136"
Department for Work and Pensions ,Employment Programmes,06/05/2015,WP JSA 25+ SUSTAINMENT OUTCOME PAYMENT,WWEG EP NORTH WEST GM CHES AND WARR G4S,G4S REGIONAL MANAGEMENT UK & I LTD,2033662501,"59,125"
Department for Work and Pensions ,Housing Benefits,14/05/2015,HOUSING BENEFIT ADMINISTRATION,HB WALES,BRIDGEND COUNTY BOROUGH COUNCIL,2033673959,"59,039"
Department for Work and Pensions ,Housing Benefits,14/05/2015,HOUSING BENEFIT ADMINISTRATION,HB SCOTLAND,EAST AYRSHIRE COUNCIL FINANCE DEPARTMENT,2033673899,"58,724"
Department for Work and Pensions ,Corporate,15/05/2015,PROFESSIONAL SERVICES NON VAT RECOVERABLE,OPS OPE CMG RELATIONSHIP SUPPORT,HOWELLS LLP,2033676650,"58,356"
Department for Work and Pensions ,Corporate,29/05/2015,NON PRIME PROPERTY COSTS,FG CD OPS & CMG ESTATES NON-PRIME COSTS,NORTH KESTEVEN DISTRICT COUNCIL,2033697915,"58,300"
Department for Work and Pensions ,Housing Benefits,14/05/2015,HOUSING BENEFIT ADMINISTRATION,HB ENGLAND,HARTLEPOOL BOROUGH COUNCIL,2033673915,"58,259"
Department for Work and Pensions ,Corporate,29/05/2015,PRIME FACILITY PRICE,FG CD CLARKE HOUSE,TELEREAL TRILLIUM,2033698847,"58,253"
Department for Work and Pensions ,Corporate,08/05/2015,STAFF TRAINING VAT RECOVERABLE,CIO ADC DIRECTOR,CAPITA CIVIL SERVICE LEARNING,2033665394,"58,240"
Department for Work and Pensions ,Corporate,18/05/2015,NON-TREDDS IS IT APPS DEV MANDAY,CHG UC PATHFINDER DELIVERY MANAGEMENT,IBM UNITED KINGDOM LTD,2033677934,"58,136"
Department for Work and Pensions ,Employment Programmes,15/05/2015,WP JSA 25+ SUSTAINMENT OUTCOME PAYMENT,WWEG EP EAST OF ENGLAND SEETEC,SEETEC BUSINESS TECHNOLOGY CENTRE LTD,2033676444,"58,050"
Department for Work and Pensions ,Employment Programmes,22/05/2015,WP JSA 25+ SUSTAINMENT OUTCOME PAYMENT,WWEG EP EAST OF ENGLAND SEETEC,SEETEC BUSINESS TECHNOLOGY CENTRE LTD,2033688411,"58,050"
Department for Work and Pensions ,Housing Benefits,14/05/2015,HOUSING BENEFIT ADMINISTRATION,HB ENGLAND,SOLIHULL METROPOLITAN BOROUGH COUNCIL,2033674049,"57,136"
Department for Work and Pensions ,Corporate,15/05/2015,DESKTOP SERVICES,CIO ITLR DESKTOP,HP ENTERPRISE SERVICES UK LTD,2033677192,"57,116"
Department for Work and Pensions ,Corporate,20/05/2015,STAFF TRAINING VAT RECOVERABLE,HR CONTRACTUAL L AND D,CAPITA CIVIL SERVICE LEARNING,2033683104,"56,939"
Department for Work and Pensions ,Child Maintenance and Enforcement Commission,08/05/2015,STAFF TRAINING VAT RECOVERABLE,HUMAN RESOURCES,CAPITA CIVIL SERVICE LEARNING,1000235211,"56,563"
Department for Work and Pensions ,Corporate,06/05/2015,CONTRACTORS & STAFF SUBSTITUTIONS,CIO COO IT DIRECTOR,CAPITA BUSINESS SERVICES LTD,2033661197,"56,379"
Department for Work and Pensions ,Employment Programmes,05/05/2015,WP JSA 25+ SUSTAINMENT OUTCOME PAYMENT,WWEG EP NORTH EAST AVANTA ENTERPRISE,AVANTA ENTERPRISE,2033660631,"56,330"
Department for Work and Pensions ,Corporate,14/05/2015,STAFF TRAINING VAT RECOVERABLE,HR CONTRACTUAL L AND D,CAPITA CIVIL SERVICE LEARNING,2033674456,"55,993"
Department for Work and Pensions ,Employment Programmes,05/05/2015,WP JSA 25+ SUSTAINMENT OUTCOME PAYMENT,WWEG EP WEST LONDON MAXIMUS EMPLOYMENT UK,MAXIMUS EMPLOYMENT UK LTD,2033660208,"55,900"
Department for Work and Pensions ,Housing Benefits,14/05/2015,HOUSING BENEFIT ADMINISTRATION,HB ENGLAND,BATH & NORTH EAST SOMERSET COUNCIL,2033674041,"55,833"
Department for Work and Pensions ,Corporate,28/05/2015,CONTRACTORS & STAFF SUBSTITUTIONS,CHG BTG DELIVER MOBILISE,CAPITA BUSINESS SERVICES LTD,2033694736,"55,695"
Department for Work and Pensions ,Employment Programmes,27/05/2015,WP JSA 25+ SUSTAINMENT OUTCOME PAYMENT,WWEG EP WEST LONDON MAXIMUS EMPLOYMENT UK,MAXIMUS EMPLOYMENT UK LTD,2033691884,"55,470"
Department for Work and Pensions ,Employment Programmes,08/05/2015,SUSTAINMENT FEE,REMPLOY WORK CHOICE PAYMENTS,REMPLOY LTD,2033665248,"55,411"
Department for Work and Pensions ,Employment Programmes,13/05/2015,WP JSA 25+ SUSTAINMENT OUTCOME PAYMENT,WWEG EP SOUTH EAST SURR SUSSX AND KENT AVANTA ENTERPRISE,AVANTA ENTERPRISE,2033672533,"55,255"
Department for Work and Pensions ,Employment Programmes,08/05/2015,WP JSA 25+ SUSTAINMENT OUTCOME PAYMENT,WWEG EP SCOTLAND WORKING LINKS,WORKING LINKS,2033665071,"55,255"
Department for Work and Pensions ,Housing Benefits,14/05/2015,HOUSING BENEFIT ADMINISTRATION,HB ENGLAND,SWALE BOROUGH COUNCIL,2033674143,"55,233"
Department for Work and Pensions ,Corporate,19/05/2015,AMS STAT MANDAYS,CIO ITLR AMS,HP ENTERPRISE SERVICES UK LTD,2033682238,"55,097"
Department for Work and Pensions ,Employment Programmes,11/05/2015,WP JSA 25+ SUSTAINMENT OUTCOME PAYMENT,WWEG EP EAST MIDLANDS INGEUS UK,INGEUS UK LTD,2033666254,"55,040"
Department for Work and Pensions ,Housing Benefits,14/05/2015,HOUSING BENEFIT ADMINISTRATION,HB ENGLAND,CITY OF YORK COUNCIL,2033673986,"54,875"
Department for Work and Pensions ,Employment Programmes,21/05/2015,RESIDENTIAL TRAINING COSTS,WWEG EP DELIVERY WELFARE TO WORK PRODUCT SUPPORT,DONCASTER DEAF TRUST,2033684880,"54,705"
Department for Work and Pensions ,Employment Programmes,22/05/2015,WP JSA 25+ SUSTAINMENT OUTCOME PAYMENT,WWEG EP NORTH WEST MERS HAL CUMB AND LANCS A4E,A4E LTD,2033688492,"54,610"
Department for Work and Pensions ,Employment Programmes,05/05/2015,WP JSA 25+ SUSTAINMENT OUTCOME PAYMENT,WWEG EP SOUTH EAST TV HANTS AND IOW MAXIMUS EMPLOYMENT,MAXIMUS EMPLOYMENT UK LTD,2033660208,"54,395"
Department for Work and Pensions ,Employment Programmes,05/05/2015,WP JSA 25+ SUSTAINMENT OUTCOME PAYMENT,WWEG EP W MIDLANDS BIRM SOL BC NEWCASTLE COLLEGE GROUP,NEWCASTLE COLLEGE GROUP,2033660135,"54,395"
Department for Work and Pensions ,Employment Programmes,08/05/2015,WP JSA 25+ SUSTAINMENT OUTCOME PAYMENT,WWEG EP NORTH WEST GM CHES AND WARR AVANTA ENTERPRISE,AVANTA ENTERPRISE,2033665692,"54,180"
Department for Work and Pensions ,Employment Programmes,13/05/2015,WP JSA 25+ SUSTAINMENT OUTCOME PAYMENT,WWEG EP EAST LONDON SEETEC,SEETEC BUSINESS TECHNOLOGY CENTRE LTD,2033671569,"53,965"
Department for Work and Pensions ,Corporate,14/05/2015,STAFF TRAINING VAT RECOVERABLE,CIO IT CYBER SECURITY,CAPITA CIVIL SERVICE LEARNING,2033674456,"53,777"
Department for Work and Pensions ,Employment Programmes,22/05/2015,WP JSA 25+ SUSTAINMENT OUTCOME PAYMENT,WWEG EP EAST LONDON A4E,A4E LTD,2033688492,"53,535"
Department for Work and Pensions ,Employment Programmes,11/05/2015,WP JSA 25+ SUSTAINMENT OUTCOME PAYMENT,WWEG EP NORTH EAST INGEUS UK,INGEUS UK LTD,2033666254,"53,535"
Department for Work and Pensions ,Corporate,26/05/2015,NON-TREDDS IS IT APPS DEV MANDAY,CIO GG CORE,ATOS ORIGIN IT SERVICES UK LTD,2033689536,"53,490"
Department for Work and Pensions ,Corporate,12/05/2015,RENEWALS OF SOFTWARE SUPPORT AND MAINTENANCE,COMMS OTHER,SPECIALIST COMPUTER CENTRES PLC,2033669075,"53,421"
Department for Work and Pensions ,Housing Benefits,14/05/2015,HOUSING BENEFIT ADMINISTRATION,HB ENGLAND,SOUTH SOMERSET DISTRICT COUNCIL,2033674001,"53,420"
Department for Work and Pensions ,Employment Programmes,15/05/2015,WP JSA 25+ SUSTAINMENT OUTCOME PAYMENT,WWEG EP NORTH WEST MERS HAL CUMB AND LANCS INGEUS UK,INGEUS UK LTD,2033676395,"53,320"
Department for Work and Pensions ,Housing Benefits,14/05/2015,HOUSING BENEFIT ADMINISTRATION,HB ENGLAND,OXFORD CITY COUNCIL,2033673854,"53,306"
Department for Work and Pensions ,Corporate,19/05/2015,RENEWALS OF SOFTWARE SUPPORT AND MAINTENANCE,CIO ITLR HOSTING DEL P,HP ENTERPRISE SERVICES UK LTD,2033682238,"52,974"
Department for Work and Pensions ,Housing Benefits,14/05/2015,HOUSING BENEFIT ADMINISTRATION,HB ENGLAND,GREAT YARMOUTH COUNCIL,2033673851,"52,915"
Department for Work and Pensions ,Housing Benefits,14/05/2015,HOUSING BENEFIT ADMINISTRATION,HB ENGLAND,HASTINGS BOROUGH COUNCIL,2033673957,"52,811"
Department for Work and Pensions ,Housing Benefits,14/05/2015,HOUSING BENEFIT ADMINISTRATION,HB ENGLAND,ARUN DISTRICT COUNCIL,2033673942,"52,782"
Department for Work and Pensions ,Employment Programmes,15/05/2015,WP JSA 25+ SUSTAINMENT OUTCOME PAYMENT,WWEG EP EAST LONDON CAREERS DEVELOPMENT GROUP,CAREERS DEVELOPMENT GROUP,2033677081,"52,675"
Department for Work and Pensions ,Employment Programmes,21/05/2015,INNOVATION FUND,WWEG EP NATIONAL,LINKS 4 LIFE LTD,2033686510,"52,518"
Department for Work and Pensions ,Employment Programmes,15/05/2015,WP JSA 25+ SUSTAINMENT OUTCOME PAYMENT,WWEG EP EAST MIDLANDS INGEUS UK,INGEUS UK LTD,2033676395,"52,460"
Department for Work and Pensions ,Housing Benefits,14/05/2015,HOUSING BENEFIT ADMINISTRATION,HB ENGLAND,HEREFORDSHIRE COUNCIL,2033673880,"52,424"
Department for Work and Pensions ,Housing Benefits,14/05/2015,HOUSING BENEFIT ADMINISTRATION,HB ENGLAND,EAST LINDSEY DISTRICT COUNCIL,2033673997,"52,072"
Department for Work and Pensions ,Employment Programmes,05/05/2015,WP JSA 25+ SUSTAINMENT OUTCOME PAYMENT,WWEG EP SOUTH EAST TV HANTS AND IOW A4E,A4E LTD,2033660434,"52,030"
Department for Work and Pensions ,Employment Programmes,13/05/2015,WP JSA 25+ SUSTAINMENT OUTCOME PAYMENT,WWEG EP EAST OF ENGLAND SEETEC,SEETEC BUSINESS TECHNOLOGY CENTRE LTD,2033671569,"52,030"
Department for Work and Pensions ,Housing Benefits,14/05/2015,HOUSING BENEFIT ADMINISTRATION,HB ENGLAND,SCARBOROUGH BOROUGH COUNCIL,2033673815,"51,824"
Department for Work and Pensions ,Housing Benefits,14/05/2015,HOUSING BENEFIT ADMINISTRATION,HB SCOTLAND,PERTH & KINROSS COUNCIL,2033673832,"51,796"
Department for Work and Pensions ,Housing Benefits,14/05/2015,HOUSING BENEFIT ADMINISTRATION,HB ENGLAND,GLOUCESTER CITY COUNCIL,2033674128,"51,571"
Department for Work and Pensions ,Corporate,19/05/2015,NON-TREDDS APPS DEV FIXED PRICE CONTRACTS,F&C OPS FIN DEBT OPS CRU SYSTEM DEVELOPMENT,CAPGEMINI UK PLC,2033682237,"51,427"
Department for Work and Pensions ,Employment Programmes,27/05/2015,WP JSA 25+ SUSTAINMENT OUTCOME PAYMENT,WWEG EP SCOTLAND WORKING LINKS,WORKING LINKS,2033692920,"51,385"
Department for Work and Pensions ,Corporate,29/05/2015,RENEWALS OF SOFTWARE SUPPORT AND MAINTENANCE,CHG SCANNING & DIGITAL STORAGE,SPECIALIST COMPUTER CENTRES PLC,2033697339,"51,184"
Department for Work and Pensions ,Employment Programmes,15/05/2015,WP JSA 25+ SUSTAINMENT OUTCOME PAYMENT,WWEG EP EAST MIDLANDS A4E,A4E LTD,2033676511,"50,955"
Department for Work and Pensions ,Housing Benefits,14/05/2015,HOUSING BENEFIT ADMINISTRATION,HB ENGLAND,BASINGSTOKE DISTRICT COUNCIL,2033674057,"50,846"
Department for Work and Pensions ,Employment Programmes,22/05/2015,WP JSA 25+ SUSTAINMENT OUTCOME PAYMENT,WWEG EP NORTH WEST MERS HAL CUMB AND LANCS INGEUS UK,INGEUS UK LTD,2033687121,"50,740"
Department for Work and Pensions ,Housing Benefits,14/05/2015,HOUSING BENEFIT ADMINISTRATION,HB ENGLAND,LONDON BOROUGH OF RICHMOND UPON THAMES,2033674095,"50,648"
Department for Work and Pensions ,Housing Benefits,14/05/2015,HOUSING BENEFIT ADMINISTRATION,HB ENGLAND,KINGS LYNN & WEST NORFOLK BOROUGH COUNCIL,2033673875,"50,606"
Department for Work and Pensions ,Housing Benefits,14/05/2015,HOUSING BENEFIT ADMINISTRATION,HB ENGLAND,CRAWLEY BOROUGH COUNCIL,2033673782,"50,563"
Department for Work and Pensions ,Employment Programmes,15/05/2015,WP JSA 25+ SUSTAINMENT OUTCOME PAYMENT,WWEG EP EAST LONDON A4E,A4E LTD,2033676511,"50,525"
Department for Work and Pensions ,Employment Programmes,27/05/2015,INNOVATION FUND,WWEG EP NATIONAL,PREVISTA LTD,2033692388,"50,353"
Department for Work and Pensions ,European Social Fund,05/05/2015,MA ESF(D) PROGRAMME EXPENDITURE EC PREFUNDED L A's,WWEG EUROPEAN SOCIAL FUND PROGRAMME 2007-2013,OXFORD CITY COUNCIL,5000001841,"50,202"
Department for Work and Pensions ,Housing Benefits,14/05/2015,HOUSING BENEFIT ADMINISTRATION,HB SCOTLAND,INVERCLYDE DISTRICT COUNCIL,2033673898,"50,176"
Department for Work and Pensions ,Employment Programmes,13/05/2015,WP JSA 25+ SUSTAINMENT OUTCOME PAYMENT,WWEG EP NORTH EAST AVANTA ENTERPRISE,AVANTA ENTERPRISE,2033672533,"49,880"
Department for Work and Pensions ,Employment Programmes,15/05/2015,WP JSA 25+ SUSTAINMENT OUTCOME PAYMENT,WWEG EP NORTH EAST INGEUS UK,INGEUS UK LTD,2033676395,"49,665"
Department for Work and Pensions ,Housing Benefits,14/05/2015,HOUSING BENEFIT ADMINISTRATION,HB ENGLAND,DACORUM BOROUGH COUNCIL,2033674037,"49,601"
Department for Work and Pensions ,Housing Benefits,14/05/2015,HOUSING BENEFIT ADMINISTRATION,HB ENGLAND,WAVENEY DISTRICT COUNCIL,2033673795,"49,545"
Department for Work and Pensions ,Child Maintenance and Enforcement Commission,28/05/2015,NON-TREDDS IS IT SERVICES (AMS),NEW SCHEME TCS RESOURCE,TATA CONSULTANCY SERVICES LTD,1000236616,"49,530"
Department for Work and Pensions ,Employment Programmes,05/05/2015,WP JSA 25+ SUSTAINMENT OUTCOME PAYMENT,WWEG EP NORTH WEST GM CHES AND WARR AVANTA ENTERPRISE,AVANTA ENTERPRISE,2033660631,"49,450"
Department for Work and Pensions ,Employment Programmes,11/05/2015,WP JSA 25+ SUSTAINMENT OUTCOME PAYMENT,WWEG EP WEST LONDON MAXIMUS EMPLOYMENT UK,MAXIMUS EMPLOYMENT UK LTD,2033666260,"49,450"
Department for Work and Pensions ,Corporate,27/05/2015,PRINTING/BINDING,FG CD CORPORATE CHARGES,XEROX UK LTD 3W,2033694367,"49,407"
Department for Work and Pensions ,Employment Programmes,05/05/2015,WP JSA 25+ SUSTAINMENT OUTCOME PAYMENT,WWEG EP WEST YORKSHIRE INGEUS UK,INGEUS UK LTD,2033660603,"49,235"
Department for Work and Pensions ,Employment Programmes,27/05/2015,WP JSA 25+ SUSTAINMENT OUTCOME PAYMENT,WWEG EP SOUTH EAST TV HANTS AND IOW MAXIMUS EMPLOYMENT,MAXIMUS EMPLOYMENT UK LTD,2033691884,"49,235"
Department for Work and Pensions ,Employment Programmes,22/05/2015,WP JSA 25+ SUSTAINMENT OUTCOME PAYMENT,WWEG EP EAST LONDON SEETEC,SEETEC BUSINESS TECHNOLOGY CENTRE LTD,2033688411,"49,235"
Department for Work and Pensions ,Corporate,06/05/2015,SOFTWARE LICENCES GREATER THAN ONE YEAR TERM,CIO ADC DIRECTOR,SPECIALIST COMPUTER CENTRES PLC,2033661183,"49,201"
Department for Work and Pensions ,Corporate,14/05/2015,STAFF RELATED COSTS,STR ANALYSIS CAD,HM REVENUE & CUSTOMS,2005437,"49,200"
Department for Work and Pensions ,Housing Benefits,14/05/2015,HOUSING BENEFIT ADMINISTRATION,HB ENGLAND,LANCASTER CITY COUNCIL,2033673890,"49,034"
Department for Work and Pensions ,Employment Programmes,22/05/2015,WP JSA 25+ SUSTAINMENT OUTCOME PAYMENT,WWEG EP NORTH EAST INGEUS UK,INGEUS UK LTD,2033687121,"49,020"
Department for Work and Pensions ,Employment Programmes,08/05/2015,ESF 2011-13 SUPPORT FOR FAMILIES WITH MULTIPLE PROBLEMS JSA CUSTOMERS JOB OUTCOME PAYMENT,CPA12 YORKS AND HUMBER EOS WORKS LTD FORMERLY FOURSTAR,AVANTA ENTERPRISE LTD,2033665905,"48,951"
Department for Work and Pensions ,Employment Programmes,15/05/2015,WP JSA 25+ SUSTAINMENT OUTCOME PAYMENT,WWEG EP NORTH WEST MERS HAL CUMB AND LANCS A4E,A4E LTD,2033676511,"48,590"
Department for Work and Pensions ,Employment Programmes,13/05/2015,WP JSA 25+ SUSTAINMENT OUTCOME PAYMENT,WWEG EP NORTH WEST GM CHES AND WARR AVANTA ENTERPRISE,AVANTA ENTERPRISE,2033672533,"48,590"
Department for Work and Pensions ,Housing Benefits,14/05/2015,HOUSING BENEFIT ADMINISTRATION,HB ENGLAND,DARLINGTON BOROUGH COUNCIL,2033674022,"48,495"
Department for Work and Pensions ,Housing Benefits,14/05/2015,HOUSING BENEFIT ADMINISTRATION,HB ENGLAND,BRAINTREE DISTRICT COUNCIL,2033673911,"48,335"
Department for Work and Pensions ,Employment Programmes,13/05/2015,WP JSA 25+ SUSTAINMENT OUTCOME PAYMENT,WWEG EP W MIDLANDS COV WARW STAFFS AND MARCHES SERCO,SERCO LTD,2033671584,"48,160"
Department for Work and Pensions ,Housing Benefits,14/05/2015,HOUSING BENEFIT ADMINISTRATION,HB ENGLAND,POOLE BOROUGH COUNCIL,2033673980,"48,063"
Department for Work and Pensions ,Corporate,19/05/2015,NON-TREDDS IS IT APPS DEV MANDAY,CHG UC DESIGN & BUILD PROGRAMME MANAGER,IBM UNITED KINGDOM LTD,2033681381,"48,022"
Department for Work and Pensions ,Employment Programmes,05/05/2015,WP JSA 25+ SUSTAINMENT OUTCOME PAYMENT,WWEG EP NORTH WEST GM CHES AND WARR SEETEC,SEETEC BUSINESS TECHNOLOGY CENTRE LTD,2033659959,"47,945"
Department for Work and Pensions ,Housing Benefits,14/05/2015,HOUSING BENEFIT ADMINISTRATION,HB ENGLAND,BURNLEY BOROUGH COUNCIL,2033674064,"47,914"
Department for Work and Pensions ,Housing Benefits,14/05/2015,HOUSING BENEFIT ADMINISTRATION,HB ENGLAND,HUNTINGDON DISTRICT COUNCIL,2033673821,"47,907"
Department for Work and Pensions ,Corporate,20/05/2015,NON PRIME UTILITIES,FG CD DWP GAS & ELECTRICITY PAYMENTS / RECHARGES,BRITISH GAS BUSINESS SCC UTILITIES ONLY,2033683917,"47,874"
Department for Work and Pensions ,Housing Benefits,14/05/2015,HOUSING BENEFIT ADMINISTRATION,HB ENGLAND,CHESTERFIELD BOROUGH COUNCIL,2033673917,"47,732"
Department for Work and Pensions ,Housing Benefits,14/05/2015,HOUSING BENEFIT ADMINISTRATION,HB WALES,WREXHAM COUNTY BOROUGH COUNCIL,2033674063,"47,676"
Department for Work and Pensions ,Housing Benefits,14/05/2015,HOUSING BENEFIT ADMINISTRATION,HB SCOTLAND,SOUTH AYRSHIRE COUNCIL,2033673970,"47,586"
Department for Work and Pensions ,Housing Benefits,14/05/2015,HOUSING BENEFIT ADMINISTRATION,HB ENGLAND,ROYAL BOROUGH OF KINGSTON UPON THAMES,2033674091,"47,542"
Department for Work and Pensions ,Corporate,19/05/2015,APPS DEV INDEX ARR,CHG UC PATHFINDER DELIVERY MANAGEMENT,HP ENTERPRISE SERVICES UK LTD,2033682238,"47,184"
Department for Work and Pensions ,Housing Benefits,14/05/2015,HOUSING BENEFIT ADMINISTRATION,HB ENGLAND,HARLOW DISTRICT COUNCIL,2033674014,"47,029"
Department for Work and Pensions ,Corporate,11/05/2015,NON-TREDDS IS IT CONSULTANCY (HOSTING) NON ADVICE,CIO ITLR DIGITAL TOWER DEL P,ATKINS LTD,2033666233,"46,971"
Department for Work and Pensions ,Housing Benefits,14/05/2015,HOUSING BENEFIT ADMINISTRATION,HB ENGLAND,CANTERBURY CITY COUNCIL,2033674123,"46,806"
Department for Work and Pensions ,Housing Benefits,14/05/2015,HOUSING BENEFIT ADMINISTRATION,HB ENGLAND,EXETER CITY COUNCIL,2033673951,"46,690"
Department for Work and Pensions ,Employment Programmes,11/05/2015,WP JSA 25+ SUSTAINMENT OUTCOME PAYMENT,WWEG EP SOUTH EAST TV HANTS AND IOW MAXIMUS EMPLOYMENT,MAXIMUS EMPLOYMENT UK LTD,2033666260,"46,655"
Department for Work and Pensions ,Employment Programmes,05/05/2015,WP JSA 25+ SUSTAINMENT OUTCOME PAYMENT,WWEG EP WEST LONDON REED IN PARTNERSHIP,REED IN PARTNERSHIP LTD,2033660445,"46,655"
Department for Work and Pensions ,Employment Programmes,15/05/2015,WP JSA 25+ SUSTAINMENT OUTCOME PAYMENT,WWEG EP EAST LONDON SEETEC,SEETEC BUSINESS TECHNOLOGY CENTRE LTD,2033676444,"46,655"
Department for Work and Pensions ,Housing Benefits,14/05/2015,HOUSING BENEFIT ADMINISTRATION,HB ENGLAND,MAIDSTONE BOROUGH COUNCIL,2033674140,"46,548"
Department for Work and Pensions ,Housing Benefits,14/05/2015,HOUSING BENEFIT ADMINISTRATION,HB ENGLAND,NUNEATON BOROUGH COUNCIL,2033673777,"46,255"
Department for Work and Pensions ,Corporate,05/05/2015,STAFF TRAINING VAT RECOVERABLE,HR CONTRACTUAL L AND D,CAPITA CIVIL SERVICE LEARNING,2033660438,"46,117"
Department for Work and Pensions ,Housing Benefits,14/05/2015,HOUSING BENEFIT ADMINISTRATION,HB ENGLAND,SHEPWAY DISTRICT COUNCIL,2033673914,"45,985"
Department for Work and Pensions ,Housing Benefits,14/05/2015,HOUSING BENEFIT ADMINISTRATION,HB ENGLAND,DOVER DISTRICT COUNCIL,2033674139,"45,736"
Department for Work and Pensions ,Employment Programmes,05/05/2015,WP JSA 25+ SUSTAINMENT OUTCOME PAYMENT,WWEG EP W MIDLANDS BIRM SOL BC FOURSTAR EMP AND SKILLS,AVANTA ENTERPRISE LTD,2033659905,"45,580"
Department for Work and Pensions ,Employment Programmes,08/05/2015,WP JSA 25+ SUSTAINMENT OUTCOME PAYMENT,WWEG EP SOUTH EAST SURR SUSSX AND KENT AVANTA ENTERPRISE,AVANTA ENTERPRISE,2033665692,"45,365"
Department for Work and Pensions ,Employment Programmes,19/05/2015,WP JSA 25+ SUSTAINMENT OUTCOME PAYMENT,WWEG EP SOUTH EAST SURR SUSSX AND KENT AVANTA ENTERPRISE,AVANTA ENTERPRISE,2033682099,"45,365"
Department for Work and Pensions ,Housing Benefits,14/05/2015,HOUSING BENEFIT ADMINISTRATION,HB ENGLAND,MANSFIELD DISTRICT COUNCIL,2033673940,"45,244"
Department for Work and Pensions ,Housing Benefits,14/05/2015,HOUSING BENEFIT ADMINISTRATION,HB ENGLAND,CHELMSFORD BOROUGH COUNCIL,2033674009,"45,224"
Department for Work and Pensions ,Corporate,18/05/2015,NON PRIME PROPERTY COSTS,FG CD OPS & CMG ESTATES NON-PRIME COSTS,COPELAND BOROUGH COUNCIL,2033678616,"45,167"
Department for Work and Pensions ,Corporate,27/05/2015,STAFF TRAINING VAT RECOVERABLE,HR CONTRACTUAL L AND D,CAPITA CIVIL SERVICE LEARNING,2033694014,"45,042"
Department for Work and Pensions ,Housing Benefits,14/05/2015,HOUSING BENEFIT ADMINISTRATION,HB WALES,PEMBROKESHIRE COUNTY COUNCIL,2033673998,"44,736"
Department for Work and Pensions ,Employment Programmes,11/05/2015,WP JSA 25+ SUSTAINMENT OUTCOME PAYMENT,WWEG EP WEST YORKSHIRE INGEUS UK,INGEUS UK LTD,2033666254,"44,720"
Department for Work and Pensions ,Corporate,15/05/2015,INCOME FROM OUTSIDE BODIES,FG INTERNAL AUDIT,HEALTH & SAFETY EXECUTIVE,2033677778,"44,593"
Department for Work and Pensions ,Housing Benefits,14/05/2015,HOUSING BENEFIT ADMINISTRATION,HB SCOTLAND,SCOTTISH BORDERS COUNCIL,2033673913,"44,370"
Department for Work and Pensions ,Housing Benefits,14/05/2015,HOUSING BENEFIT ADMINISTRATION,HB WALES,FLINTSHIRE COUNTY COUNCIL,2033673944,"44,226"
Department for Work and Pensions ,Corporate,14/05/2015,LOCAL AUTHORITY (LA) ANTI FRAUD INCENTIVES,CHG HB FRAUD & ERROR REDUCTION,LONDON BOROUGH OF SOUTHWARK,2033675297,"44,038"
Department for Work and Pensions ,Housing Benefits,14/05/2015,HOUSING BENEFIT ADMINISTRATION,HB ENGLAND,WYCOMBE DISTRICT COUNCIL,2033673803,"44,015"
Department for Work and Pensions ,Housing Benefits,14/05/2015,HOUSING BENEFIT ADMINISTRATION,HB ENGLAND,EASTBOURNE BOROUGH COUNCIL,2033674004,"43,874"
Department for Work and Pensions ,Employment Programmes,22/05/2015,WP JSA 25+ SUSTAINMENT OUTCOME PAYMENT,WWEG EP EAST MIDLANDS A4E,A4E LTD,2033688492,"43,860"
Department for Work and Pensions ,Corporate,28/05/2015,CONTRACTORS & STAFF SUBSTITUTIONS,CHG DIGITAL ACADEMY,CAPITA BUSINESS SERVICES LTD,2033694736,"43,657"
Department for Work and Pensions ,Corporate,06/05/2015,POSTAGE,FG HS HDAS NON CONTRACT,ROYAL MAIL GROUP PLC,2033662275,"43,646"
Department for Work and Pensions ,Employment Programmes,13/05/2015,WP JSA 25+ SUSTAINMENT OUTCOME PAYMENT,WWEG EP NORTH WEST GM CHES AND WARR SEETEC,SEETEC BUSINESS TECHNOLOGY CENTRE LTD,2033671569,"43,645"
Department for Work and Pensions ,Employment Programmes,05/05/2015,WP JSA 25+ SUSTAINMENT OUTCOME PAYMENT,WWEG EP EAST LONDON CAREERS DEVELOPMENT GROUP,CAREERS DEVELOPMENT GROUP,2033659758,"43,430"
Department for Work and Pensions ,Corporate,29/05/2015,PRIME FACILITY PRICE,FG CD TOMLINSON HOUSE,TELEREAL TRILLIUM,2033698847,"43,422"
Department for Work and Pensions ,Housing Benefits,14/05/2015,HOUSING BENEFIT ADMINISTRATION,HB SCOTLAND,ANGUS COUNCIL,2033673883,"43,406"
Department for Work and Pensions ,Housing Benefits,14/05/2015,HOUSING BENEFIT ADMINISTRATION,HB ENGLAND,LINCOLN CITY COUNCIL,2033673830,"43,396"
Department for Work and Pensions ,Corporate,28/05/2015,CONTRACTORS & STAFF SUBSTITUTIONS,CHG DIGITALISATION PROG DIRECTOR & PMO,CAPITA BUSINESS SERVICES LTD,2033694736,"43,249"
Department for Work and Pensions ,Employment Programmes,11/05/2015,WP JSA 25+ SUSTAINMENT OUTCOME PAYMENT,WWEG EP NORTH WEST GM CHES AND WARR G4S,G4S REGIONAL MANAGEMENT UK & I LTD,2033666675,"43,215"
Department for Work and Pensions ,Corporate,05/05/2015,NON PRIME PROPERTY COSTS,FG CD OPS & CMG ESTATES NON-PRIME COSTS,COPELAND BOROUGH COUNCIL,2033660321,"43,175"
Department for Work and Pensions ,Employment Programmes,18/05/2015,INNOVATION FUND,WWEG EP NATIONAL,INDIGO PROJECT SOLUTIONS LTD,2033678187,"43,050"
Department for Work and Pensions ,Employment Programmes,11/05/2015,WP JSA 25+ SUSTAINMENT OUTCOME PAYMENT,WWEG EP WEST LONDON INGEUS UK,INGEUS UK LTD,2033666254,"43,000"
Department for Work and Pensions ,Corporate,15/05/2015,SIAM FIXED PRICE CONTRACTS,CIO ITLR DIGITAL TOWER DEL P,HP LTD,2033677665,"42,895"
Department for Work and Pensions ,Housing Benefits,14/05/2015,HOUSING BENEFIT ADMINISTRATION,HB ENGLAND,BRECKLAND DISTRICT COUNCIL,2033673849,"42,890"
Department for Work and Pensions ,Housing Benefits,14/05/2015,HOUSING BENEFIT ADMINISTRATION,HB ENGLAND,AYLESBURY VALE DISTRICT COUNCIL,2033673818,"42,877"
Department for Work and Pensions ,Housing Benefits,14/05/2015,HOUSING BENEFIT ADMINISTRATION,HB ENGLAND,NORTH HERTFORDSHIRE DISTRICT COUNCIL,2033674092,"42,768"
Department for Work and Pensions ,Corporate,20/05/2015,LOCAL AUTHORITY (LA) ANTI FRAUD INCENTIVES,CHG HB FRAUD & ERROR REDUCTION,SHEFFIELD CITY COUNCIL,2033682793,"42,695"
Department for Work and Pensions ,Corporate,06/05/2015,AGENCY PAYMENTS TO LOCAL AUTHORITIES & PARTNERSHIPS,CHG UC PROGRAMME RECHARGES,BLACKPOOL COUNCIL,2033661901,"42,500"
Department for Work and Pensions ,Housing Benefits,14/05/2015,HOUSING BENEFIT ADMINISTRATION,HB WALES,CONWY COUNTY BOROUGH  COUNCIL,2033673791,"42,422"
Department for Work and Pensions ,Employment Programmes,08/05/2015,WP JSA 25+ JOB OUTCOME PAYMENTWP JSA 25+ JOB OUTCOME PAYMENT,WWEG EP W MIDLANDS COV WARW STAFFS AND MARCHES SERCO,SERCO LTD,2033665758,"42,120"
Department for Work and Pensions ,Housing Benefits,14/05/2015,HOUSING BENEFIT ADMINISTRATION,HB WALES,POWYS COUNTY COUNCIL,2033673856,"42,086"
Department for Work and Pensions ,Housing Benefits,14/05/2015,HOUSING BENEFIT ADMINISTRATION,HB WALES,GWYNEDD COUNCIL,2033674110,"42,026"
Department for Work and Pensions ,Housing Benefits,14/05/2015,HOUSING BENEFIT ADMINISTRATION,HB ENGLAND,CHARNWOOD BOROUGH COUNCIL,2033673790,"42,003"
Department for Work and Pensions ,Employment Programmes,07/05/2015,INNOVATION FUND,WWEG EP NATIONAL,3SC,2033664142,"41,796"
Department for Work and Pensions ,Housing Benefits,14/05/2015,HOUSING BENEFIT ADMINISTRATION,HB ENGLAND,TEIGNBRIDGE DISTRICT COUNCIL,2033674036,"41,767"
Department for Work and Pensions ,Employment Programmes,05/05/2015,WP JSA 25+ SUSTAINMENT OUTCOME PAYMENT,WWEG EP SOUTH EAST SURR SUSSX AND KENT G4S,G4S REGIONAL MANAGEMENT UK & I LTD,2033660727,"41,710"
Department for Work and Pensions ,Employment Programmes,22/05/2015,WP JSA 25+ SUSTAINMENT OUTCOME PAYMENT,WWEG EP EAST MIDLANDS INGEUS UK,INGEUS UK LTD,2033687121,"41,710"
Department for Work and Pensions ,Housing Benefits,14/05/2015,HOUSING BENEFIT ADMINISTRATION,HB ENGLAND,SEDGEMOOR DISTRICT COUNCIL,2033673936,"41,511"
Department for Work and Pensions ,Corporate,11/05/2015,CONTRACTED OUT ACCOUNTING SERVICES,FG SHARED SERVICES COSTS,SHARED SERVICES CONNECTED LTD,2033666694,"41,392"
Department for Work and Pensions ,Employment Programmes,08/05/2015,WP JSA 25+ SUSTAINMENT OUTCOME PAYMENT,WWEG EP S WEST DEV COR DOR AND SOM PROSPECTS SERVICES,PROSPECTS SERVICES LTD,2033665383,"41,280"
Department for Work and Pensions ,Corporate,06/05/2015,STAFF TRAINING VAT RECOVERABLE,HR CONTRACTUAL L AND D,CAPITA CIVIL SERVICE LEARNING,2033661796,"41,200"
Department for Work and Pensions ,Housing Benefits,14/05/2015,HOUSING BENEFIT ADMINISTRATION,HB WALES,TORFAEN BOROUGH COUNCIL,2033673843,"41,105"
Department for Work and Pensions ,Housing Benefits,14/05/2015,HOUSING BENEFIT ADMINISTRATION,HB ENGLAND,WYRE BOROUGH COUNCIL,2033673888,"41,074"
Department for Work and Pensions ,Employment Programmes,22/05/2015,WP JSA 25+ SUSTAINMENT OUTCOME PAYMENT,WWEG EP SCOTLAND WORKING LINKS,WORKING LINKS,2033687005,"41,065"
Department for Work and Pensions ,Corporate,12/05/2015,FSF - REMOVING OTHER BARRIERS TO WORK  - JSA JOBSEEKERS,OPS WDC WSD SE DEVON CORNWALL & SOMERSET DISTRICT,CAREERS SOUTH WEST LTD,2033668922,"40,826"
Department for Work and Pensions ,European Social Fund,06/05/2015,MA ESF(D) PROGRAMME EXPENDITURE EC PREFUNDED L A's,WWEG EUROPEAN SOCIAL FUND PROGRAMME 2007-2013,CORNWALL COLLEGE,2033662550,"40,673"
Department for Work and Pensions ,Employment Programmes,18/05/2015,INNOVATION FUND,WWEG EP NATIONAL,ADVANCED PERSONNEL MANAGEMENT,2033678186,"40,416"
Department for Work and Pensions ,Housing Benefits,14/05/2015,HOUSING BENEFIT ADMINISTRATION,HB ENGLAND,PENDLE BOROUGH COUNCIL,2033673958,"40,402"
Department for Work and Pensions ,Housing Benefits,14/05/2015,HOUSING BENEFIT ADMINISTRATION,HB ENGLAND,BASSETLAW DISTRICT COUNCIL,2033673947,"40,399"
Department for Work and Pensions ,Housing Benefits,14/05/2015,HOUSING BENEFIT ADMINISTRATION,HB ENGLAND,NEWCASTLE UNDER LYME BOROUGH COUNCIL,2033674026,"40,336"
Department for Work and Pensions ,Housing Benefits,14/05/2015,HOUSING BENEFIT ADMINISTRATION,HB ENGLAND,HYNDBURN BOROUGH COUNCIL,2033673786,"40,308"
Department for Work and Pensions ,Employment Programmes,05/05/2015,WP JSA 25+ SUSTAINMENT OUTCOME PAYMENT,WWEG EP WEST YORKSHIRE BEST LTD,INTERSERVE WORKING FUTURES,2033659870,"40,205"
Department for Work and Pensions ,Housing Benefits,14/05/2015,HOUSING BENEFIT ADMINISTRATION,HB ENGLAND,SOUTH KESTEVEN DISTRICT COUNCIL,2033673847,"40,153"
Department for Work and Pensions ,Corporate,18/05/2015,NON-TREDDS IS IT APPS DEV MANDAY,CIO CIS INFRASTRUCTURE,IBM UNITED KINGDOM LTD,2033677934,"40,145"
Department for Work and Pensions ,Housing Benefits,14/05/2015,HOUSING BENEFIT ADMINISTRATION,HB ENGLAND,CAMBRIDGE CITY COUNCIL,2033673891,"40,039"
Department for Work and Pensions ,Corporate,05/05/2015,FSF - PARTNERSHIP GRANTS - TO HELP SICK/DISABLED CLIENTS INTO WORK,OPS WDC WSD NW MERSEYSIDE BUSINESS DEVELOPMENT TEAM,WIRRAL COUNCIL,2033660188,"40,000"
Department for Work and Pensions ,Employment Programmes,08/05/2015,WP JSA 25+ SUSTAINMENT OUTCOME PAYMENT,WWEG EP EAST LONDON CAREERS DEVELOPMENT GROUP,CAREERS DEVELOPMENT GROUP,2033665573,"39,990"
Department for Work and Pensions ,Housing Benefits,14/05/2015,HOUSING BENEFIT ADMINISTRATION,HB ENGLAND,NEW FOREST DISTRICT COUNCIL,2033674079,"39,959"
Department for Work and Pensions ,Child Maintenance and Enforcement Commission,19/05/2015,TREDDS APPS DEV MANDAYS,FS PHASE 2 - HPES COSTS,HP ENTERPRISE SERVICES UK LTD,1000236073,"39,830"
Department for Work and Pensions ,Housing Benefits,14/05/2015,HOUSING BENEFIT ADMINISTRATION,HB WALES,DENBIGHSHIRE COUNTY COUNCIL,2033673989,"39,746"
Department for Work and Pensions ,Corporate,19/05/2015,FSF - PARTNERSHIP GRANTS - TO HELP JSA CLIENTS INTO WORK,OPS WDC WSD LN NORTH LONDON DISTRICT OFFICE,THE SPRINGBOARD CHARITY,2033681186,"39,723"
Department for Work and Pensions ,Employment Programmes,15/05/2015,WP JSA 25+ SUSTAINMENT OUTCOME PAYMENT,WWEG EP WEST YORKSHIRE INGEUS UK,INGEUS UK LTD,2033676395,"39,345"
Department for Work and Pensions ,Corporate,07/05/2015,NETWORK SERVICES,CIO ITLR NETWORK,HUTCHINSON 3G UK LTD,2033664335,"39,171"
Department for Work and Pensions ,Corporate,15/05/2015,FSF - PARTNERSHIP GRANTS - TO HELP JSA CLIENTS INTO WORK,OPS WDC WSD SC EAST AND SOUTH EAST SCOTLAND DO,RAPLOCH URBAN REGENERATION COMPANY LTD,2033677247,"39,083"
Department for Work and Pensions ,Housing Benefits,14/05/2015,HOUSING BENEFIT ADMINISTRATION,HB ENGLAND,ASHFORD BOROUGH COUNCIL,2033674122,"39,068"
Department for Work and Pensions ,Corporate,01/05/2015,CREDIT UNION NEW MEMBERSHIP GROWTH,CHG CREDIT UNION EXPANSION AND DEVELOPMENT DELP,THE ASSOCIATION OF BRITISH CREDIT UNIONS LTD,2033658190,"38,877"
Department for Work and Pensions ,Housing Benefits,14/05/2015,HOUSING BENEFIT ADMINISTRATION,HB ENGLAND,STEVENAGE BOROUGH COUNCIL,2033674102,"38,766"
Department for Work and Pensions ,Employment Programmes,08/05/2015,WP JSA 25+ SUSTAINMENT OUTCOME PAYMENT,WWEG EP SOUTH EAST TV HANTS AND IOW A4E,A4E LTD,2033666061,"38,700"
Department for Work and Pensions ,Employment Programmes,08/05/2015,WP JSA 25+ SUSTAINMENT OUTCOME PAYMENT,WWEG EP NORTH EAST AVANTA ENTERPRISE,AVANTA ENTERPRISE,2033665692,"38,700"
Department for Work and Pensions ,Housing Benefits,14/05/2015,HOUSING BENEFIT ADMINISTRATION,HB ENGLAND,AMBER VALLEY BOROUGH COUNCIL,2033673771,"38,575"
Department for Work and Pensions ,Housing Benefits,14/05/2015,HOUSING BENEFIT ADMINISTRATION,HB ENGLAND,GRAVESHAM BOROUGH COUNCIL,2033673964,"38,567"
Department for Work and Pensions ,Corporate,15/05/2015,AMS SERVICES,CIO ITLR AMS,HP ENTERPRISE SERVICES UK LTD,2033677192,"38,542"
Department for Work and Pensions ,Housing Benefits,14/05/2015,HOUSING BENEFIT ADMINISTRATION,HB WALES,VALE OF GLAMORGAN COUNCIL,2033674124,"38,421"
Department for Work and Pensions ,Employment Programmes,05/05/2015,WP JSA 25+ JOB OUTCOME PAYMENTWP JSA 25+ JOB OUTCOME PAYMENT,WWEG EP SCOTLAND WORKING LINKS,WORKING LINKS,2033660601,"38,304"
Department for Work and Pensions ,Corporate,14/05/2015,COURIER COSTS,FG CD COURIER,TNT UK LTD,2033675809,"38,156"
Department for Work and Pensions ,Corporate,06/05/2015,POSTAGE,FG CD NEWCASTLE ESTATE,ROYAL MAIL GROUP PLC,2033662275,"38,147"
Department for Work and Pensions ,Corporate,21/05/2015,FSF - EQUIPMENT TO START WORK  - JSA JOBSEEKERS,OPS WDC WSD NE WEST YORKSHIRE DISTRICT OFFICE,WEST YORKSHIRE COMBINED AUTHORITY,2033685626,"38,123"
Department for Work and Pensions ,Housing Benefits,14/05/2015,HOUSING BENEFIT ADMINISTRATION,HB ENGLAND,WEST BERKSHIRE COUNCIL,2033674097,"37,981"
Department for Work and Pensions ,Housing Benefits,14/05/2015,HOUSING BENEFIT ADMINISTRATION,HB ENGLAND,TAUNTON DEANE BOROUGH COUNCIL,2033673999,"37,956"
Department for Work and Pensions ,Housing Benefits,14/05/2015,HOUSING BENEFIT ADMINISTRATION,HB ENGLAND,HAVANT BOROUGH COUNCIL,2033674015,"37,904"
Department for Work and Pensions ,Housing Benefits,14/05/2015,HOUSING BENEFIT ADMINISTRATION,HB ENGLAND,FENLAND DISTRICT COUNCIL,2033673984,"37,892"
Department for Work and Pensions ,Employment Programmes,05/05/2015,WP JSA NEET SUSTAINMENT OUTCOME PAYMENT,WWEG EP EAST MIDLANDS A4E,A4E LTD,2033660434,"37,750"
Department for Work and Pensions ,Employment Programmes,05/05/2015,WP JSA 25+ SUSTAINMENT OUTCOME PAYMENT,WWEG EP W MIDLANDS COV WARW STAFFS AND MARCHES SERCO,SERCO LTD,2033660322,"37,625"
Department for Work and Pensions ,Corporate,19/05/2015,TREDDS APPS DEV MANDAYS,CHG VME WFES-R,HP ENTERPRISE SERVICES UK LTD,2033682238,"37,578"
Department for Work and Pensions ,Housing Benefits,14/05/2015,HOUSING BENEFIT ADMINISTRATION,HB ENGLAND,CHERWELL DISTRICT COUNCIL,2033673798,"37,533"
Department for Work and Pensions ,Corporate,19/05/2015,NON-TREDDS IS IT APPS DEV MANDAY,CHG UC PATHFINDER DELIVERY MANAGEMENT,CAPGEMINI UK PLC,2033682237,"37,444"
Department for Work and Pensions ,Housing Benefits,14/05/2015,HOUSING BENEFIT ADMINISTRATION,HB ENGLAND,CHELTENHAM BOROUGH COUNCIL,2033674130,"37,408"
Department for Work and Pensions ,Corporate,19/05/2015,NON-TREDDS APPS DEV FIXED PRICE CONTRACTS,OPS OPE C&I IT AND OTHER MAINTENANCE,CAPGEMINI UK PLC,2033682237,"37,389"
Department for Work and Pensions ,Corporate,12/05/2015,CONTRACTORS & STAFF SUBSTITUTIONS,CIO ITPD IT DIGITALISATION,CAPITA BUSINESS SERVICES LTD,2033668219,"37,256"
Department for Work and Pensions ,Housing Benefits,14/05/2015,HOUSING BENEFIT ADMINISTRATION,HB ENGLAND,WATFORD BOROUGH COUNCIL,2033673863,"37,226"
Department for Work and Pensions ,Housing Benefits,14/05/2015,HOUSING BENEFIT ADMINISTRATION,HB ENGLAND,REIGATE & BANSTEAD BOROUGH COUNCIL,2033674134,"37,175"
Department for Work and Pensions ,Housing Benefits,14/05/2015,HOUSING BENEFIT ADMINISTRATION,HB ENGLAND,MENDIP DISTRICT COUNCIL,2033673977,"37,087"
Department for Work and Pensions ,Corporate,28/05/2015,CONTRACTORS & STAFF SUBSTITUTIONS,CIO IT SERVICES SERVICE TRANSITION,CAPITA BUSINESS SERVICES LTD,2033694736,"37,082"
Department for Work and Pensions ,Employment Programmes,13/05/2015,ACCESS TO WORK - PAYMENT FOR SUPPORT WORKERS,WWEG EP LONDON REGION,SOUTH WEST LONDON & ST GEORGES NHS TRUST,2033673442,"37,033"
Department for Work and Pensions ,Housing Benefits,14/05/2015,HOUSING BENEFIT ADMINISTRATION,HB ENGLAND,EPPING FOREST DISTRICT COUNCIL,2033674030,"36,985"
Department for Work and Pensions ,Housing Benefits,14/05/2015,HOUSING BENEFIT ADMINISTRATION,HB ENGLAND,GOSPORT BOROUGH COUNCIL,2033674061,"36,980"
Department for Work and Pensions ,Employment Programmes,14/05/2015,SUSTAINMENT FEE,REMPLOY WORK CHOICE PAYMENTS,REMPLOY LTD,2033675807,"36,941"
Department for Work and Pensions ,Corporate,06/05/2015,POSTAGE,CHG SCANNING & DIGITAL STORAGE - AGILITY,ROYAL MAIL GROUP PLC,2033662275,"36,934"
Department for Work and Pensions ,Housing Benefits,14/05/2015,HOUSING BENEFIT ADMINISTRATION,HB SCOTLAND,ARGYLL & BUTE COUNCIL,2033674047,"36,864"
Department for Work and Pensions ,Employment Programmes,13/05/2015,ACCESS TO WORK - PAYMENT FOR SUPPORT WORKERS,WWEG EP NORTH WEST,SIGN COMMUNICATIONS,2033670737,"36,734"
Department for Work and Pensions ,Housing Benefits,14/05/2015,HOUSING BENEFIT ADMINISTRATION,HB ENGLAND,GEDLING BOROUGH COUNCIL,2033673949,"36,591"
Department for Work and Pensions ,Employment Programmes,15/05/2015,WP JSA 25+ SUSTAINMENT OUTCOME PAYMENT,WWEG EP WEST LONDON INGEUS UK,INGEUS UK LTD,2033676395,"36,550"
Department for Work and Pensions ,Housing Benefits,14/05/2015,HOUSING BENEFIT ADMINISTRATION,HB ENGLAND,GUILDFORD BOROUGH COUNCIL,2033674117,"36,502"
Department for Work and Pensions ,Corporate,12/05/2015,CONTRACTORS & STAFF SUBSTITUTIONS,F&C CORP SVS FIN WORKING AGE,CAPITA BUSINESS SERVICES LTD,2033668219,"36,425"
Department for Work and Pensions ,Housing Benefits,14/05/2015,HOUSING BENEFIT ADMINISTRATION,HB ENGLAND,EAST STAFFORDSHIRE DISTRICT COUNCIL,2033674003,"36,405"
Department for Work and Pensions ,Housing Benefits,14/05/2015,HOUSING BENEFIT ADMINISTRATION,HB WALES,BLAENAU GWENT COUNTY BOROUGH COUNCIL,2033674087,"36,373"
Department for Work and Pensions ,Employment Programmes,19/05/2015,RESIDENTIAL TRAINING COSTS,WWEG EP DELIVERY WELFARE TO WORK PRODUCT SUPPORT,QUEEN ALEXANDRA COLLEGE,2033680691,"36,233"
Department for Work and Pensions ,Child Maintenance and Enforcement Commission,15/05/2015,TREDDS APPS DEV MANDAYS,FS PHASE 2 - HPES COSTS,HP ENTERPRISE SERVICES UK LTD,1000235942,"36,194"
Department for Work and Pensions ,Housing Benefits,14/05/2015,HOUSING BENEFIT ADMINISTRATION,HB ENGLAND,CANNOCK CHASE DISTRICT COUNCIL,2033674002,"36,174"
Department for Work and Pensions ,Employment Programmes,05/05/2015,WP JSA 25+ SUSTAINMENT OUTCOME PAYMENT,WWEG EP SOUTH YORKSHIRE A4E,A4E LTD,2033660434,"36,120"
Department for Work and Pensions ,Housing Benefits,14/05/2015,HOUSING BENEFIT ADMINISTRATION,HB ENGLAND,WEST LANCASHIRE DISTRICT COUNCIL,2033673806,"36,080"
Department for Work and Pensions ,Housing Benefits,14/05/2015,HOUSING BENEFIT ADMINISTRATION,HB ENGLAND,EAST DEVON DISTRICT COUNCIL,2033673927,"36,002"
Department for Work and Pensions ,Housing Benefits,14/05/2015,HOUSING BENEFIT ADMINISTRATION,HB ENGLAND,HERTSMERE BOROUGH COUNCIL,2033674101,"35,929"
Department for Work and Pensions ,Employment Programmes,08/05/2015,WP JSA 25+ SUSTAINMENT OUTCOME PAYMENT,WWEG EP SOUTH EAST SURR SUSSX AND KENT G4S,G4S REGIONAL MANAGEMENT UK & I LTD,2033665719,"35,905"
Department for Work and Pensions ,Employment Programmes,05/05/2015,WP JSA 25+ SUSTAINMENT OUTCOME PAYMENT,WWEG EP WALES REHAB JOB FIT,REHAB JOBFIT LLP,2033659867,"35,905"
Department for Work and Pensions ,Housing Benefits,14/05/2015,HOUSING BENEFIT ADMINISTRATION,HB ENGLAND,RUSHMOOR BOROUGH COUNCIL,2033674080,"35,852"
Department for Work and Pensions ,Employment Programmes,22/05/2015,WP JSA 25+ SUSTAINMENT OUTCOME PAYMENT,WWEG EP NORTH WEST GM CHES AND WARR SEETEC,SEETEC BUSINESS TECHNOLOGY CENTRE LTD,2033688411,"35,690"
Department for Work and Pensions ,Corporate,06/05/2015,LOCAL AUTHORITY (LA) ANTI FRAUD INCENTIVES,CHG HB FRAUD & ERROR REDUCTION,CORNWALL COUNCIL,2033662130,"35,643"
Department for Work and Pensions ,Housing Benefits,14/05/2015,HOUSING BENEFIT ADMINISTRATION,HB ENGLAND,NORTH DEVON DISTRICT COUNCIL,2033673952,"35,564"
Department for Work and Pensions ,Corporate,29/05/2015,NON-TREDDS IS IT APPS DEV MANDAY,OPS OPE C&I BUSINESS GENERATED CHANGE - IT,ACCENTURE UK LTD,2033697805,"35,513"
Department for Work and Pensions ,Housing Benefits,14/05/2015,HOUSING BENEFIT ADMINISTRATION,HB ENGLAND,EAST HERTFORDSHIRE DISTRICT COUNCIL,2033674020,"35,502"
Department for Work and Pensions ,Employment Programmes,13/05/2015,WP JSA 25+ SUSTAINMENT OUTCOME PAYMENT,WWEG EP EAST OF ENGLAND INGEUS UK,INGEUS UK LTD,2033672067,"35,475"
Department for Work and Pensions ,Employment Programmes,11/05/2015,WP JSA 25+ SUSTAINMENT OUTCOME PAYMENT,WWEG EP WALES REHAB JOB FIT,REHAB JOBFIT LLP,2033666523,"35,475"
Department for Work and Pensions ,Employment Programmes,15/05/2015,WP JSA 25+ SUSTAINMENT OUTCOME PAYMENT,WWEG EP NORTH WEST GM CHES AND WARR SEETEC,SEETEC BUSINESS TECHNOLOGY CENTRE LTD,2033676444,"35,475"
Department for Work and Pensions ,Employment Programmes,13/05/2015,WP JSA 25+ SUSTAINMENT OUTCOME PAYMENT,WWEG EP SCOTLAND WORKING LINKS,WORKING LINKS,2033671882,"35,475"
Department for Work and Pensions ,Employment Programmes,05/05/2015,WP JSA 25+ JOB OUTCOME PAYMENTWP JSA 25+ JOB OUTCOME PAYMENT,WWEG EP NORTH WEST GM CHES AND WARR AVANTA ENTERPRISE,AVANTA ENTERPRISE,2033660631,"35,160"
Department for Work and Pensions ,Corporate,19/05/2015,TREDDS APPS DEV MANDAYS,CHG VIRTUAL MACHINE ENVIRONMENT REPLACEMENT,HP ENTERPRISE SERVICES UK LTD,2033682238,"35,142"
Department for Work and Pensions ,Housing Benefits,14/05/2015,HOUSING BENEFIT ADMINISTRATION,HB ENGLAND,NEWARK DISTRICT COUNCIL,2033673950,"35,120"
Department for Work and Pensions ,Employment Programmes,15/05/2015,WP JSA 25+ SUSTAINMENT OUTCOME PAYMENT,WWEG EP WEST LONDON MAXIMUS EMPLOYMENT UK,MAXIMUS EMPLOYMENT UK LTD,2033677695,"35,045"
Department for Work and Pensions ,Housing Benefits,14/05/2015,HOUSING BENEFIT ADMINISTRATION,HB ENGLAND,BROXBOURNE BOROUGH COUNCIL,2033674100,"34,950"
Department for Work and Pensions ,Corporate,06/05/2015,PRIME BILLABLE EXTRAS PRIME CONTRACT MANAGEMENT (PCM),CHG ESTATES RATIONALISATION FORMER JCP OPS,TELEREAL TRILLIUM,2033661915,"34,946"
Department for Work and Pensions ,Housing Benefits,14/05/2015,HOUSING BENEFIT ADMINISTRATION,HB SCOTLAND,MIDLOTHIAN COUNCIL,2033674071,"34,882"
Department for Work and Pensions ,Employment Programmes,08/05/2015,ACCESS TO WORK - TRAVEL IN WORK,WWEG EP WEST MIDLANDS,CAPITA SYMONDS LTD,2033665154,"34,865"
Department for Work and Pensions ,Employment Programmes,22/05/2015,WP JSA 25+ SUSTAINMENT OUTCOME PAYMENT,WWEG EP WEST YORKSHIRE INGEUS UK,INGEUS UK LTD,2033687121,"34,830"
Department for Work and Pensions ,Housing Benefits,14/05/2015,HOUSING BENEFIT ADMINISTRATION,HB ENGLAND,WYRE FOREST DISTRICT COUNCIL,2033674099,"34,804"
Department for Work and Pensions ,Housing Benefits,14/05/2015,HOUSING BENEFIT ADMINISTRATION,HB ENGLAND,EREWASH BOROUGH COUNCIL,2033673923,"34,774"
Department for Work and Pensions ,Corporate,19/05/2015,NON-TREDDS IS IT APPS DEV MANDAY,CIO INFRASTRUCTURE & SERVICE REMEDIATION,IBM UNITED KINGDOM LTD,2033681381,"34,596"
Department for Work and Pensions ,Employment Programmes,14/05/2015,RESIDENTIAL TRAINING COSTS,WWEG EP DELIVERY WELFARE TO WORK PRODUCT SUPPORT,RNIB,2033674408,"34,547"
Department for Work and Pensions ,Corporate,14/05/2015,LOCAL AUTHORITY (LA) ANTI FRAUD INCENTIVES,CHG HB FRAUD & ERROR REDUCTION,EDINBURGH DISTRICT COUNCIL,2033675912,"34,432"
Department for Work and Pensions ,Employment Programmes,08/05/2015,WP JSA 25+ SUSTAINMENT OUTCOME PAYMENT,WWEG EP NORTH WEST GM CHES AND WARR G4S,G4S REGIONAL MANAGEMENT UK & I LTD,2033665719,"34,400"
Department for Work and Pensions ,Housing Benefits,14/05/2015,HOUSING BENEFIT ADMINISTRATION,HB ENGLAND,CITY OF CARLISLE DISTRICT COUNCIL,2033673900,"34,382"
Department for Work and Pensions ,Housing Benefits,14/05/2015,HOUSING BENEFIT ADMINISTRATION,HB ENGLAND,CHICHESTER DISTRICT COUNCIL,2033673781,"34,367"
Department for Work and Pensions ,Corporate,18/05/2015,TREDDS APPS DEV MANDAYS,OPS OPE C&I BUSINESS GENERATED CHANGE - IT,HP ENTERPRISE SERVICES UK LTD,2033679358,"34,330"
Department for Work and Pensions ,Housing Benefits,14/05/2015,HOUSING BENEFIT ADMINISTRATION,HB ENGLAND,HARROGATE BOROUGH COUNCIL,2033673905,"34,286"
Department for Work and Pensions ,Employment Programmes,11/05/2015,WP JSA 25+ SUSTAINMENT OUTCOME PAYMENT,WWEG EP NORTH WEST GM CHES AND WARR SEETEC,SEETEC BUSINESS TECHNOLOGY CENTRE LTD,2033666666,"34,185"
Department for Work and Pensions ,Employment Programmes,05/05/2015,WP JSA 18-24 JOB SUSTAINMENT OUTCOME PAYMENT,WWEG EP NORTH WEST MERS HAL CUMB AND LANCS INGEUS UK,INGEUS UK LTD,2033660603,"34,170"
Department for Work and Pensions ,Corporate,15/05/2015,RENEWALS OF SOFTWARE SUPPORT AND MAINTENANCE,OPS OPE FES CCIIS INTEL NATIONAL FUNCTIONS,SPECIALIST COMPUTER CENTRES PLC,2033676363,"34,126"
Department for Work and Pensions ,Employment Programmes,26/05/2015,ESF 2011-13 SUPPORT FOR FAMILIES WITH MULTIPLE PROBLEMS JSA CUSTOMERS JOB OUTCOME PAYMENT,CPA6 GTR MAN CHES WARR EXC HAL G4S CARE AND JUSTICE SERV,G4S REGIONAL MANAGEMENT UK & I LTD,2033690126,"34,085"
Department for Work and Pensions ,Corporate,28/05/2015,CONTRACTORS & STAFF SUBSTITUTIONS,F&C IGS INFO SERVICES,CAPITA BUSINESS SERVICES LTD,2033694736,"34,005"
Department for Work and Pensions ,Employment Programmes,06/05/2015,WP JSA 25+ SUSTAINMENT OUTCOME PAYMENT,WWEG EP W MIDLANDS COV WARW STAFFS AND MARCHES ESG,ESG HOLDINGS LIMITED,2033661036,"33,970"
Department for Work and Pensions ,Employment Programmes,05/05/2015,WP JSA 25+ SUSTAINMENT OUTCOME PAYMENT,WWEG EP W MIDLANDS BIRM SOL BC PERTEMPS,PERTEMPS,2033660614,"33,970"
Department for Work and Pensions ,Housing Benefits,14/05/2015,HOUSING BENEFIT ADMINISTRATION,HB ENGLAND,WORCESTER CITY COUNCIL,2033674042,"33,965"
Department for Work and Pensions ,Corporate,19/05/2015,TREDDS APPS DEV FIXED PRICE CONTRACTS,CHG PIP RECURRENT,HP ENTERPRISE SERVICES UK LTD,2033682238,"33,918"
Department for Work and Pensions ,Employment Programmes,20/05/2015,ACCESS TO WORK - PAYMENT FOR SUPPORT WORKERS,WWEG EP SOUTH EAST,PARISE INTERPRETING LTD,2033682903,"33,840"
Department for Work and Pensions ,Housing Benefits,14/05/2015,HOUSING BENEFIT ADMINISTRATION,HB ENGLAND,STAFFORD BOROUGH COUNCIL,2033674112,"33,777"
Department for Work and Pensions ,Employment Programmes,11/05/2015,WP JSA 25+ SUSTAINMENT OUTCOME PAYMENT,WWEG EP WEST YORKSHIRE BEST LTD,INTERSERVE WORKING FUTURES,2033666357,"33,755"
Department for Work and Pensions ,Employment Programmes,20/05/2015,WP JSA 25+ SUSTAINMENT OUTCOME PAYMENT,WWEG EP SCOTLAND WORKING LINKS,WORKING LINKS,2033683494,"33,755"
Department for Work and Pensions ,Housing Benefits,14/05/2015,HOUSING BENEFIT ADMINISTRATION,HB SCOTLAND,EAST LOTHIAN DISTRICT COUNCIL,2033673872,"33,624"
Department for Work and Pensions ,Housing Benefits,14/05/2015,HOUSING BENEFIT ADMINISTRATION,HB ENGLAND,TONBRIDGE & MALLING DISTRICT COUNCIL,2033674144,"33,615"
Department for Work and Pensions ,Employment Programmes,11/05/2015,WP JSA 25+ SUSTAINMENT OUTCOME PAYMENT,WWEG EP WEST LONDON REED IN PARTNERSHIP,REED IN PARTNERSHIP LTD,2033666295,"33,540"
Department for Work and Pensions ,Housing Benefits,14/05/2015,HOUSING BENEFIT ADMINISTRATION,HB ENGLAND,NORTH NORFOLK DISTRICT COUNCIL,2033674039,"33,507"
Department for Work and Pensions ,Corporate,19/05/2015,NON-TREDDS IS IT APPS DEV MANDAY,CIO CIS INFRASTRUCTURE,IBM UNITED KINGDOM LTD,2033681381,"33,420"
Department for Work and Pensions ,Housing Benefits,14/05/2015,HOUSING BENEFIT ADMINISTRATION,HB ENGLAND,WORTHING BOROUGH COUNCIL,2033673801,"33,388"
Department for Work and Pensions ,Corporate,08/05/2015,BANK COMMISSION & CHARGES,FG FIN CONT COBAP BANKING,HSBC BANK PLC,2033666131,"33,179"
Department for Work and Pensions ,Employment Programmes,20/05/2015,WP JSA 25+ SUSTAINMENT OUTCOME PAYMENT,WWEG EP EAST LONDON CAREERS DEVELOPMENT GROUP,CAREERS DEVELOPMENT GROUP,2033682980,"33,110"
Department for Work and Pensions ,Employment Programmes,22/05/2015,WP JSA 25+ SUSTAINMENT OUTCOME PAYMENT,WWEG EP WEST LONDON INGEUS UK,INGEUS UK LTD,2033687121,"33,110"
Department for Work and Pensions ,Employment Programmes,08/05/2015,WP JSA 25+ SUSTAINMENT OUTCOME PAYMENT,WWEG EP EAST OF ENGLAND SEETEC,SEETEC BUSINESS TECHNOLOGY CENTRE LTD,2033665666,"33,110"
Department for Work and Pensions ,Corporate,22/05/2015,SOFTWARE LICENCES GREATER THAN ONE YEAR TERM,CHG VME WFPS-R,SPECIALIST COMPUTER CENTRES PLC,2033687434,"33,046"
Department for Work and Pensions ,Corporate,14/05/2015,RENEWALS OF SOFTWARE SUPPORT AND MAINTENANCE,PSG DH LEGAL SERVICES ICE,SPECIALIST COMPUTER CENTRES PLC,2033674275,"33,046"
Department for Work and Pensions ,Corporate,21/05/2015,NETWORK SERVICES,CHG UC PATHFINDER DELIVERY MANAGEMENT,BT GLOBAL SERVICES,2033686839,"33,019"
Department for Work and Pensions ,Corporate,19/05/2015,STAFF RELATED COSTS VAT RECOVERABLE,F&C CORP SVS FIN WORKING AGE,ROBERT WALTERS OPERATIONS LTD,2033681838,"33,000"
Department for Work and Pensions ,Employment Programmes,15/05/2015,WP JSA 25+ SUSTAINMENT OUTCOME PAYMENT,WWEG EP SOUTH EAST TV HANTS AND IOW MAXIMUS EMPLOYMENT,MAXIMUS EMPLOYMENT UK LTD,2033677695,"32,680"
Department for Work and Pensions ,Housing Benefits,14/05/2015,HOUSING BENEFIT ADMINISTRATION,HB ENGLAND,TUNBRIDGE WELLS BOROUGH COUNCIL,2033673783,"32,636"
Department for Work and Pensions ,Employment Programmes,22/05/2015,WP JSA 25+ SUSTAINMENT OUTCOME PAYMENT,WWEG EP SOUTH EAST TV HANTS AND IOW A4E,A4E LTD,2033688492,"32,465"
Department for Work and Pensions ,Corporate,27/05/2015,STAFF RELATED COSTS VAT RECOVERABLE,CIO CENTRAL MISCELLANANEOUS,ROBERT WALTERS OPERATIONS LTD,2033693157,"32,333"
Department for Work and Pensions ,Housing Benefits,14/05/2015,HOUSING BENEFIT ADMINISTRATION,HB ENGLAND,BRACKNELL FOREST BOROUGH COUNCIL,2033674096,"32,298"
Department for Work and Pensions ,Employment Programmes,22/05/2015,WP JSA 25+ SUSTAINMENT OUTCOME PAYMENT,WWEG EP SOUTH EAST SURR SUSSX AND KENT G4S,G4S REGIONAL MANAGEMENT UK & I LTD,2033687192,"32,250"
Department for Work and Pensions ,Employment Programmes,08/05/2015,WP JSA 25+ SUSTAINMENT OUTCOME PAYMENT,WWEG EP NORTH WEST MERS HAL CUMB AND LANCS INGEUS UK,INGEUS UK LTD,2033665073,"32,250"
Department for Work and Pensions ,Employment Programmes,22/05/2015,WP JSA 25+ SUSTAINMENT OUTCOME PAYMENT,WWEG EP WEST LONDON REED IN PARTNERSHIP,REED IN PARTNERSHIP LTD,2033688508,"32,250"
Department for Work and Pensions ,Housing Benefits,14/05/2015,HOUSING BENEFIT ADMINISTRATION,HB ENGLAND,WINDSOR & MAIDENHEAD BOROUGH COUNCIL,2033674098,"32,210"
Department for Work and Pensions ,Employment Programmes,05/05/2015,WP JSA 25+ JOB OUTCOME PAYMENTWP JSA 25+ JOB OUTCOME PAYMENT,WWEG EP EAST LONDON A4E,A4E LTD,2033660434,"32,154"
Department for Work and Pensions ,Housing Benefits,14/05/2015,HOUSING BENEFIT ADMINISTRATION,HB ENGLAND,ELMBRIDGE BOROUGH COUNCIL,2033674055,"32,135"
Department for Work and Pensions ,Corporate,28/05/2015,CONTRACTORS & STAFF SUBSTITUTIONS,CHG STATE PENSION REFORM SINGLE TIER,CAPITA BUSINESS SERVICES LTD,2033694736,"32,115"
Department for Work and Pensions ,Housing Benefits,14/05/2015,HOUSING BENEFIT ADMINISTRATION,HB ENGLAND,ST EDMUNDSBURY BOROUGH COUNCIL,2033674013,"32,047"
Department for Work and Pensions ,Corporate,26/05/2015,FSF - PARTNERSHIP GRANTS - TO HELP JSA CLIENTS INTO WORK,OPS WDC WSD SC PERTH JOBCENTRE PLUS,ENTERPRISE NORTH EAST TRUST LTD,2033690357,"32,018"
Department for Work and Pensions ,Employment Programmes,05/05/2015,WP JSA 25+ JOB OUTCOME PAYMENTWP JSA 25+ JOB OUTCOME PAYMENT,WWEG EP SOUTH EAST SURR SUSSX AND KENT G4S,G4S REGIONAL MANAGEMENT UK & I LTD,2033660727,"31,998"
Department for Work and Pensions ,Corporate,06/05/2015,POSTAGE,OPS BEN DD SFSB WEMBLEY,ROYAL MAIL GROUP PLC,2033662275,"31,961"
Department for Work and Pensions ,Corporate,18/05/2015,NON-TREDDS IS IT APPS DEV MANDAY,OPS OPE OPERATIONAL EXCELLENCE DIRECTOR,IBM UNITED KINGDOM LTD,2033677934,"31,842"
Department for Work and Pensions ,Employment Programmes,13/05/2015,WP JSA 25+ SUSTAINMENT OUTCOME PAYMENT,WWEG EP NORTH WEST MERS HAL CUMB AND LANCS A4E,A4E LTD,2033670724,"31,820"
Department for Work and Pensions ,Employment Programmes,11/05/2015,WP JSA 25+ SUSTAINMENT OUTCOME PAYMENT,WWEG EP W MIDLANDS BIRM SOL BC FOURSTAR EMP AND SKILLS,AVANTA ENTERPRISE LTD,2033666707,"31,820"
Department for Work and Pensions ,Employment Programmes,26/05/2015,WP JSA 25+ SUSTAINMENT OUTCOME PAYMENT,WWEG EP SOUTH EAST SURR SUSSX AND KENT G4S,G4S REGIONAL MANAGEMENT UK & I LTD,2033690126,"31,820"
Department for Work and Pensions ,Housing Benefits,14/05/2015,HOUSING BENEFIT ADMINISTRATION,HB ENGLAND,SUFFOLK COASTAL DISTRICT COUNCIL,2033674054,"31,812"
Department for Work and Pensions ,Housing Benefits,14/05/2015,HOUSING BENEFIT ADMINISTRATION,HB ENGLAND,NORTH EAST DERBYSHIRE DISTRICT COUNCIL,2033673925,"31,748"
Department for Work and Pensions ,Employment Programmes,05/05/2015,WP JSA 25+ JOB OUTCOME PAYMENTWP JSA 25+ JOB OUTCOME PAYMENT,WWEG EP EAST OF ENGLAND SEETEC,SEETEC BUSINESS TECHNOLOGY CENTRE LTD,2033659959,"31,746"
Department for Work and Pensions ,Employment Programmes,08/05/2015,WP JSA 25+ JOB OUTCOME PAYMENTWP JSA 25+ JOB OUTCOME PAYMENT,WWEG EP WEST LONDON MAXIMUS EMPLOYMENT UK,MAXIMUS EMPLOYMENT UK LTD,2033666183,"31,680"
Department for Work and Pensions ,Housing Benefits,14/05/2015,HOUSING BENEFIT ADMINISTRATION,HB ENGLAND,WARWICK DISTRICT COUNCIL,2033674113,"31,644"
Department for Work and Pensions ,Housing Benefits,14/05/2015,HOUSING BENEFIT ADMINISTRATION,HB ENGLAND,STRATFORD ON AVON DISTRICT COUNCIL,2033673779,"31,626"
Department for Work and Pensions ,Employment Programmes,05/05/2015,WP JSA 18-24 JOB SUSTAINMENT OUTCOME PAYMENT,WWEG EP EAST MIDLANDS A4E,A4E LTD,2033660434,"31,620"
Department for Work and Pensions ,Employment Programmes,08/05/2015,WP JSA 25+ SUSTAINMENT OUTCOME PAYMENT,WWEG EP EAST OF ENGLAND INGEUS UK,INGEUS UK LTD,2033665073,"31,605"
Department for Work and Pensions ,Housing Benefits,14/05/2015,HOUSING BENEFIT ADMINISTRATION,HB ENGLAND,CORBY BOROUGH COUNCIL,2033674089,"31,536"
Department for Work and Pensions ,Housing Benefits,14/05/2015,HOUSING BENEFIT ADMINISTRATION,HB ENGLAND,SOUTH NORFOLK DISTRICT COUNCIL,2033673820,"31,523"
Department for Work and Pensions ,Corporate,28/05/2015,CONTRACTORS & STAFF SUBSTITUTIONS,F&C CORP SVS FIN WORKING AGE,CAPITA BUSINESS SERVICES LTD,2033694736,"31,474"
Department for Work and Pensions ,Employment Programmes,08/05/2015,WP JSA 25+ SUSTAINMENT OUTCOME PAYMENT,WWEG EP WEST LONDON INGEUS UK,INGEUS UK LTD,2033665073,"31,390"
Department for Work and Pensions ,Employment Programmes,08/05/2015,WP JSA 25+ SUSTAINMENT OUTCOME PAYMENT,WWEG EP EAST LONDON SEETEC,SEETEC BUSINESS TECHNOLOGY CENTRE LTD,2033665666,"31,390"
Department for Work and Pensions ,Housing Benefits,14/05/2015,HOUSING BENEFIT ADMINISTRATION,HB ENGLAND,ST ALBANS DISTRICT COUNCIL,2033673852,"31,386"
Department for Work and Pensions ,Corporate,28/05/2015,VALUATION OFFICE,OPS BEN DD YORKSHIRE BC (QH),VALUATION OFFICE AGENCY,2033695025,"31,350"
Department for Work and Pensions ,Corporate,29/05/2015,PROFESSIONAL SERVICES NON VAT RECOVERABLE,OPS OPE CMG RELATIONSHIP SUPPORT,RESOLUTION,2033698424,"31,286"
Department for Work and Pensions ,Housing Benefits,14/05/2015,HOUSING BENEFIT ADMINISTRATION,HB ENGLAND,ALLERDALE DISTRICT COUNCIL,2033673825,"31,273"
Department for Work and Pensions ,Employment Programmes,05/05/2015,WP JSA NEET SUSTAINMENT OUTCOME PAYMENT,WWEG EP SCOTLAND WORKING LINKS,WORKING LINKS,2033660601,"31,250"
Department for Work and Pensions ,Corporate,19/05/2015,STAFF TRAINING VAT RECOVERABLE,HR CONTRACTUAL L AND D,CAPITA CIVIL SERVICE LEARNING,2033680165,"31,179"
Department for Work and Pensions ,Employment Programmes,15/05/2015,WP JSA 25+ SUSTAINMENT OUTCOME PAYMENT,WWEG EP SOUTH EAST TV HANTS AND IOW A4E,A4E LTD,2033676511,"31,175"
Department for Work and Pensions ,Employment Programmes,11/05/2015,WP JSA 25+ SUSTAINMENT OUTCOME PAYMENT,WWEG EP WALES WORKING LINKS WALES,WORKING LINKS,2033666252,"31,175"
Department for Work and Pensions ,Housing Benefits,14/05/2015,HOUSING BENEFIT ADMINISTRATION,HB ENGLAND,RUGBY BOROUGH COUNCIL,2033673778,"31,151"
Department for Work and Pensions ,Corporate,11/05/2015,PROFESSIONAL SERVICES NON VAT RECOVERABLE,OPS OPE CMG RELATIONSHIP SUPPORT,FAMILY LIVES,2033666613,"31,124"
Department for Work and Pensions ,Corporate,18/05/2015,NON-TREDDS IS IT APPS DEV MANDAY,CHG STATE PENSION REFORM SINGLE TIER,IBM UNITED KINGDOM LTD,2033677934,"31,049"
Department for Work and Pensions ,Corporate,18/05/2015,TREDDS APPS DEV MANDAYS,CIO IT OGD HMRC ITLR,HP ENTERPRISE SERVICES UK LTD,2033679358,"31,039"
Department for Work and Pensions ,Housing Benefits,14/05/2015,HOUSING BENEFIT ADMINISTRATION,HB ENGLAND,CHORLEY BOROUGH COUNCIL,2033673785,"31,024"
Department for Work and Pensions ,Housing Benefits,14/05/2015,HOUSING BENEFIT ADMINISTRATION,HB ENGLAND,DARTFORD BOROUGH COUNCIL,2033673819,"31,002"
Department for Work and Pensions ,Housing Benefits,14/05/2015,HOUSING BENEFIT ADMINISTRATION,HB ENGLAND,TEST VALLEY BOROUGH COUNCIL,2033673993,"30,989"
Department for Work and Pensions ,Housing Benefits,14/05/2015,HOUSING BENEFIT ADMINISTRATION,HB ENGLAND,BOROUGH OF REDDITCH,2033674083,"30,818"
Department for Work and Pensions ,Employment Programmes,08/05/2015,WP JSA NEET SUSTAINMENT OUTCOME PAYMENT,WWEG EP EAST MIDLANDS A4E,A4E LTD,2033666061,"30,750"
Department for Work and Pensions ,Employment Programmes,05/05/2015,WP JSA 25+ SUSTAINMENT OUTCOME PAYMENT,WWEG EP S WEST GLOS WILTS AND W OF E JHP GROUP,LEARNDIRECT LTD,2033660471,"30,745"
Department for Work and Pensions ,Employment Programmes,26/05/2015,WP JSA 25+ SUSTAINMENT OUTCOME PAYMENT,WWEG EP SCOTLAND WORKING LINKS,WORKING LINKS,2033689818,"30,745"
Department for Work and Pensions ,Child Maintenance and Enforcement Commission,19/05/2015,NON-TREDDS IS IT SERVICES (AMS),FS PHASE 2 - TCS COSTS,TATA CONSULTANCY SERVICES LTD,1000236078,"30,670"
Department for Work and Pensions ,Corporate,19/05/2015,POSTAGE,FG CD ACC POSTAGE,G3 WORLDWIDE MAIL UK LTD,2033680189,"30,652"
Department for Work and Pensions ,Employment Programmes,05/05/2015,WP JSA 18-24 JOB SUSTAINMENT OUTCOME PAYMENT,WWEG EP NORTH WEST MERS HAL CUMB AND LANCS A4E,A4E LTD,2033660434,"30,600"
Department for Work and Pensions ,Employment Programmes,26/05/2015,WP JSA 25+ SUSTAINMENT OUTCOME PAYMENT,WWEG EP NORTH WEST GM CHES AND WARR AVANTA ENTERPRISE,AVANTA ENTERPRISE,2033690005,"30,530"
Department for Work and Pensions ,Housing Benefits,14/05/2015,HOUSING BENEFIT ADMINISTRATION,HB ENGLAND,BROXTOWE BOROUGH COUNCIL,2033673948,"30,453"
Department for Work and Pensions ,Housing Benefits,14/05/2015,HOUSING BENEFIT ADMINISTRATION,HB ENGLAND,WEYMOUTH & PORTLAND BOROUGH COUNCIL,2033673983,"30,447"
Department for Work and Pensions ,Employment Programmes,05/05/2015,WP JSA 25+ JOB OUTCOME PAYMENTWP JSA 25+ JOB OUTCOME PAYMENT,WWEG EP EAST LONDON SEETEC,SEETEC BUSINESS TECHNOLOGY CENTRE LTD,2033659959,"30,432"
Department for Work and Pensions ,Employment Programmes,06/05/2015,WP JSA 25+ JOB OUTCOME PAYMENTWP JSA 25+ JOB OUTCOME PAYMENT,WWEG EP SCOTLAND WORKING LINKS,WORKING LINKS,2033661028,"30,432"
Department for Work and Pensions ,Employment Programmes,08/05/2015,WP JSA 25+ SUSTAINMENT OUTCOME PAYMENT,WWEG EP NORTH EAST INGEUS UK,INGEUS UK LTD,2033665073,"30,315"
Department for Work and Pensions ,Housing Benefits,14/05/2015,HOUSING BENEFIT ADMINISTRATION,HB ENGLAND,WEST DORSET DISTRICT COUNCIL,2033673982,"30,251"
Department for Work and Pensions ,Child Maintenance and Enforcement Commission,19/05/2015,TREDDS IS IT CONSULTANCY (HOSTING) NON ADVICE,CMG PORTFOLIO - RELEASE 25 HPES,HP ENTERPRISE SERVICES UK LTD,1000236073,"30,176"
Department for Work and Pensions ,Employment Programmes,27/05/2015,WP JSA 25+ SUSTAINMENT OUTCOME PAYMENT,WWEG EP NORTH EAST AVANTA ENTERPRISE,AVANTA ENTERPRISE,2033690748,"30,100"
Department for Work and Pensions ,Employment Programmes,15/05/2015,WP JSA 25+ SUSTAINMENT OUTCOME PAYMENT,WWEG EP WEST YORKSHIRE BEST LTD,INTERSERVE WORKING FUTURES,2033677418,"30,100"
Department for Work and Pensions ,Employment Programmes,22/05/2015,WP JSA 25+ SUSTAINMENT OUTCOME PAYMENT,WWEG EP W MIDLANDS COV WARW STAFFS AND MARCHES SERCO,SERCO LTD,2033688321,"30,100"
Department for Work and Pensions ,Employment Programmes,05/05/2015,WP JSA 25+ SUSTAINMENT OUTCOME PAYMENT,WWEG EP S WEST DEV COR DOR AND SOM WORKING LINKS,WORKING LINKS,2033660601,"30,100"
Department for Work and Pensions ,Employment Programmes,05/05/2015,COMMUNITY WORK PLACEMENTS - JOB OUTCOME FEE,WWEP EP FG CEP CWP CPA18 - YORKSHIRE & HUMBER (3),G4S REGIONAL MANAGEMENT UK & I LTD,2033660727,"30,000"
Department for Work and Pensions ,Employment Programmes,13/05/2015,ACCESS TO WORK - TRAVEL IN WORK,WWEG EP NORTH WEST,CAPITA SYMONDS LTD,2033672097,"29,975"
Department for Work and Pensions ,Housing Benefits,14/05/2015,HOUSING BENEFIT ADMINISTRATION,HB WALES,MERTHYR TYDFIL BOROUGH COUNCIL,2033673845,"29,926"
Department for Work and Pensions ,Employment Programmes,13/05/2015,WP JSA 25+ SUSTAINMENT OUTCOME PAYMENT,WWEG EP NORTH WEST MERS HAL CUMB AND LANCS INGEUS UK,INGEUS UK LTD,2033672067,"29,885"
Department for Work and Pensions ,Child Maintenance and Enforcement Commission,07/05/2015,POSTAGE,CS CENTRALLY HELD BUDGETS FACILITIES CONTRACTS,ROYAL MAIL GROUP PLC,1000235118,"29,823"
Department for Work and Pensions ,Corporate,14/05/2015,LOCAL AUTHORITY (LA) ANTI FRAUD INCENTIVES,CHG HB FRAUD & ERROR REDUCTION,LONDON BOROUGH OF ISLINGTON,2033674427,"29,740"
Department for Work and Pensions ,Employment Programmes,08/05/2015,WP JSA 25+ JOB OUTCOME PAYMENTWP JSA 25+ JOB OUTCOME PAYMENT,WWEG EP EAST LONDON CAREERS DEVELOPMENT GROUP,CAREERS DEVELOPMENT GROUP,2033665573,"29,694"
Department for Work and Pensions ,Employment Programmes,14/05/2015,WP JSA 25+ SUSTAINMENT OUTCOME PAYMENT,WWEG EP EAST LONDON CAREERS DEVELOPMENT GROUP,CAREERS DEVELOPMENT GROUP,2033675954,"29,670"
Department for Work and Pensions ,Housing Benefits,14/05/2015,HOUSING BENEFIT ADMINISTRATION,HB ENGLAND,BOLSOVER DISTRICT COUNCIL,2033674038,"29,643"
Department for Work and Pensions ,Housing Benefits,14/05/2015,HOUSING BENEFIT ADMINISTRATION,HB ENGLAND,SEVENOAKS DISTRICT COUNCIL,2033674142,"29,590"
Department for Work and Pensions ,Housing Benefits,14/05/2015,HOUSING BENEFIT ADMINISTRATION,HB ENGLAND,HIGH PEAK BOROUGH COUNCIL,2033673924,"29,513"
Department for Work and Pensions ,Corporate,12/05/2015,TREDDS APPS DEV MANDAYS,F&C IGS DIRECTOR AND SUPPORT,HP ENTERPRISE SERVICES UK LTD,2033668989,"29,481"
Department for Work and Pensions ,Employment Programmes,13/05/2015,WP JSA 25+ SUSTAINMENT OUTCOME PAYMENT,WWEG EP S WEST DEV COR DOR AND SOM PROSPECTS SERVICES,PROSPECTS SERVICES LTD,2033670945,"29,455"
Department for Work and Pensions ,Housing Benefits,14/05/2015,HOUSING BENEFIT ADMINISTRATION,HB SCOTLAND,THE MORAY COUNCIL,2033673969,"29,414"
Department for Work and Pensions ,Employment Programmes,26/05/2015,ESF 2011-13 SUPPORT FOR FAMILIES WITH MULTIPLE PROBLEMS JSA CUSTOMERS JOB OUTCOME PAYMENT,CPA8 SOUTH EAST SKILLS TRAINING UK,SKILLS TRAINING UK LIMITED,2033690129,"29,353"
Department for Work and Pensions ,Housing Benefits,14/05/2015,HOUSING BENEFIT ADMINISTRATION,HB ENGLAND,WEALDEN DISTRICT COUNCIL,2033674006,"29,339"
Department for Work and Pensions ,Employment Programmes,13/05/2015,WP JSA 25+ SUSTAINMENT OUTCOME PAYMENT,WWEG EP W MIDLANDS COV WARW STAFFS AND MARCHES ESG,ESG HOLDINGS LIMITED,2033673585,"29,240"
Department for Work and Pensions ,Employment Programmes,26/05/2015,WP JSA 25+ SUSTAINMENT OUTCOME PAYMENT,WWEG EP NORTH WEST GM CHES AND WARR G4S,G4S REGIONAL MANAGEMENT UK & I LTD,2033690126,"29,240"
Department for Work and Pensions ,Employment Programmes,18/05/2015,WP JSA 25+ JOB OUTCOME PAYMENTWP JSA 25+ JOB OUTCOME PAYMENT,WWEG EP SCOTLAND WORKING LINKS,WORKING LINKS,2033678926,"29,232"
Department for Work and Pensions ,Child Maintenance and Enforcement Commission,18/05/2015,DWP COURT FEES & RELATED EXPENSES,EXTERNAL CONTRACTS HARPER MACLEOD,HARPER MACLEOD LLP,1000236007,"29,141"
Department for Work and Pensions ,Corporate,15/05/2015,NON-TREDDS IS IT CONSULTANCY (HOSTING) NON ADVICE,F&C IGS STAT SERVICES,SPECIALIST COMPUTER CENTRES PLC,2033676363,"29,130"
Department for Work and Pensions ,Corporate,22/05/2015,NON-TREDDS IS IT CONSULTANCY (HOSTING) NON ADVICE,F&C IGS STAT SERVICES,SPECIALIST COMPUTER CENTRES PLC,2033687434,"29,130"
Department for Work and Pensions ,Employment Programmes,05/05/2015,WP JSA 18-24 JOB SUSTAINMENT OUTCOME PAYMENT,WWEG EP SCOTLAND WORKING LINKS,WORKING LINKS,2033660601,"29,070"
Department for Work and Pensions ,Corporate,22/05/2015,PROFESSIONAL SERVICES NON VAT RECOVERABLE,OPS OPE CMG RELATIONSHIP SUPPORT,FAMILY LIVES,2033687334,"29,048"
Department for Work and Pensions ,Corporate,20/05/2015,DEPARTMENTAL SUBSCRIPTIONS,CIO COO IT DIRECTOR,OVUM,2033684297,"29,040"
Department for Work and Pensions ,Employment Programmes,11/05/2015,WP JSA 25+ SUSTAINMENT OUTCOME PAYMENT,WWEG EP NORTH EAST Y AND H G4S,G4S REGIONAL MANAGEMENT UK & I LTD,2033666675,"29,025"
Department for Work and Pensions ,Housing Benefits,14/05/2015,HOUSING BENEFIT ADMINISTRATION,HB ENGLAND,MID SUSSEX DISTRICT COUNCIL,2033673963,"29,004"
Department for Work and Pensions ,Corporate,22/05/2015,NETWORK SERVICES,CIO ITLR NETWORK,BT GLOBAL SERVICES,2033688509,"28,978"
Department for Work and Pensions ,Housing Benefits,14/05/2015,HOUSING BENEFIT ADMINISTRATION,HB ENGLAND,HORSHAM DISTRICT COUNCIL,2033673800,"28,915"
Department for Work and Pensions ,Housing Benefits,14/05/2015,HOUSING BENEFIT ADMINISTRATION,HB ENGLAND,KETTERING BOROUGH COUNCIL,2033673878,"28,862"
Department for Work and Pensions ,Employment Programmes,20/05/2015,WP JSA 25+ SUSTAINMENT OUTCOME PAYMENT,WWEG EP SOUTH EAST SURR SUSSX AND KENT AVANTA ENTERPRISE,AVANTA ENTERPRISE,2033682876,"28,810"
Department for Work and Pensions ,Employment Programmes,14/05/2015,WP JSA 25+ SUSTAINMENT OUTCOME PAYMENT,WWEG EP S WEST DEV COR DOR AND SOM PROSPECTS SERVICES,PROSPECTS SERVICES LTD,2033675453,"28,810"
Department for Work and Pensions ,Employment Programmes,05/05/2015,WP JSA NEET SUSTAINMENT OUTCOME PAYMENT,WWEG EP SCOTLAND INGEUS UK,INGEUS UK LTD,2033660603,"28,750"
Department for Work and Pensions ,Employment Programmes,05/05/2015,WP JSA 18-24 JOB SUSTAINMENT OUTCOME PAYMENT,WWEG EP NORTH EAST INGEUS UK,INGEUS UK LTD,2033660603,"28,730"
Department for Work and Pensions ,Corporate,26/05/2015,STAFF TRAINING VAT RECOVERABLE,HR CONTRACTUAL L AND D,CAPITA CIVIL SERVICE LEARNING,2033688839,"28,724"
Department for Work and Pensions ,Housing Benefits,14/05/2015,HOUSING BENEFIT ADMINISTRATION,HB ENGLAND,WYCHAVON DISTRICT COUNCIL,2033674011,"28,676"
Department for Work and Pensions ,Housing Benefits,14/05/2015,HOUSING BENEFIT ADMINISTRATION,HB ENGLAND,WAVERLEY BOROUGH COUNCIL,2033673996,"28,640"
Department for Work and Pensions ,Corporate,28/05/2015,CONTRACTORS & STAFF SUBSTITUTIONS,CHG RTI STRATEGIC SOLUTION,CAPITA BUSINESS SERVICES LTD,2033694736,"28,457"
Department for Work and Pensions ,Housing Benefits,14/05/2015,HOUSING BENEFIT ADMINISTRATION,HB ENGLAND,EASTLEIGH BOROUGH COUNCIL,2033674059,"28,444"
Department for Work and Pensions ,Employment Programmes,08/05/2015,ESF 2011-13 SUPPORT FOR FAMILIES WITH MULTIPLE PROBLEMS JSA CUSTOMERS JOB OUTCOME PAYMENT,CPA6 GTR MAN CHES WARR EXC HAL G4S CARE AND JUSTICE SERV,G4S REGIONAL MANAGEMENT UK & I LTD,2033665719,"28,404"
Department for Work and Pensions ,Employment Programmes,13/05/2015,ESF 2011-13 SUPPORT FOR FAMILIES WITH MULTIPLE PROBLEMS JSA CUSTOMERS JOB OUTCOME PAYMENT,CPA6 GTR MAN CHES WARR EXC HAL G4S CARE AND JUSTICE SERV,G4S REGIONAL MANAGEMENT UK & I LTD,2033671211,"28,404"
Department for Work and Pensions ,Employment Programmes,13/05/2015,WP JSA 25+ SUSTAINMENT OUTCOME PAYMENT,WWEG EP W MIDLANDS BIRM SOL BC FOURSTAR EMP AND SKILLS,AVANTA ENTERPRISE LTD,2033672044,"28,380"
Department for Work and Pensions ,Employment Programmes,11/05/2015,WP JSA 25+ SUSTAINMENT OUTCOME PAYMENT,WWEG EP S WEST GLOS WILTS AND W OF E JHP GROUP,LEARNDIRECT LTD,2033666696,"28,380"
Department for Work and Pensions ,Housing Benefits,14/05/2015,HOUSING BENEFIT ADMINISTRATION,HB ENGLAND,LEWES DISTRICT COUNCIL,2033673796,"28,367"
Department for Work and Pensions ,Housing Benefits,14/05/2015,HOUSING BENEFIT ADMINISTRATION,HB ENGLAND,WINCHESTER CITY COUNCIL,2033674081,"28,294"
Department for Work and Pensions ,Employment Programmes,18/05/2015,WP JSA 25+ SUSTAINMENT OUTCOME PAYMENT,WWEG EP NORTH WEST GM CHES AND WARR G4S,G4S REGIONAL MANAGEMENT UK & I LTD,2033679524,"28,165"
Department for Work and Pensions ,Employment Programmes,08/05/2015,WP JSA 25+ SUSTAINMENT OUTCOME PAYMENT,WWEG EP SCOTLAND INGEUS UK,INGEUS UK LTD,2033665073,"28,165"
Department for Work and Pensions ,Employment Programmes,13/05/2015,WP JSA 25+ SUSTAINMENT OUTCOME PAYMENT,WWEG EP EAST MIDLANDS INGEUS UK,INGEUS UK LTD,2033672067,"28,165"
Department for Work and Pensions ,Employment Programmes,26/05/2015,WP JSA 25+ SUSTAINMENT OUTCOME PAYMENT,WWEG EP W MIDLANDS COV WARW STAFFS AND MARCHES SERCO,SERCO LTD,2033689677,"28,165"
Department for Work and Pensions ,Employment Programmes,18/05/2015,WP JSA 25+ SUSTAINMENT OUTCOME PAYMENT,WWEG EP WALES WORKING LINKS WALES,WORKING LINKS,2033678926,"28,165"
Department for Work and Pensions ,Employment Programmes,26/05/2015,WP JSA 25+ SUSTAINMENT OUTCOME PAYMENT,WWEG EP WALES WORKING LINKS WALES,WORKING LINKS,2033689818,"27,950"
Department for Work and Pensions ,Employment Programmes,15/05/2015,WP JSA 25+ SUSTAINMENT OUTCOME PAYMENT,WWEG EP SOUTH EAST SURR SUSSX AND KENT AVANTA ENTERPRISE,AVANTA ENTERPRISE,2033676351,"27,735"
Department for Work and Pensions ,Employment Programmes,15/05/2015,WP JSA 25+ SUSTAINMENT OUTCOME PAYMENT,WWEG EP NORTH WEST GM CHES AND WARR G4S,G4S REGIONAL MANAGEMENT UK & I LTD,2033676354,"27,735"
Department for Work and Pensions ,Employment Programmes,08/05/2015,WP JSA 25+ JOB OUTCOME PAYMENTWP JSA 25+ JOB OUTCOME PAYMENT,WWEG EP SOUTH EAST SURR SUSSX AND KENT G4S,G4S REGIONAL MANAGEMENT UK & I LTD,2033665719,"27,732"
Department for Work and Pensions ,Employment Programmes,08/05/2015,WP JSA 18-24 JOB SUSTAINMENT OUTCOME PAYMENT,WWEG EP NORTH WEST MERS HAL CUMB AND LANCS A4E,A4E LTD,2033666061,"27,710"
Department for Work and Pensions ,Corporate,15/05/2015,NON-TREDDS IS IT SERVICES (HOSTING),CIO GG CORE,DELL CORPORATION LTD,2033676736,"27,661"
Department for Work and Pensions ,Corporate,14/05/2015,LOCAL AUTHORITY (LA) ANTI FRAUD INCENTIVES,CHG HB FRAUD & ERROR REDUCTION,CITY OF WESTMINSTER,2033675170,"27,600"
Department for Work and Pensions ,Housing Benefits,14/05/2015,HOUSING BENEFIT ADMINISTRATION,HB ENGLAND,BOSTON BOROUGH COUNCIL,2033673829,"27,547"
Department for Work and Pensions ,Employment Programmes,18/05/2015,WP JSA 25+ SUSTAINMENT OUTCOME PAYMENT,WWEG EP EAST OF ENGLAND SEETEC,SEETEC BUSINESS TECHNOLOGY CENTRE LTD,2033677847,"27,520"
Department for Work and Pensions ,Employment Programmes,13/05/2015,WP JSA 25+ SUSTAINMENT OUTCOME PAYMENT,WWEG EP WALES WORKING LINKS WALES,WORKING LINKS,2033671882,"27,520"
Department for Work and Pensions ,Housing Benefits,14/05/2015,HOUSING BENEFIT ADMINISTRATION,HB ENGLAND,BOROUGH OF WELLINGBOROUGH,2033673903,"27,417"
Department for Work and Pensions ,Corporate,21/05/2015,FSF - TRAINING RELATED TRAVEL COSTS - JSA JOBSEEKERS,OPS WDC WSD NE WEST YORKSHIRE DISTRICT OFFICE,WEST YORKSHIRE COMBINED AUTHORITY,2033685626,"27,402"
Department for Work and Pensions ,Housing Benefits,14/05/2015,HOUSING BENEFIT ADMINISTRATION,HB ENGLAND,SPELTHORNE BOROUGH COUNCIL,2033674136,"27,375"
Department for Work and Pensions ,Housing Benefits,14/05/2015,HOUSING BENEFIT ADMINISTRATION,HB ENGLAND,WEST LINDSEY DISTRICT COUNCIL,2033673848,"27,371"
Department for Work and Pensions ,Corporate,26/05/2015,PROFESSIONAL ADVICE & OPINION VAT RECOVERABLE,CHG REAL TIME INFORMATION,HM REVENUE & CUSTOMS,2005456,"27,370"
Department for Work and Pensions ,Corporate,27/05/2015,PUBLICITY RES'H/EVAL,CHG STATE PENSION REFORM SINGLE TIER,MARKET & OPINION RESEARCH INTERNATIONAL T/A IPSOS MORI,2033694312,"27,350"
Department for Work and Pensions ,Employment Programmes,22/05/2015,WP JSA 25+ SUSTAINMENT OUTCOME PAYMENT,WWEG EP SOUTH YORKSHIRE A4E,A4E LTD,2033688492,"27,305"
Department for Work and Pensions ,Employment Programmes,12/05/2015,ACCESS TO WORK - TRAVEL IN WORK,WWEG EP NORTH EAST,CAPITA SYMONDS LTD,2033669480,"27,305"
Department for Work and Pensions ,Housing Benefits,14/05/2015,HOUSING BENEFIT ADMINISTRATION,HB ENGLAND,ROTHER DISTRICT COUNCIL,2033674005,"27,229"
Department for Work and Pensions ,Employment Programmes,11/05/2015,WP JSA 18-24 JOB SUSTAINMENT OUTCOME PAYMENT,WWEG EP SCOTLAND INGEUS UK,INGEUS UK LTD,2033666254,"27,200"
Department for Work and Pensions ,Housing Benefits,14/05/2015,HOUSING BENEFIT ADMINISTRATION,HB ENGLAND,EAST HAMPSHIRE DISTRICT COUNCIL,2033674058,"27,170"
Department for Work and Pensions ,Corporate,21/05/2015,NETWORK SERVICES,CIO ITLR NETWORK,TMOBILE LTD,2033685528,"27,168"
Department for Work and Pensions ,Employment Programmes,13/05/2015,WP JSA 25+ SUSTAINMENT OUTCOME PAYMENT,WWEG EP EAST LONDON A4E,A4E LTD,2033670724,"27,090"
Department for Work and Pensions ,Employment Programmes,08/05/2015,WP JSA 25+ SUSTAINMENT OUTCOME PAYMENT,WWEG EP W MIDLANDS BIRM SOL BC FOURSTAR EMP AND SKILLS,AVANTA ENTERPRISE LTD,2033665905,"27,090"
Department for Work and Pensions ,Employment Programmes,13/05/2015,WP JSA 25+ SUSTAINMENT OUTCOME PAYMENT,WWEG EP SCOTLAND INGEUS UK,INGEUS UK LTD,2033672067,"27,090"
Department for Work and Pensions ,Employment Programmes,27/05/2015,WP JSA 25+ SUSTAINMENT OUTCOME PAYMENT,WWEG EP SCOTLAND INGEUS UK,INGEUS UK LTD,2033693183,"27,090"
Department for Work and Pensions ,Employment Programmes,11/05/2015,WP JSA 25+ SUSTAINMENT OUTCOME PAYMENT,WWEG EP W MIDLANDS BIRM SOL BC PERTEMPS,PERTEMPS,2033666453,"26,875"
Department for Work and Pensions ,Housing Benefits,14/05/2015,HOUSING BENEFIT ADMINISTRATION,HB ENGLAND,BROADLAND DISTRICT COUNCIL,2033673850,"26,825"
Department for Work and Pensions ,Employment Programmes,05/05/2015,WP JSA 25+ JOB OUTCOME PAYMENTWP JSA 25+ JOB OUTCOME PAYMENT,WWEG EP NORTH WEST GM CHES AND WARR SEETEC,SEETEC BUSINESS TECHNOLOGY CENTRE LTD,2033659959,"26,820"
Department for Work and Pensions ,Corporate,06/05/2015,CONTRACTORS & STAFF SUBSTITUTIONS,CHG DEPARTMENTAL & BUSINESS STRATEGY,CAPITA BUSINESS SERVICES LTD,2033661197,"26,803"
Department for Work and Pensions ,Housing Benefits,14/05/2015,HOUSING BENEFIT ADMINISTRATION,HB ENGLAND,TAMWORTH BOROUGH COUNCIL,2033674029,"26,794"
Department for Work and Pensions ,Housing Benefits,14/05/2015,HOUSING BENEFIT ADMINISTRATION,HB ENGLAND,SOUTH STAFFORDSHIRE DISTRICT COUNCIL,2033674027,"26,760"
Department for Work and Pensions ,Corporate,15/05/2015,SOFTWARE LICENCES GREATER THAN ONE YEAR TERM,CHG UC DESIGN & BUILD PROGRAMME MANAGER,SPECIALIST COMPUTER CENTRES PLC,2033676363,"26,752"
Department for Work and Pensions ,Employment Programmes,08/05/2015,ESF 2011-13 SUPPORT FOR FAMILIES WITH MULTIPLE PROBLEMS JSA CUSTOMERS THIRD PROGRESS MEASURE PAYMENT,CPA12 YORKS AND HUMBER EOS WORKS LTD FORMERLY FOURSTAR,AVANTA ENTERPRISE LTD,2033665905,"26,739"
Department for Work and Pensions ,Housing Benefits,14/05/2015,HOUSING BENEFIT ADMINISTRATION,HB ENGLAND,BARROW BOROUGH COUNCIL,2033674131,"26,727"
Department for Work and Pensions ,Employment Programmes,05/05/2015,WP JSA 18-24 JOB SUSTAINMENT OUTCOME PAYMENT,WWEG EP EAST OF ENGLAND INGEUS UK,INGEUS UK LTD,2033660603,"26,690"
Department for Work and Pensions ,Housing Benefits,14/05/2015,HOUSING BENEFIT ADMINISTRATION,HB ENGLAND,WOKING BOROUGH COUNCIL,2033674137,"26,689"
Department for Work and Pensions ,Employment Programmes,14/05/2015,WP JSA 25+ SUSTAINMENT OUTCOME PAYMENT,WWEG EP NORTH WEST GM CHES AND WARR AVANTA ENTERPRISE,AVANTA ENTERPRISE,2033675000,"26,660"
Department for Work and Pensions ,Employment Programmes,14/05/2015,WP JSA 25+ SUSTAINMENT OUTCOME PAYMENT,WWEG EP SOUTH EAST SURR SUSSX AND KENT AVANTA ENTERPRISE,AVANTA ENTERPRISE,2033675000,"26,660"
Department for Work and Pensions ,Employment Programmes,08/05/2015,WP JSA 25+ SUSTAINMENT OUTCOME PAYMENT,WWEG EP EAST MIDLANDS INGEUS UK,INGEUS UK LTD,2033665073,"26,660"
Department for Work and Pensions ,Employment Programmes,15/05/2015,WP JSA 25+ SUSTAINMENT OUTCOME PAYMENT,WWEG EP SCOTLAND WORKING LINKS,WORKING LINKS,2033676290,"26,660"
Department for Work and Pensions ,Employment Programmes,13/05/2015,WP JSA 25+ JOB OUTCOME PAYMENTWP JSA 25+ JOB OUTCOME PAYMENT,WWEG EP EAST OF ENGLAND SEETEC,SEETEC BUSINESS TECHNOLOGY CENTRE LTD,2033671569,"26,598"
Department for Work and Pensions ,Housing Benefits,14/05/2015,HOUSING BENEFIT ADMINISTRATION,HB ENGLAND,SOUTH CAMBRIDGESHIRE DISTRICT COUNCIL,2033673822,"26,587"
Department for Work and Pensions ,Housing Benefits,14/05/2015,HOUSING BENEFIT ADMINISTRATION,HB ENGLAND,SOUTH RIBBLE BOROUGH COUNCIL C,2033673805,"26,522"
Department for Work and Pensions ,Corporate,08/05/2015,PROFESSIONAL ADVICE & OPINION VAT RECOVERABLE,FG INTERNAL AUDIT,PRICE WATERHOUSE COOPER LLP,2033665254,"26,459"
Department for Work and Pensions ,Employment Programmes,05/05/2015,WP JSA 25+ JOB OUTCOME PAYMENTWP JSA 25+ JOB OUTCOME PAYMENT,WWEG EP NORTH EAST AVANTA ENTERPRISE,AVANTA ENTERPRISE,2033660631,"26,430"
Department for Work and Pensions ,Corporate,08/05/2015,FSF - TRAINING PAYMENTS TO PROVIDERS - JSA JOBSEEKERS,OPS WDC WSD SC EAST AND SOUTH EAST SCOTLAND DO,ICTS UK LTD,2033665234,"26,402"
Department for Work and Pensions ,Employment Programmes,05/05/2015,WP JSA 25+ JOB OUTCOME PAYMENTWP JSA 25+ JOB OUTCOME PAYMENT,WWEG EP SOUTH EAST SURR SUSSX AND KENT AVANTA ENTERPRISE,AVANTA ENTERPRISE,2033660631,"26,370"
Department for Work and Pensions ,Corporate,06/05/2015,LOCAL AUTHORITY (LA) ANTI FRAUD INCENTIVES,CHG HB FRAUD & ERROR REDUCTION,NEWCASTLE CITY COUNCIL,2033661764,"26,368"
Department for Work and Pensions ,Housing Benefits,14/05/2015,HOUSING BENEFIT ADMINISTRATION,HB ENGLAND,STROUD DISTRICT COUNCIL,2033674034,"26,361"
Department for Work and Pensions ,Employment Programmes,05/05/2015,WP JSA 18-24 JOB SUSTAINMENT OUTCOME PAYMENT,WWEG EP SCOTLAND INGEUS UK,INGEUS UK LTD,2033660603,"26,350"
Department for Work and Pensions ,Housing Benefits,14/05/2015,HOUSING BENEFIT ADMINISTRATION,HB ENGLAND,FOREST OF DEAN DISTRICT COUNCIL,2033674033,"26,346"
Department for Work and Pensions ,Housing Benefits,14/05/2015,HOUSING BENEFIT ADMINISTRATION,HB SCOTLAND,STIRLING COUNCIL,2033673811,"26,316"
Department for Work and Pensions ,Corporate,13/05/2015,Inter DWP debtor - Payments to Foreign bank accounts,BALANCE SHEET,TARRANT & TARRANT SOLICITORS,3044409,"26,303"
Department for Work and Pensions ,Housing Benefits,14/05/2015,HOUSING BENEFIT ADMINISTRATION,HB ENGLAND,SOUTH OXFORDSHIRE DISTRICT COUNCIL,2033673973,"26,292"
Department for Work and Pensions ,Employment Programmes,26/05/2015,WP JSA 25+ SUSTAINMENT OUTCOME PAYMENT,WWEG EP WEST LONDON REED IN PARTNERSHIP,REED IN PARTNERSHIP LTD,2033690201,"26,230"
Department for Work and Pensions ,Employment Programmes,08/05/2015,WP JSA 25+ SUSTAINMENT OUTCOME PAYMENT,WWEG EP W MIDLANDS COV WARW STAFFS AND MARCHES SERCO,SERCO LTD,2033665758,"26,230"
Department for Work and Pensions ,Housing Benefits,14/05/2015,HOUSING BENEFIT ADMINISTRATION,HB ENGLAND,CASTLE POINT DISTRICT COUNCIL,2033674008,"26,108"
Department for Work and Pensions ,Employment Programmes,11/05/2015,WP JSA 18-24 JOB SUSTAINMENT OUTCOME PAYMENT,WWEG EP NORTH EAST INGEUS UK,INGEUS UK LTD,2033666254,"26,010"
Department for Work and Pensions ,Corporate,05/05/2015,NON ICONS NETWORK SERVICES,CIO ITLR NETWORK,VODAFONE LTD,2033660548,"26,002"
Department for Work and Pensions ,Employment Programmes,28/05/2015,COMMUNITY WORK PLACEMENTS - JOB OUTCOME FEE,WWEP EP FG CEP CWP CPA04 - LONDON (EAST),G4S REGIONAL MANAGEMENT UK & I LTD,2033695785,"25,932"
Department for Work and Pensions ,Corporate,05/05/2015,NETWORK SERVICES,CIO ITLR NETWORK,TMOBILE LTD,2033660610,"25,885"
Department for Work and Pensions ,Employment Programmes,08/05/2015,WP JSA 25+ JOB OUTCOME PAYMENTWP JSA 25+ JOB OUTCOME PAYMENT,WWEG EP NORTH WEST GM CHES AND WARR G4S,G4S REGIONAL MANAGEMENT UK & I LTD,2033665719,"25,836"
Department for Work and Pensions ,Employment Programmes,18/05/2015,WP JSA 25+ SUSTAINMENT OUTCOME PAYMENT,WWEG EP SOUTH EAST SURR SUSSX AND KENT G4S,G4S REGIONAL MANAGEMENT UK & I LTD,2033679524,"25,800"
Department for Work and Pensions ,Employment Programmes,15/05/2015,WP JSA 25+ SUSTAINMENT OUTCOME PAYMENT,WWEG EP S WEST GLOS WILTS AND W OF E JHP GROUP,LEARNDIRECT LTD,2033677344,"25,800"
Department for Work and Pensions ,Housing Benefits,14/05/2015,HOUSING BENEFIT ADMINISTRATION,HB ENGLAND,VALE OF WHITE HORSE DISTRICT COUNCIL,2033673974,"25,745"
Department for Work and Pensions ,Housing Benefits,14/05/2015,HOUSING BENEFIT ADMINISTRATION,HB ENGLAND,NORTH WEST LEICESTER DISTRICT COUNCIL,2033673826,"25,660"
Department for Work and Pensions ,Employment Programmes,06/05/2015,WP JSA 25+ SUSTAINMENT OUTCOME PAYMENT,WWEG EP EAST LONDON CAREERS DEVELOPMENT GROUP,CAREERS DEVELOPMENT GROUP,2033661160,"25,585"
Department for Work and Pensions ,Employment Programmes,13/05/2015,WP JSA 25+ SUSTAINMENT OUTCOME PAYMENT,WWEG EP NORTH WEST GM CHES AND WARR G4S,G4S REGIONAL MANAGEMENT UK & I LTD,2033671211,"25,585"
Department for Work and Pensions ,Housing Benefits,14/05/2015,HOUSING BENEFIT ADMINISTRATION,HB ENGLAND,ROSSENDALE BOROUGH COUNCIL,2033673788,"25,515"
Department for Work and Pensions ,Corporate,14/05/2015,FSF - PARTNERSHIP GRANTS - TO HELP LONE PARENTS INTO WORK,OPS WDC WSD LN EAST LONDON DISTRICT OFFICE,LONDON BOROUGH OF BARKING & DAGENHAM,2033674243,"25,498"
Department for Work and Pensions ,Housing Benefits,14/05/2015,HOUSING BENEFIT ADMINISTRATION,HB ENGLAND,HINCKLEY & BOSWORTH BOROUGH COUNCIL,2033673808,"25,468"
Department for Work and Pensions ,Employment Programmes,13/05/2015,WP JSA 25+ SUSTAINMENT OUTCOME PAYMENT,WWEG EP EAST MIDLANDS A4E,A4E LTD,2033670724,"25,370"
Department for Work and Pensions ,Housing Benefits,14/05/2015,HOUSING BENEFIT ADMINISTRATION,HB SCOTLAND,CLACKMANNANSHIRE COUNCIL,2033673857,"25,370"
Department for Work and Pensions ,Corporate,14/05/2015,LOCAL AUTHORITY (LA) ANTI FRAUD INCENTIVES,CHG HB FRAUD & ERROR REDUCTION,COVENTRY CITY COUNCIL,2033674426,"25,253"
Department for Work and Pensions ,Employment Programmes,22/05/2015,WP JSA NEET SUSTAINMENT OUTCOME PAYMENT,WWEG EP EAST MIDLANDS A4E,A4E LTD,2033688492,"25,250"
Department for Work and Pensions ,Corporate,13/05/2015,FSF - REMOVING OTHER BARRIERS TO WORK  - SICK/DISABLED CLIENTS,OPS WDC WSD SE DEVON CORNWALL & SOMERSET DISTRICT,CAREERS SOUTH WEST LTD,2033672374,"25,195"
Department for Work and Pensions ,Corporate,19/05/2015,TREDDS IS IT CONSULTANCY (HOSTING) NON ADVICE,CIO ADC DIRECTOR,HP ENTERPRISE SERVICES UK LTD,2033682238,"25,193"
Department for Work and Pensions ,Employment Programmes,22/05/2015,WP JSA 25+ SUSTAINMENT OUTCOME PAYMENT,WWEG EP W MIDLANDS BIRM SOL BC PERTEMPS,PERTEMPS,2033687939,"25,155"
Department for Work and Pensions ,Employment Programmes,05/05/2015,WP JSA 25+ JOB OUTCOME PAYMENTWP JSA 25+ JOB OUTCOME PAYMENT,WWEG EP EAST LONDON CAREERS DEVELOPMENT GROUP,CAREERS DEVELOPMENT GROUP,2033659758,"25,080"
Department for Work and Pensions ,Housing Benefits,14/05/2015,HOUSING BENEFIT ADMINISTRATION,HB WALES,CEREDIGION COUNTY COUNCIL,2033673992,"25,043"
Department for Work and Pensions ,Employment Programmes,15/05/2015,WP JSA NEET SUSTAINMENT OUTCOME PAYMENT,WWEG EP EAST MIDLANDS A4E,A4E LTD,2033676511,"25,000"
Department for Work and Pensions ,Corporate,07/05/2015,VOCA Charges,FG FIN CONT COBAP BANKING,CITIBANK GLOBAL CORPORATE BANKING,2033664520,"25,000"
Department for Work and Pensions ,Corporate,05/05/2015,CREDIT UNION EXPANSION FUND,CHG CREDIT UNION EXPANSION AND DEVELOPMENT DELP,THE ASSOCIATION OF BRITISH CREDIT UNIONS LTD,2033660453,"25,000"
Department for Work and Pensions ,Corporate,06/05/2015,AGENCY PAYMENTS TO LOCAL AUTHORITIES & PARTNERSHIPS,CHG UC PROGRAMME RECHARGES,TORFAEN COUNTY BOROUGH COUNCIL,1007166,"25,000"
Department for Work and Pensions ,Employment Programmes,11/05/2015,WP JSA 18-24 JOB SUSTAINMENT OUTCOME PAYMENT,WWEG EP NORTH WEST MERS HAL CUMB AND LANCS INGEUS UK,INGEUS UK LTD,2033666254,"24,990"
Department for Work and Pensions ,Employment Programmes,19/05/2015,ESF 2011-13 SUPPORT FOR FAMILIES WITH MULTIPLE PROBLEMS JSA CUSTOMERS JOB OUTCOME PAYMENT,CPA8 SOUTH EAST SKILLS TRAINING UK,SKILLS TRAINING UK LIMITED,2033681784,"24,950"
Department for Work and Pensions ,Employment Programmes,08/05/2015,WP JSA 25+ SUSTAINMENT OUTCOME PAYMENT,WWEG EP W MIDLANDS COV WARW STAFFS AND MARCHES ESG,ESG HOLDINGS LIMITED,2033666176,"24,940"
Department for Work and Pensions ,Employment Programmes,15/05/2015,WP JSA 25+ SUSTAINMENT OUTCOME PAYMENT,WWEG EP W MIDLANDS BIRM SOL BC PERTEMPS,PERTEMPS,2033676847,"24,940"
Department for Work and Pensions ,Housing Benefits,14/05/2015,HOUSING BENEFIT ADMINISTRATION,HB ENGLAND,SOUTH HAMS DISTRICT COUNCIL,2033673953,"24,787"
Department for Work and Pensions ,Housing Benefits,14/05/2015,HOUSING BENEFIT ADMINISTRATION,HB ENGLAND,THREE RIVERS DISTRICT COUNCIL,2033674103,"24,756"
Department for Work and Pensions ,Employment Programmes,05/05/2015,WP JSA NEET SUSTAINMENT OUTCOME PAYMENT,WWEG EP NORTH WEST MERS HAL CUMB AND LANCS A4E,A4E LTD,2033660434,"24,750"
Department for Work and Pensions ,Housing Benefits,14/05/2015,HOUSING BENEFIT ADMINISTRATION,HB SCOTLAND,EAST DUNBARTONSHIRE COUNCIL,2033673767,"24,730"
Department for Work and Pensions ,Employment Programmes,18/05/2015,WP JSA 25+ SUSTAINMENT OUTCOME PAYMENT,WWEG EP WALES REHAB JOB FIT,REHAB JOBFIT LLP,2033679361,"24,725"
Department for Work and Pensions ,Employment Programmes,28/05/2015,WP JSA 25+ SUSTAINMENT OUTCOME PAYMENT,WWEG EP SCOTLAND WORKING LINKS,WORKING LINKS,2033696735,"24,725"
Department for Work and Pensions ,Corporate,06/05/2015,MANAGED SERVICE UNIVERSAL JOBMATCH,CHG BTG - UNIVERSAL JOBMATCH,MONSTER GOVERNMENT SOLUTIONS,2033662499,"24,645"
Department for Work and Pensions ,Employment Programmes,05/05/2015,WP JSA 25+ JOB OUTCOME PAYMENTWP JSA 25+ JOB OUTCOME PAYMENT,WWEG EP WALES WORKING LINKS WALES,WORKING LINKS,2033660601,"24,584"
Department for Work and Pensions ,Employment Programmes,19/05/2015,WP JSA 25+ SUSTAINMENT OUTCOME PAYMENT,WWEG EP NORTH EAST AVANTA ENTERPRISE,AVANTA ENTERPRISE,2033682099,"24,510"
Department for Work and Pensions ,Employment Programmes,08/05/2015,WP JSA 25+ SUSTAINMENT OUTCOME PAYMENT,WWEG EP WALES WORKING LINKS WALES,WORKING LINKS,2033665071,"24,510"
Department for Work and Pensions ,Employment Programmes,05/05/2015,WP JSA 18-24 JOB SUSTAINMENT OUTCOME PAYMENT,WWEG EP EAST MIDLANDS INGEUS UK,INGEUS UK LTD,2033660603,"24,480"
Department for Work and Pensions ,Corporate,27/05/2015,COURIER COSTS,FG CD CENTRAL CONTRACTS,TNT UK LTD,2033692431,"24,464"
Department for Work and Pensions ,Corporate,12/05/2015,HOSTING GMS SERVICES,OPS OPE C&I IT WINTER FUEL,HP ENTERPRISE SERVICES UK LTD,2033668989,"24,344"
Department for Work and Pensions ,Employment Programmes,13/05/2015,WP JSA 25+ JOB OUTCOME PAYMENTWP JSA 25+ JOB OUTCOME PAYMENT,WWEG EP SOUTH EAST SURR SUSSX AND KENT AVANTA ENTERPRISE,AVANTA ENTERPRISE,2033672533,"24,330"
Department for Work and Pensions ,Corporate,05/05/2015,PROFESSIONAL ADVICE & OPINION VAT RECOVERABLE,FG INTERNAL AUDIT,PRICE WATERHOUSE COOPER LLP,2033660472,"24,300"
Department for Work and Pensions ,Employment Programmes,11/05/2015,WP JSA 25+ SUSTAINMENT OUTCOME PAYMENT,WWEG EP EAST LONDON A4E,A4E LTD,2033666308,"24,295"
Department for Work and Pensions ,Employment Programmes,18/05/2015,WP JSA 25+ SUSTAINMENT OUTCOME PAYMENT,WWEG EP NORTH WEST GM CHES AND WARR AVANTA ENTERPRISE,AVANTA ENTERPRISE,2033679239,"24,295"
Department for Work and Pensions ,Employment Programmes,08/05/2015,WP JSA 25+ SUSTAINMENT OUTCOME PAYMENT,WWEG EP WEST LONDON MAXIMUS EMPLOYMENT UK,MAXIMUS EMPLOYMENT UK LTD,2033666183,"24,295"
Department for Work and Pensions ,Employment Programmes,05/05/2015,WP JSA 25+ SUSTAINMENT OUTCOME PAYMENT,WWEG EP NORTH EAST Y AND H NEWCASTLE COLLEGE GROUP,NEWCASTLE COLLEGE GROUP,2033660135,"24,295"
Department for Work and Pensions ,Employment Programmes,05/05/2015,WP JSA 25+ SUSTAINMENT OUTCOME PAYMENT,WWEG EP SOUTH YORKSHIRE SERCO,SERCO LTD,2033660322,"24,295"
Department for Work and Pensions ,Corporate,22/05/2015,SOFTWARE LICENCES GREATER THAN ONE YEAR TERM,CHG VME MIDDLEWARE-R,SPECIALIST COMPUTER CENTRES PLC,2033687434,"24,220"
Department for Work and Pensions ,Housing Benefits,14/05/2015,HOUSING BENEFIT ADMINISTRATION,HB ENGLAND,LICHFIELD DISTRICT COUNCIL,2033674025,"24,220"
Department for Work and Pensions ,Employment Programmes,05/05/2015,COMMUNITY WORK PLACEMENTS - JOB OUTCOME FEE,WWEP EP FG CEP CWP CPA02 - EAST MIDLANDS,G4S REGIONAL MANAGEMENT UK & I LTD,2033660727,"24,181"
Department for Work and Pensions ,Corporate,14/05/2015,AGENCY PAYMENTS TO LOCAL AUTHORITIES & PARTNERSHIPS,CHG UC PATHFINDER DELIVERY MANAGEMENT,BLACKBURN WITH DARWEN BC,2033675898,"24,091"
Department for Work and Pensions ,Employment Programmes,08/05/2015,WP JSA 25+ SUSTAINMENT OUTCOME PAYMENT,WWEG EP SOUTH YORKSHIRE A4E,A4E LTD,2033666061,"24,080"
Department for Work and Pensions ,Employment Programmes,28/05/2015,WP JSA 25+ SUSTAINMENT OUTCOME PAYMENT,WWEG EP NORTH EAST AVANTA ENTERPRISE,AVANTA ENTERPRISE,2033695771,"24,080"
Department for Work and Pensions ,Corporate,29/05/2015,NON-TREDDS IS IT APPS DEV MANDAY,CHG UC PATHFINDER RECURRENT COSTS,ACCENTURE UK LTD,2033697805,"24,052"
Department for Work and Pensions ,Employment Programmes,13/05/2015,WP JSA 18-24 JOB SUSTAINMENT OUTCOME PAYMENT,WWEG EP NORTH EAST AVANTA ENTERPRISE,AVANTA ENTERPRISE,2033672533,"23,970"
Department for Work and Pensions ,Employment Programmes,15/05/2015,WP JSA 18-24 JOB SUSTAINMENT OUTCOME PAYMENT,WWEG EP SCOTLAND INGEUS UK,INGEUS UK LTD,2033676395,"23,970"
Department for Work and Pensions ,Employment Programmes,11/05/2015,WP JSA 18-24 JOB SUSTAINMENT OUTCOME PAYMENT,WWEG EP EAST OF ENGLAND SEETEC,SEETEC BUSINESS TECHNOLOGY CENTRE LTD,2033666666,"23,970"
Department for Work and Pensions ,Housing Benefits,14/05/2015,HOUSING BENEFIT ADMINISTRATION,HB ENGLAND,WEST OXFORDSHIRE DISTRICT COUNCIL,2033673975,"23,899"
Department for Work and Pensions ,Employment Programmes,29/05/2015,WP JSA 25+ SUSTAINMENT OUTCOME PAYMENT,WWEG EP NORTH WEST GM CHES AND WARR AVANTA ENTERPRISE,AVANTA ENTERPRISE,2033699253,"23,865"
Department for Work and Pensions ,Employment Programmes,08/05/2015,WP JSA 25+ SUSTAINMENT OUTCOME PAYMENT,WWEG EP SOUTH YORKSHIRE SERCO,SERCO LTD,2033665758,"23,865"
Department for Work and Pensions ,Employment Programmes,15/05/2015,WP JSA 25+ JOB OUTCOME PAYMENTWP JSA 25+ JOB OUTCOME PAYMENT,WWEG EP SOUTH EAST SURR SUSSX AND KENT AVANTA ENTERPRISE,AVANTA ENTERPRISE,2033676351,"23,760"
Department for Work and Pensions ,Housing Benefits,14/05/2015,HOUSING BENEFIT ADMINISTRATION,HB ENGLAND,COPELAND BOROUGH COUNCIL,2033673901,"23,750"
Department for Work and Pensions ,Employment Programmes,15/05/2015,SUSTAINMENT FEE,REMPLOY WORK CHOICE PAYMENTS,REMPLOY LTD,2033676101,"23,748"
Department for Work and Pensions ,Employment Programmes,22/05/2015,COMMUNITY WORK PLACEMENTS - JOB OUTCOME FEE,WWEP EP FG CEP CWP CPA08 - SCOTLAND,LEARNDIRECT LTD,2033686977,"23,733"
Department for Work and Pensions ,Corporate,26/05/2015,NON-TREDDS IS IT SERVICES (HOSTING),CIO ITLR DIGITAL TOWER DEL P,SKYSCAPE CLOUD SERVICES LTD,2033688895,"23,657"
Department for Work and Pensions ,Employment Programmes,13/05/2015,WP JSA 25+ SUSTAINMENT OUTCOME PAYMENT,WWEG EP WEST LONDON INGEUS UK,INGEUS UK LTD,2033672067,"23,650"
Department for Work and Pensions ,Employment Programmes,22/05/2015,WP JSA 25+ SUSTAINMENT OUTCOME PAYMENT,WWEG EP WEST YORKSHIRE BEST LTD,INTERSERVE WORKING FUTURES,2033687283,"23,650"
Department for Work and Pensions ,Housing Benefits,14/05/2015,HOUSING BENEFIT ADMINISTRATION,HB ENGLAND,NORTH KESTEVEN DISTRICT COUNCIL,2033673853,"23,632"
Department for Work and Pensions ,Employment Programmes,05/05/2015,WP JSA 18-24 JOB SUSTAINMENT OUTCOME PAYMENT,WWEG EP EAST LONDON A4E,A4E LTD,2033660434,"23,630"
Department for Work and Pensions ,Employment Programmes,11/05/2015,WP JSA 18-24 JOB SUSTAINMENT OUTCOME PAYMENT,WWEG EP EAST OF ENGLAND INGEUS UK,INGEUS UK LTD,2033666254,"23,630"
Department for Work and Pensions ,Employment Programmes,05/05/2015,WP JSA 18-24 JOB SUSTAINMENT OUTCOME PAYMENT,WWEG EP EAST OF ENGLAND SEETEC,SEETEC BUSINESS TECHNOLOGY CENTRE LTD,2033659959,"23,630"
Department for Work and Pensions ,Housing Benefits,14/05/2015,HOUSING BENEFIT ADMINISTRATION,HB WALES,ISLE OF ANGLESEY COUNTY COUNCIL,2033673844,"23,622"
Department for Work and Pensions ,Corporate,14/05/2015,COST VARIANCE ACCOUNT,OPS OPE C&I NATIONAL 3,CAPITA CIVIL SERVICE LEARNING,2033674456,"23,472"
Department for Work and Pensions ,Housing Benefits,14/05/2015,HOUSING BENEFIT ADMINISTRATION,HB ENGLAND,SOUTH LAKELAND DISTRICT COUNCIL,2033673836,"23,440"
Department for Work and Pensions ,Housing Benefits,14/05/2015,HOUSING BENEFIT ADMINISTRATION,HB ENGLAND,FYLDE BOROUGH COUNCIL,2033673839,"23,415"
Department for Work and Pensions ,Housing Benefits,14/05/2015,HOUSING BENEFIT ADMINISTRATION,HB WALES,MONMOUTHSHIRE COUNTY  COUNCIL,2033673842,"23,378"
Department for Work and Pensions ,Employment Programmes,15/05/2015,WP JSA 25+ JOB OUTCOME PAYMENTWP JSA 25+ JOB OUTCOME PAYMENT,WWEG EP NORTH EAST AVANTA ENTERPRISE,AVANTA ENTERPRISE,2033676351,"23,370"
Department for Work and Pensions ,Corporate,12/05/2015,CONTRACTORS & STAFF SUBSTITUTIONS,F&C CD STRATEGY AND BUSINESS MANAGEMENT,CAPITA BUSINESS SERVICES LTD,2033668219,"23,370"
Department for Work and Pensions ,Housing Benefits,14/05/2015,HOUSING BENEFIT ADMINISTRATION,HB ENGLAND,SOUTH HOLLAND DISTRICT COUNCIL,2033674111,"23,368"
Department for Work and Pensions ,Housing Benefits,14/05/2015,HOUSING BENEFIT ADMINISTRATION,HB ENGLAND,TORRIDGE DISTRICT COUNCIL,2033673956,"23,144"
Department for Work and Pensions ,Housing Benefits,14/05/2015,HOUSING BENEFIT ADMINISTRATION,HB ENGLAND,BABERGH DISTRICT COUNCIL,2033674050,"23,098"
Department for Work and Pensions ,Housing Benefits,14/05/2015,HOUSING BENEFIT ADMINISTRATION,HB ENGLAND,MID DEVON DISTRICT COUNCIL,2033673954,"23,031"
Department for Work and Pensions ,Child Maintenance and Enforcement Commission,12/05/2015,NON-TREDDS IS IT APPS DEV MANDAY,MI PROJECT WAREHOUSE,CAPGEMINI UK PLC,1000235502,"23,005"
Department for Work and Pensions ,Employment Programmes,26/05/2015,WP JSA 25+ SUSTAINMENT OUTCOME PAYMENT,WWEG EP NORTH EAST AVANTA ENTERPRISE,AVANTA ENTERPRISE,2033690005,"23,005"
Department for Work and Pensions ,Employment Programmes,08/05/2015,WP JSA 25+ SUSTAINMENT OUTCOME PAYMENT,WWEG EP WEST LONDON REED IN PARTNERSHIP,REED IN PARTNERSHIP LTD,2033665650,"23,005"
Department for Work and Pensions ,Employment Programmes,18/05/2015,WP JSA 25+ SUSTAINMENT OUTCOME PAYMENT,WWEG EP WEST LONDON REED IN PARTNERSHIP,REED IN PARTNERSHIP LTD,2033679501,"23,005"
Department for Work and Pensions ,Corporate,07/05/2015,FSF - TRAINING PAYMENTS TO PROVIDERS - JSA JOBSEEKERS,OPS WDC WSD SE BATH JOBCENTRE PLUS,PINNACLE PEOPLE,2033664575,"22,985"
Department for Work and Pensions ,Corporate,21/05/2015,PRINTING/BINDING,FG CD MANAGEMENT FEE,XEROX UK LTD 3W,2033686725,"22,791"
Department for Work and Pensions ,Housing Benefits,14/05/2015,HOUSING BENEFIT ADMINISTRATION,HB ENGLAND,EAST CAMBRIDGESHIRE DISTRICT COUNCIL,2033673804,"22,751"
Department for Work and Pensions ,Employment Programmes,05/05/2015,WP JSA NEET SUSTAINMENT OUTCOME PAYMENT,WWEG EP NORTH WEST MERS HAL CUMB AND LANCS INGEUS UK,INGEUS UK LTD,2033660603,"22,750"
Department for Work and Pensions ,Housing Benefits,14/05/2015,HOUSING BENEFIT ADMINISTRATION,HB ENGLAND,STAFFORDSHIRE MOORLANDS DISTRICT COUNCIL,2033674028,"22,734"
Department for Work and Pensions ,Employment Programmes,05/05/2015,WP JSA 25+ JOB OUTCOME PAYMENTWP JSA 25+ JOB OUTCOME PAYMENT,WWEG EP EAST MIDLANDS A4E,A4E LTD,2033660434,"22,704"
Department for Work and Pensions ,Corporate,21/05/2015,CONNECTIVITY,CIO ITLR PSN CONNECTIVITY,BT GLOBAL SERVICES,2033686839,"22,611"
Department for Work and Pensions ,Employment Programmes,08/05/2015,WP JSA 18-24 JOB SUSTAINMENT OUTCOME PAYMENT,WWEG EP EAST MIDLANDS A4E,A4E LTD,2033666061,"22,610"
Department for Work and Pensions ,Employment Programmes,21/05/2015,WP JSA 25+ SUSTAINMENT OUTCOME PAYMENT,WWEG EP NORTH WEST GM CHES AND WARR AVANTA ENTERPRISE,AVANTA ENTERPRISE,2033686865,"22,575"
Department for Work and Pensions ,Employment Programmes,28/05/2015,WP JSA 25+ SUSTAINMENT OUTCOME PAYMENT,WWEG EP NORTH WEST GM CHES AND WARR AVANTA ENTERPRISE,AVANTA ENTERPRISE,2033695771,"22,575"
Department for Work and Pensions ,Child Maintenance and Enforcement Commission,08/05/2015,PROFESSIONAL ADVICE & OPINION VAT RECOVERABLE,NEW SCHEME OTHER INTERFACES,EXPERIAN LTD,1000235218,"22,572"
Department for Work and Pensions ,Corporate,14/05/2015,FSF - TRAINING PAYMENTS TO PROVIDERS - JSA JOBSEEKERS,OPS WDC WSD NW BLACKBURN ORCHARD HOUSE JOBCENTRE PLUS,VEDAS RECRUITMENT & TRAINING LTD,2033675501,"22,566"
Department for Work and Pensions ,Corporate,29/05/2015,PRIME FACILITY PRICE,FG CD PORTH OLDWAY HOUSE,TELEREAL TRILLIUM,2033698847,"22,556"
Department for Work and Pensions ,Employment Programmes,08/05/2015,ESF 2011-13 SUPPORT FOR FAMILIES WITH MULTIPLE PROBLEMS JSA CUSTOMERS SECOND PROGRESS MEASURE PAYMENT,CPA12 YORKS AND HUMBER EOS WORKS LTD FORMERLY FOURSTAR,AVANTA ENTERPRISE LTD,2033665905,"22,551"
Department for Work and Pensions ,Corporate,19/05/2015,TREDDS APPS DEV MANDAYS,CIO SECURITY IMPROVEMENT PROGRAMME,HP ENTERPRISE SERVICES UK LTD,2033682238,"22,494"
Department for Work and Pensions ,Employment Programmes,05/05/2015,WP JSA 18-24 JOB SUSTAINMENT OUTCOME PAYMENT,WWEG EP WALES WORKING LINKS WALES,WORKING LINKS,2033660601,"22,440"
Department for Work and Pensions ,Employment Programmes,11/05/2015,WP JSA 25+ SUSTAINMENT OUTCOME PAYMENT,WWEG EP NORTH EAST AVANTA ENTERPRISE,AVANTA ENTERPRISE,2033666531,"22,360"
Department for Work and Pensions ,Corporate,22/05/2015,STAFF TRAVEL,CHG UC PATHFINDER DELIVERY MANAGEMENT,REDFERN TRAVEL LTD,2033687747,"22,299"
Department for Work and Pensions ,Housing Benefits,14/05/2015,HOUSING BENEFIT ADMINISTRATION,HB ENGLAND,HAMBLETON DISTRICT COUNCIL,2033673904,"22,288"
Department for Work and Pensions ,Employment Programmes,15/05/2015,WP JSA 18-24 JOB SUSTAINMENT OUTCOME PAYMENT,WWEG EP EAST OF ENGLAND INGEUS UK,INGEUS UK LTD,2033676395,"22,270"
Department for Work and Pensions ,Corporate,06/05/2015,CONTRACTORS & STAFF SUBSTITUTIONS,F&C CD STRATEGY AND BUSINESS MANAGEMENT,CAPITA BUSINESS SERVICES LTD,2033661197,"22,249"
Department for Work and Pensions ,Housing Benefits,14/05/2015,HOUSING BENEFIT ADMINISTRATION,HB ENGLAND,TEWKESBURY BOROUGH COUNCIL,2033674056,"22,239"
Department for Work and Pensions ,Employment Programmes,26/05/2015,WP JSA 25+ JOB OUTCOME PAYMENTWP JSA 25+ JOB OUTCOME PAYMENT,WWEG EP SOUTH EAST SURR SUSSX AND KENT G4S,G4S REGIONAL MANAGEMENT UK & I LTD,2033690126,"22,206"
Department for Work and Pensions ,Child Maintenance and Enforcement Commission,22/05/2015,PROFESSIONAL ADVICE & OPINION VAT RECOVERABLE,NEW SCHEME OTHER INTERFACES,EXPERIAN LTD,1000236407,"22,176"
Department for Work and Pensions ,Employment Programmes,11/05/2015,WP JSA 25+ SUSTAINMENT OUTCOME PAYMENT,WWEG EP NORTH WEST MERS HAL CUMB AND LANCS A4E,A4E LTD,2033666308,"22,145"
Department for Work and Pensions ,Employment Programmes,18/05/2015,WP JSA 25+ SUSTAINMENT OUTCOME PAYMENT,WWEG EP W MIDLANDS BIRM SOL BC FOURSTAR EMP AND SKILLS,AVANTA ENTERPRISE LTD,2033678166,"22,145"
Department for Work and Pensions ,Employment Programmes,06/05/2015,WP JSA 25+ SUSTAINMENT OUTCOME PAYMENT,WWEG EP EAST OF ENGLAND INGEUS UK,INGEUS UK LTD,2033660840,"22,145"
Department for Work and Pensions ,Employment Programmes,21/05/2015,WP JSA 25+ SUSTAINMENT OUTCOME PAYMENT,WWEG EP SCOTLAND WORKING LINKS,WORKING LINKS,2033685513,"22,145"
Department for Work and Pensions ,Employment Programmes,29/05/2015,WP JSA 25+ SUSTAINMENT OUTCOME PAYMENT,WWEG EP SCOTLAND WORKING LINKS,WORKING LINKS,2033697390,"22,145"
Department for Work and Pensions ,Corporate,19/05/2015,TREDDS APPS DEV MANDAYS,CHG VME CACS-R,HP ENTERPRISE SERVICES UK LTD,2033682238,"22,134"
Department for Work and Pensions ,Housing Benefits,14/05/2015,HOUSING BENEFIT ADMINISTRATION,HB ENGLAND,SOUTH DERBYSHIRE DISTRICT COUNCIL,2033674021,"22,110"
Department for Work and Pensions ,Housing Benefits,14/05/2015,HOUSING BENEFIT ADMINISTRATION,HB ENGLAND,RUNNYMEDE BOROUGH COUNCIL,2033674135,"22,092"
Department for Work and Pensions ,Employment Programmes,08/05/2015,WP JSA 25+ JOB OUTCOME PAYMENTWP JSA 25+ JOB OUTCOME PAYMENT,WWEG EP W MIDLANDS BIRM SOL BC FOURSTAR EMP AND SKILLS,AVANTA ENTERPRISE LTD,2033665905,"22,032"
Department for Work and Pensions ,Employment Programmes,05/05/2015,WP JSA 25+ SUSTAINMENT OUTCOME PAYMENT,WWEG EP NORTH WEST GM CHES AND WARR G4S,G4S REGIONAL MANAGEMENT UK & I LTD,2033660727,"21,930"
Department for Work and Pensions ,Employment Programmes,13/05/2015,WP JSA 25+ SUSTAINMENT OUTCOME PAYMENT,WWEG EP NORTH EAST INGEUS UK,INGEUS UK LTD,2033672067,"21,930"
Department for Work and Pensions ,Employment Programmes,27/05/2015,WP JSA 25+ SUSTAINMENT OUTCOME PAYMENT,WWEG EP EAST OF ENGLAND INGEUS UK,INGEUS UK LTD,2033693183,"21,930"
Department for Work and Pensions ,Employment Programmes,13/05/2015,WP JSA 25+ JOB OUTCOME PAYMENTWP JSA 25+ JOB OUTCOME PAYMENT,WWEG EP EAST LONDON SEETEC,SEETEC BUSINESS TECHNOLOGY CENTRE LTD,2033671569,"21,888"
Department for Work and Pensions ,Housing Benefits,14/05/2015,HOUSING BENEFIT ADMINISTRATION,HB ENGLAND,RUSHCLIFFE BOROUGH COUNCIL,2033674125,"21,804"
Department for Work and Pensions ,Corporate,14/05/2015,NON-TREDDS IS IT CONSULTANCY (HOSTING) NON ADVICE,CHG UC DESIGN & BUILD PROGRAMME MANAGER,SPECIALIST COMPUTER CENTRES PLC,2033674275,"21,801"
Department for Work and Pensions ,Employment Programmes,08/05/2015,WP JSA 25+ JOB OUTCOME PAYMENTWP JSA 25+ JOB OUTCOME PAYMENT,WWEG EP SCOTLAND WORKING LINKS,WORKING LINKS,2033665071,"21,744"
Department for Work and Pensions ,Employment Programmes,22/05/2015,WP JSA 25+ SUSTAINMENT OUTCOME PAYMENT,WWEG EP NORTH WEST GM CHES AND WARR G4S,G4S REGIONAL MANAGEMENT UK & I LTD,2033687192,"21,715"
Department for Work and Pensions ,Employment Programmes,26/05/2015,WP JSA 25+ SUSTAINMENT OUTCOME PAYMENT,WWEG EP SCOTLAND INGEUS UK,INGEUS UK LTD,2033689930,"21,715"
Department for Work and Pensions ,Employment Programmes,26/05/2015,WP JSA 25+ SUSTAINMENT OUTCOME PAYMENT,WWEG EP EAST OF ENGLAND INGEUS UK,INGEUS UK LTD,2033689930,"21,715"
Department for Work and Pensions ,Employment Programmes,27/05/2015,WP JSA 25+ SUSTAINMENT OUTCOME PAYMENT,WWEG EP NORTH EAST INGEUS UK,INGEUS UK LTD,2033693183,"21,715"
Department for Work and Pensions ,Corporate,08/05/2015,PROFESSIONAL ADVICE & OPINION VAT RECOVERABLE,CMG OPS EXTERNAL CONTRACTS/SLAS TRACE,EXPERIAN LTD,2033665459,"21,688"
Department for Work and Pensions ,Employment Programmes,27/05/2015,ACCESS TO WORK - PAYMENT FOR SUPPORT WORKERS,WWEG EP NORTH WEST,RANSTAD HR SOLUTIONS LTD,2033693879,"21,533"
Department for Work and Pensions ,Employment Programmes,13/05/2015,WP JSA 25+ SUSTAINMENT OUTCOME PAYMENT,WWEG EP W MIDLANDS BIRM SOL BC NEWCASTLE COLLEGE GROUP,NEWCASTLE COLLEGE GROUP,2033672491,"21,500"
Department for Work and Pensions ,Employment Programmes,18/05/2015,WP JSA 25+ SUSTAINMENT OUTCOME PAYMENT,WWEG EP SOUTH YORKSHIRE SERCO,SERCO LTD,2033678737,"21,500"
Department for Work and Pensions ,Corporate,20/05/2015,PROFESSIONAL ADVICE & OPINION VAT RECOVERABLE,CMG OPS EXTERNAL CONTRACTS/SLAS TRACE,EXPERIAN LTD,2033683951,"21,459"
Department for Work and Pensions ,Employment Programmes,22/05/2015,WP JSA 25+ JOB OUTCOME PAYMENTWP JSA 25+ JOB OUTCOME PAYMENT,WWEG EP SOUTH EAST SURR SUSSX AND KENT G4S,G4S REGIONAL MANAGEMENT UK & I LTD,2033687192,"21,456"
Department for Work and Pensions ,Employment Programmes,05/05/2015,WP JSA 18-24 JOB SUSTAINMENT OUTCOME PAYMENT,WWEG EP NORTH EAST AVANTA ENTERPRISE,AVANTA ENTERPRISE,2033660631,"21,420"
Department for Work and Pensions ,Employment Programmes,13/05/2015,WP JSA 18-24 JOB SUSTAINMENT OUTCOME PAYMENT,WWEG EP SOUTH EAST SURR SUSSX AND KENT G4S,G4S REGIONAL MANAGEMENT UK & I LTD,2033671211,"21,420"
Department for Work and Pensions ,Employment Programmes,11/05/2015,WP JSA 18-24 JOB SUSTAINMENT OUTCOME PAYMENT,WWEG EP EAST MIDLANDS INGEUS UK,INGEUS UK LTD,2033666254,"21,420"
Department for Work and Pensions ,Corporate,19/05/2015,POSTAGE,FG CD NEWCASTLE ESTATE,G3 WORLDWIDE MAIL UK LTD,2033680189,"21,370"
Department for Work and Pensions ,Corporate,26/05/2015,PRIME BILLABLE EXTRAS PRIME CONTRACT MANAGEMENT (PCM),CHG DIGITAL JOBCENTRES,TELEREAL TRILLIUM,2033688916,"21,334"
Department for Work and Pensions ,Employment Programmes,13/05/2015,WP JSA 25+ SUSTAINMENT OUTCOME PAYMENT,WWEG EP WALES REHAB JOB FIT,REHAB JOBFIT LLP,2033670780,"21,285"
Department for Work and Pensions ,Employment Programmes,26/05/2015,WP JSA 25+ SUSTAINMENT OUTCOME PAYMENT,WWEG EP WALES REHAB JOB FIT,REHAB JOBFIT LLP,2033690207,"21,285"
Department for Work and Pensions ,Employment Programmes,08/05/2015,WP JSA 25+ JOB OUTCOME PAYMENTWP JSA 25+ JOB OUTCOME PAYMENT,WWEG EP S WEST GLOS WILTS AND W OF E JHP GROUP,LEARNDIRECT LTD,2033665253,"21,281"
Department for Work and Pensions ,Employment Programmes,22/05/2015,WP JSA 25+ JOB OUTCOME PAYMENTWP JSA 25+ JOB OUTCOME PAYMENT,WWEG EP NORTH WEST GM CHES AND WARR AVANTA ENTERPRISE,AVANTA ENTERPRISE,2033686938,"21,270"
Department for Work and Pensions ,Corporate,11/05/2015,NON-TREDDS IS IT CONSULTANCY (HOSTING) NON ADVICE,CHG UC DESIGN & BUILD PROGRAMME MANAGER,SPECIALIST COMPUTER CENTRES PLC,2033666490,"21,194"
Department for Work and Pensions ,Housing Benefits,14/05/2015,HOUSING BENEFIT ADMINISTRATION,HB ENGLAND,FAREHAM BOROUGH COUNCIL,2033674060,"21,159"
Department for Work and Pensions ,Employment Programmes,13/05/2015,WP JSA 25+ JOB OUTCOME PAYMENTWP JSA 25+ JOB OUTCOME PAYMENT,WWEG EP EAST LONDON CAREERS DEVELOPMENT GROUP,CAREERS DEVELOPMENT GROUP,2033673437,"21,120"
Department for Work and Pensions ,Housing Benefits,14/05/2015,HOUSING BENEFIT ADMINISTRATION,HB ENGLAND,WOKINGHAM BOROUGH COUNCIL,2033673909,"21,119"
Department for Work and Pensions ,Employment Programmes,08/05/2015,COMMUNITY WORK PLACEMENTS - JOB OUTCOME FEE,WWEP EP FG CEP CWP CPA08 - SCOTLAND,LEARNDIRECT LTD,2033665253,"21,096"
Department for Work and Pensions ,Employment Programmes,05/05/2015,WP JSA 18-24 JOB SUSTAINMENT OUTCOME PAYMENT,WWEG EP WEST YORKSHIRE INGEUS UK,INGEUS UK LTD,2033660603,"21,080"
Department for Work and Pensions ,Employment Programmes,15/05/2015,WP JSA 18-24 JOB SUSTAINMENT OUTCOME PAYMENT,WWEG EP NORTH WEST MERS HAL CUMB AND LANCS INGEUS UK,INGEUS UK LTD,2033676395,"21,080"
Department for Work and Pensions ,Employment Programmes,20/05/2015,WP JSA 25+ SUSTAINMENT OUTCOME PAYMENT,WWEG EP NORTH WEST GM CHES AND WARR AVANTA ENTERPRISE,AVANTA ENTERPRISE,2033682876,"21,070"
Department for Work and Pensions ,Employment Programmes,15/05/2015,WP JSA 25+ SUSTAINMENT OUTCOME PAYMENT,WWEG EP SOUTH EAST SURR SUSSX AND KENT G4S,G4S REGIONAL MANAGEMENT UK & I LTD,2033676354,"21,070"
Department for Work and Pensions ,Employment Programmes,26/05/2015,WP JSA 25+ SUSTAINMENT OUTCOME PAYMENT,WWEG EP EAST OF ENGLAND SEETEC,SEETEC BUSINESS TECHNOLOGY CENTRE LTD,2033689389,"21,070"
Department for Work and Pensions ,Corporate,28/05/2015,DWP COURT FEES & RELATED EXPENSES,PSG DH LEGAL SERVICES FLDM,THE SCOTLAND OFFICE,2005461,"21,005"
Department for Work and Pensions ,Corporate,28/05/2015,OTHER CAPITAL GRANTS,CIO COO IT DIRECTOR,CAPITA BUSINESS SERVICES LTD,2033694736,"20,923"
Department for Work and Pensions ,Corporate,28/05/2015,CONTRACTORS & STAFF SUBSTITUTIONS,F&C CD STRATEGY AND BUSINESS MANAGEMENT,CAPITA BUSINESS SERVICES LTD,2033694736,"20,922"
Department for Work and Pensions ,Housing Benefits,14/05/2015,HOUSING BENEFIT ADMINISTRATION,HB ENGLAND,EAST NORTHANTS DISTRICT COUNCIL,2033673877,"20,915"
Department for Work and Pensions ,Employment Programmes,15/05/2015,WP JSA 25+ SUSTAINMENT OUTCOME PAYMENT,WWEG EP NORTH EAST AVANTA ENTERPRISE,AVANTA ENTERPRISE,2033676351,"20,855"
Department for Work and Pensions ,Employment Programmes,08/05/2015,WP JSA 25+ SUSTAINMENT OUTCOME PAYMENT,WWEG EP WEST YORKSHIRE INGEUS UK,INGEUS UK LTD,2033665073,"20,855"
Department for Work and Pensions ,Employment Programmes,08/05/2015,WP JSA 25+ SUSTAINMENT OUTCOME PAYMENT,WWEG EP W MIDLANDS BIRM SOL BC PERTEMPS,PERTEMPS,2033665107,"20,855"
Department for Work and Pensions ,Employment Programmes,08/05/2015,WP JSA 25+ SUSTAINMENT OUTCOME PAYMENT,WWEG EP WALES REHAB JOB FIT,REHAB JOBFIT LLP,2033665598,"20,855"
Department for Work and Pensions ,Housing Benefits,14/05/2015,HOUSING BENEFIT ADMINISTRATION,HB ENGLAND,SELBY DISTRICT COUNCIL,2033673855,"20,829"
Department for Work and Pensions ,Employment Programmes,22/05/2015,WP JSA 18-24 JOB SUSTAINMENT OUTCOME PAYMENT,WWEG EP NORTH WEST MERS HAL CUMB AND LANCS A4E,A4E LTD,2033688492,"20,740"
Department for Work and Pensions ,Housing Benefits,14/05/2015,HOUSING BENEFIT ADMINISTRATION,HB ENGLAND,COTSWOLD DISTRICT COUNCIL,2033674109,"20,714"
Department for Work and Pensions ,Employment Programmes,15/05/2015,WP JSA 25+ SUSTAINMENT OUTCOME PAYMENT,WWEG EP W MIDLANDS BIRM SOL BC FOURSTAR EMP AND SKILLS,AVANTA ENTERPRISE LTD,2033677239,"20,640"
Department for Work and Pensions ,Employment Programmes,19/05/2015,WP JSA 25+ SUSTAINMENT OUTCOME PAYMENT,WWEG EP SCOTLAND WORKING LINKS,WORKING LINKS,2033680441,"20,640"
Department for Work and Pensions ,Employment Programmes,05/05/2015,WP JSA 25+ JOB OUTCOME PAYMENTWP JSA 25+ JOB OUTCOME PAYMENT,WWEG EP WEST YORKSHIRE INGEUS UK,INGEUS UK LTD,2033660603,"20,634"
Department for Work and Pensions ,Employment Programmes,05/05/2015,WP JSA 25+ JOB OUTCOME PAYMENTWP JSA 25+ JOB OUTCOME PAYMENT,WWEG EP NORTH WEST MERS HAL CUMB AND LANCS A4E,A4E LTD,2033660434,"20,592"
Department for Work and Pensions ,Employment Programmes,06/05/2015,WP JSA 18-24 JOB SUSTAINMENT OUTCOME PAYMENT,WWEG EP NORTH WEST GM CHES AND WARR G4S,G4S REGIONAL MANAGEMENT UK & I LTD,2033662501,"20,570"
Department for Work and Pensions ,Employment Programmes,11/05/2015,WP JSA 18-24 JOB SUSTAINMENT OUTCOME PAYMENT,WWEG EP SCOTLAND WORKING LINKS,WORKING LINKS,2033666252,"20,570"
Department for Work and Pensions ,Employment Programmes,19/05/2015,WP JSA 25+ JOB OUTCOME PAYMENTWP JSA 25+ JOB OUTCOME PAYMENT,WWEG EP EAST LONDON CAREERS DEVELOPMENT GROUP,CAREERS DEVELOPMENT GROUP,2033681259,"20,556"
Department for Work and Pensions ,Employment Programmes,14/05/2015,COMMUNITY WORK PLACEMENTS - JOB OUTCOME FEE,WWEP EP FG CEP CWP CPA01 - EAST OF ENGLAND,SEETEC BUSINESS TECHNOLOGY CENTRE LTD,2033675106,"20,539"
Department for Work and Pensions ,Corporate,06/05/2015,POSTAGE,OPS PEN PS CAU,ROYAL MAIL GROUP PLC,2033662275,"20,457"
Department for Work and Pensions ,Corporate,12/05/2015,CONTRACTORS & STAFF SUBSTITUTIONS,CIO IT SERVICES SERVICE TRANSITION,CAPITA BUSINESS SERVICES LTD,2033668219,"20,453"
Department for Work and Pensions ,Employment Programmes,18/05/2015,WP JSA 25+ SUSTAINMENT OUTCOME PAYMENT,WWEG EP EAST LONDON SEETEC,SEETEC BUSINESS TECHNOLOGY CENTRE LTD,2033677847,"20,425"
Department for Work and Pensions ,Employment Programmes,28/05/2015,WP JSA 25+ SUSTAINMENT OUTCOME PAYMENT,WWEG EP EAST OF ENGLAND SEETEC,SEETEC BUSINESS TECHNOLOGY CENTRE LTD,2033695400,"20,425"
Department for Work and Pensions ,Housing Benefits,14/05/2015,HOUSING BENEFIT ADMINISTRATION,HB ENGLAND,EAST DORSET DISTRICT COUNCIL,2033674018,"20,410"
Department for Work and Pensions ,Corporate,29/05/2015,NON-TREDDS IS IT APPS DEV MANDAY,CHG STATE PENSIONS PROG MANAGER & PMO,ACCENTURE UK LTD,2033697805,"20,404"
Department for Work and Pensions ,Employment Programmes,15/05/2015,WP JSA 18-24 JOB SUSTAINMENT OUTCOME PAYMENT,WWEG EP NORTH WEST MERS HAL CUMB AND LANCS A4E,A4E LTD,2033676511,"20,400"
Department for Work and Pensions ,Housing Benefits,14/05/2015,HOUSING BENEFIT ADMINISTRATION,HB ENGLAND,TANDRIDGE DISTRICT COUNCIL,2033673995,"20,388"
Department for Work and Pensions ,Corporate,06/05/2015,CONTRACTORS & STAFF SUBSTITUTIONS,CIO IT SERVICES SERVICE TRANSITION,CAPITA BUSINESS SERVICES LTD,2033661197,"20,380"
Department for Work and Pensions ,Housing Benefits,14/05/2015,HOUSING BENEFIT ADMINISTRATION,HB ENGLAND,MOLE VALLEY DISTRICT COUNCIL,2033674118,"20,279"
Department for Work and Pensions ,Employment Programmes,15/05/2015,WP JSA NEET SUSTAINMENT OUTCOME PAYMENT,WWEG EP SCOTLAND INGEUS UK,INGEUS UK LTD,2033676395,"20,250"
Department for Work and Pensions ,Employment Programmes,13/05/2015,WP JSA 18-24 JOB SUSTAINMENT OUTCOME PAYMENT,WWEG EP EAST LONDON CAREERS DEVELOPMENT GROUP,CAREERS DEVELOPMENT GROUP,2033673437,"20,230"
Department for Work and Pensions ,Employment Programmes,06/05/2015,WP JSA 25+ SUSTAINMENT OUTCOME PAYMENT,WWEG EP EAST LONDON A4E,A4E LTD,2033661043,"20,210"
Department for Work and Pensions ,Employment Programmes,15/05/2015,WP JSA 25+ SUSTAINMENT OUTCOME PAYMENT,WWEG EP SOUTH YORKSHIRE A4E,A4E LTD,2033676511,"20,210"
Department for Work and Pensions ,Employment Programmes,19/05/2015,WP JSA 25+ SUSTAINMENT OUTCOME PAYMENT,WWEG EP SCOTLAND INGEUS UK,INGEUS UK LTD,2033680444,"20,210"
Department for Work and Pensions ,Employment Programmes,20/05/2015,WP JSA 25+ SUSTAINMENT OUTCOME PAYMENT,WWEG EP EAST OF ENGLAND SEETEC,SEETEC BUSINESS TECHNOLOGY CENTRE LTD,2033683960,"20,210"
Department for Work and Pensions ,Corporate,27/05/2015,STAFF TRAINING VAT RECOVERABLE,HR FOR HR TEAM,CAPITA CIVIL SERVICE LEARNING,2033694014,"20,200"
Department for Work and Pensions ,Corporate,26/05/2015,STAFF TRAINING VAT RECOVERABLE,CIO ADC DIRECTOR,CAPITA CIVIL SERVICE LEARNING,2033688839,"20,180"
Department for Work and Pensions ,Employment Programmes,22/05/2015,WP JSA 25+ JOB OUTCOME PAYMENTWP JSA 25+ JOB OUTCOME PAYMENT,WWEG EP WALES WORKING LINKS WALES,WORKING LINKS,2033687005,"20,170"
Department for Work and Pensions ,Housing Benefits,14/05/2015,HOUSING BENEFIT ADMINISTRATION,HB SCOTLAND,EAST RENFREWSHIRE COUNCIL,2033673916,"20,145"
Department for Work and Pensions ,Housing Benefits,14/05/2015,HOUSING BENEFIT ADMINISTRATION,HB ENGLAND,MID SUFFOLK DISTRICT COUNCIL,2033674053,"20,123"
Department for Work and Pensions ,Employment Programmes,08/05/2015,WP JSA 18-24 JOB SUSTAINMENT OUTCOME PAYMENT,WWEG EP NORTH WEST GM CHES AND WARR AVANTA ENTERPRISE,AVANTA ENTERPRISE,2033665692,"20,060"
Department for Work and Pensions ,Housing Benefits,14/05/2015,HOUSING BENEFIT ADMINISTRATION,HB ENGLAND,FOREST HEATH DISTRICT COUNCIL,2033674051,"20,039"
Department for Work and Pensions ,Employment Programmes,20/05/2015,WP JSA 25+ JOB OUTCOME PAYMENTWP JSA 25+ JOB OUTCOME PAYMENT,WWEG EP SCOTLAND WORKING LINKS,WORKING LINKS,2033683494,"20,016"
Department for Work and Pensions ,Corporate,18/05/2015,TREDDS APPS DEV MANDAYS,CHG ABOLITION OF ASSESSED INCOME PERIODS IN SP CREDIT,HP ENTERPRISE SERVICES UK LTD,2033679358,"20,015"
Department for Work and Pensions ,Employment Programmes,05/05/2015,WP JSA NEET SUSTAINMENT OUTCOME PAYMENT,WWEG EP S WEST DEV COR DOR AND SOM WORKING LINKS,WORKING LINKS,2033660601,"20,000"
Department for Work and Pensions ,Employment Programmes,26/05/2015,WP JSA 25+ SUSTAINMENT OUTCOME PAYMENT,WWEG EP NORTH WEST MERS HAL CUMB AND LANCS INGEUS UK,INGEUS UK LTD,2033689930,"19,995"
Department for Work and Pensions ,Employment Programmes,27/05/2015,WP JSA 25+ SUSTAINMENT OUTCOME PAYMENT,WWEG EP EAST OF ENGLAND SEETEC,SEETEC BUSINESS TECHNOLOGY CENTRE LTD,2033692223,"19,995"
Department for Work and Pensions ,Employment Programmes,08/05/2015,WP JSA 25+ JOB OUTCOME PAYMENTWP JSA 25+ JOB OUTCOME PAYMENT,WWEG EP SOUTH EAST TV HANTS AND IOW MAXIMUS EMPLOYMENT,MAXIMUS EMPLOYMENT UK LTD,2033666183,"19,980"
Department for Work and Pensions ,Housing Benefits,14/05/2015,HOUSING BENEFIT ADMINISTRATION,HB ENGLAND,ADUR DISTRICT COUNCIL,2033673780,"19,960"
Department for Work and Pensions ,Employment Programmes,15/05/2015,WP JSA 18-24 JOB SUSTAINMENT OUTCOME PAYMENT,WWEG EP NORTH EAST INGEUS UK,INGEUS UK LTD,2033676395,"19,890"
Department for Work and Pensions ,Employment Programmes,20/05/2015,ESF 2011-13 SUPPORT FOR FAMILIES WITH MULTIPLE PROBLEMS JSA CUSTOMERS JOB OUTCOME PAYMENT,CPA6 GTR MAN CHES WARR EXC HAL G4S CARE AND JUSTICE SERV,G4S REGIONAL MANAGEMENT UK & I LTD,2033683847,"19,883"
Department for Work and Pensions ,Housing Benefits,14/05/2015,HOUSING BENEFIT ADMINISTRATION,HB ENGLAND,BLABY DISTRICT COUNCIL,2033673789,"19,857"
Department for Work and Pensions ,Corporate,18/05/2015,TREDDS APPS DEV MANDAYS,CHG WINTER FUEL TEMPERATURE LINK,HP ENTERPRISE SERVICES UK LTD,2033679358,"19,809"
Department for Work and Pensions ,Employment Programmes,22/05/2015,WP JSA 25+ JOB OUTCOME PAYMENTWP JSA 25+ JOB OUTCOME PAYMENT,WWEG EP EAST LONDON CAREERS DEVELOPMENT GROUP,CAREERS DEVELOPMENT GROUP,2033688081,"19,800"
Department for Work and Pensions ,Employment Programmes,14/05/2015,WP JSA 25+ SUSTAINMENT OUTCOME PAYMENT,WWEG EP NORTH EAST AVANTA ENTERPRISE,AVANTA ENTERPRISE,2033675000,"19,780"
Department for Work and Pensions ,Employment Programmes,18/05/2015,WP JSA 25+ SUSTAINMENT OUTCOME PAYMENT,WWEG EP W MIDLANDS COV WARW STAFFS AND MARCHES ESG,ESG HOLDINGS LIMITED,2033678059,"19,780"
Department for Work and Pensions ,Employment Programmes,11/05/2015,WP JSA 25+ SUSTAINMENT OUTCOME PAYMENT,WWEG EP SOUTH EAST SURR SUSSX AND KENT G4S,G4S REGIONAL MANAGEMENT UK & I LTD,2033666675,"19,780"
Department for Work and Pensions ,Employment Programmes,06/05/2015,WP JSA 25+ SUSTAINMENT OUTCOME PAYMENT,WWEG EP WEST LONDON INGEUS UK,INGEUS UK LTD,2033660840,"19,780"
Department for Work and Pensions ,Employment Programmes,13/05/2015,WP JSA 25+ SUSTAINMENT OUTCOME PAYMENT,WWEG EP SOUTH EAST TV HANTS AND IOW MAXIMUS EMPLOYMENT,MAXIMUS EMPLOYMENT UK LTD,2033672264,"19,780"
Department for Work and Pensions ,Corporate,05/05/2015,FSF - REMOVING OTHER BARRIERS TO WORK  - JSA JOBSEEKERS,OPS WDC WSD SE DEVON CORNWALL & SOMERSET DISTRICT,CAREERS SOUTH WEST LTD,2033660402,"19,754"
Department for Work and Pensions ,Employment Programmes,11/05/2015,WP JSA 18-24 JOB SUSTAINMENT OUTCOME PAYMENT,WWEG EP WEST YORKSHIRE BEST LTD,INTERSERVE WORKING FUTURES,2033666357,"19,720"
Department for Work and Pensions ,Corporate,15/05/2015,IT Owned Additions Cost,CHG D-CIRC NATIONAL CYBER SECURITY PROGRAMME,SPECIALIST COMPUTER CENTRES PLC,2033676363,"19,661"
Department for Work and Pensions ,Employment Programmes,05/05/2015,WP JSA 25+ JOB OUTCOME PAYMENTWP JSA 25+ JOB OUTCOME PAYMENT,WWEG EP SOUTH EAST TV HANTS AND IOW A4E,A4E LTD,2033660434,"19,632"
Department for Work and Pensions ,Employment Programmes,05/05/2015,COMMUNITY WORK PLACEMENTS - JOB OUTCOME FEE,WWEP EP FG CEP CWP CPA06 - NORTH WEST (1),G4S REGIONAL MANAGEMENT UK & I LTD,2033660727,"19,629"
Department for Work and Pensions ,Employment Programmes,11/05/2015,WP JSA 25+ SUSTAINMENT OUTCOME PAYMENT,WWEG EP EAST MIDLANDS A4E,A4E LTD,2033666308,"19,565"
Department for Work and Pensions ,Employment Programmes,06/05/2015,WP JSA 25+ SUSTAINMENT OUTCOME PAYMENT,WWEG EP SOUTH EAST SURR SUSSX AND KENT AVANTA ENTERPRISE,AVANTA ENTERPRISE,2033661721,"19,565"
Department for Work and Pensions ,Employment Programmes,28/05/2015,WP JSA 25+ SUSTAINMENT OUTCOME PAYMENT,WWEG EP SOUTH EAST SURR SUSSX AND KENT AVANTA ENTERPRISE,AVANTA ENTERPRISE,2033695771,"19,565"
Department for Work and Pensions ,Employment Programmes,27/05/2015,WP JSA 25+ SUSTAINMENT OUTCOME PAYMENT,WWEG EP SOUTH EAST SURR SUSSX AND KENT G4S,G4S REGIONAL MANAGEMENT UK & I LTD,2033691778,"19,565"
Department for Work and Pensions ,Employment Programmes,29/05/2015,SUSTAINMENT FEE,WWEG EP WORK CHOICE NORTH AND MID WALES SOUTH EAST WALES,WORKING LINKS,2033697390,"19,562"
Department for Work and Pensions ,Employment Programmes,15/05/2015,WP JSA 18-24 JOB SUSTAINMENT OUTCOME PAYMENT,WWEG EP EAST MIDLANDS INGEUS UK,INGEUS UK LTD,2033676395,"19,550"
Department for Work and Pensions ,Corporate,22/05/2015,STAFF TRAVEL,F&C CD STRATEGY AND BUSINESS MANAGEMENT,REDFERN TRAVEL LTD,2033687747,"19,527"
Department for Work and Pensions ,Employment Programmes,05/05/2015,WP JSA NEET SUSTAINMENT OUTCOME PAYMENT,WWEG EP EAST OF ENGLAND SEETEC,SEETEC BUSINESS TECHNOLOGY CENTRE LTD,2033659959,"19,500"
Department for Work and Pensions ,Corporate,21/05/2015,NON-TREDDS APPS DEV FIXED PRICE CONTRACTS,CIO GFTS DEV,CAPGEMINI UK PLC,2033686417,"19,494"
Department for Work and Pensions ,Employment Programmes,08/05/2015,WP JSA 18-24 JOB SUSTAINMENT OUTCOME PAYMENT,WWEG EP EAST LONDON A4E,A4E LTD,2033666061,"19,380"
Department for Work and Pensions ,Corporate,08/05/2015,TREDDS IS IT CONSULTANCY (HOSTING) NON ADVICE,CIO INFRASTRUCTURE & SERVICE REMEDIATION,HP ENTERPRISE SERVICES UK LTD,2033665584,"19,359"
Department for Work and Pensions ,Employment Programmes,18/05/2015,WP JSA 25+ SUSTAINMENT OUTCOME PAYMENT,WWEG EP NORTH EAST AVANTA ENTERPRISE,AVANTA ENTERPRISE,2033679239,"19,350"
Department for Work and Pensions ,Employment Programmes,28/05/2015,WP JSA 25+ SUSTAINMENT OUTCOME PAYMENT,WWEG EP EAST MIDLANDS INGEUS UK,INGEUS UK LTD,2033696845,"19,350"
Department for Work and Pensions ,Corporate,18/05/2015,STAFF TRAINING VAT RECOVERABLE,OPS BEN BD DIRECTORS OFFICE,CAPITA CIVIL SERVICE LEARNING,2033678207,"19,341"
Department for Work and Pensions ,Housing Benefits,14/05/2015,HOUSING BENEFIT ADMINISTRATION,HB ENGLAND,BROMSGROVE DISTRICT COUNCIL,2033674082,"19,327"
Department for Work and Pensions ,Corporate,28/05/2015,CONTRACTORS & STAFF SUBSTITUTIONS,CIO IT INFORMATION DATA SERVICES,CAPITA BUSINESS SERVICES LTD,2033694736,"19,295"
Department for Work and Pensions ,Housing Benefits,14/05/2015,HOUSING BENEFIT ADMINISTRATION,HB ENGLAND,MALVERN HILLS DISTRICT COUNCIL,2033673810,"19,239"
Department for Work and Pensions ,Employment Programmes,15/05/2015,WP JSA 18-24 JOB SUSTAINMENT OUTCOME PAYMENT,WWEG EP EAST OF ENGLAND SEETEC,SEETEC BUSINESS TECHNOLOGY CENTRE LTD,2033676444,"19,210"
Department for Work and Pensions ,Corporate,06/05/2015,POSTAGE,OPS BEN DD SFSB PERRY BAR,ROYAL MAIL GROUP PLC,2033662275,"19,190"
Department for Work and Pensions ,Employment Programmes,19/05/2015,WP JSA 25+ SUSTAINMENT OUTCOME PAYMENT,WWEG EP EAST OF ENGLAND INGEUS UK,INGEUS UK LTD,2033680444,"19,135"
Department for Work and Pensions ,Employment Programmes,13/05/2015,WP JSA 25+ SUSTAINMENT OUTCOME PAYMENT,WWEG EP WEST LONDON MAXIMUS EMPLOYMENT UK,MAXIMUS EMPLOYMENT UK LTD,2033672264,"19,135"
Department for Work and Pensions ,Employment Programmes,22/05/2015,WP JSA 25+ SUSTAINMENT OUTCOME PAYMENT,WWEG EP W MIDLANDS BIRM SOL BC NEWCASTLE COLLEGE GROUP,NEWCASTLE COLLEGE GROUP,2033687728,"19,135"
Department for Work and Pensions ,Corporate,22/05/2015,SOFTWARE LICENCES GREATER THAN ONE YEAR TERM,CIO ITLR DIGITAL TOWER DEL P,SPECIALIST COMPUTER CENTRES PLC,2033687434,"19,093"
Department for Work and Pensions ,Corporate,19/05/2015,TREDDS IS IT CONSULTANCY (HOSTING) NON ADVICE,CHG VME WFES-R,HP ENTERPRISE SERVICES UK LTD,2033682238,"19,001"
Department for Work and Pensions ,Employment Programmes,05/05/2015,WP JSA NEET SUSTAINMENT OUTCOME PAYMENT,WWEG EP WALES WORKING LINKS WALES,WORKING LINKS,2033660601,"19,000"
Department for Work and Pensions ,Corporate,18/05/2015,TREDDS APPS DEV MANDAYS,CHG ELECTRONIC SIGNING,HP ENTERPRISE SERVICES UK LTD,2033679358,"18,988"
Department for Work and Pensions ,Employment Programmes,08/05/2015,WP JSA 18-24 JOB OUTCOME PAYMENT,WWEG EP W MIDLANDS COV WARW STAFFS AND MARCHES SERCO,SERCO LTD,2033665758,"18,960"
Department for Work and Pensions ,Employment Programmes,13/05/2015,WP JSA 25+ JOB OUTCOME PAYMENTWP JSA 25+ JOB OUTCOME PAYMENT,WWEG EP SCOTLAND WORKING LINKS,WORKING LINKS,2033671882,"18,960"
Department for Work and Pensions ,Corporate,19/05/2015,TREDDS IS IT MGT CONSULTANCY NON ADVICE,CHG VIRTUAL MACHINE ENVIRONMENT REPLACEMENT,HP ENTERPRISE SERVICES UK LTD,2033682238,"18,930"
Department for Work and Pensions ,Employment Programmes,11/05/2015,WP JSA 25+ SUSTAINMENT OUTCOME PAYMENT,WWEG EP NORTH WEST GM CHES AND WARR AVANTA ENTERPRISE,AVANTA ENTERPRISE,2033666531,"18,920"
Department for Work and Pensions ,Employment Programmes,28/05/2015,WP JSA 25+ SUSTAINMENT OUTCOME PAYMENT,WWEG EP WEST LONDON INGEUS UK,INGEUS UK LTD,2033696845,"18,920"
Department for Work and Pensions ,Employment Programmes,08/05/2015,WP JSA 25+ SUSTAINMENT OUTCOME PAYMENT,WWEG EP SOUTH EAST TV HANTS AND IOW MAXIMUS EMPLOYMENT,MAXIMUS EMPLOYMENT UK LTD,2033666183,"18,920"
Department for Work and Pensions ,Employment Programmes,06/05/2015,WP JSA 25+ SUSTAINMENT OUTCOME PAYMENT,WWEG EP EAST OF ENGLAND SEETEC,SEETEC BUSINESS TECHNOLOGY CENTRE LTD,2033662382,"18,920"
Department for Work and Pensions ,Employment Programmes,20/05/2015,WP JSA 25+ SUSTAINMENT OUTCOME PAYMENT,WWEG EP WALES WORKING LINKS WALES,WORKING LINKS,2033683494,"18,920"
Department for Work and Pensions ,Corporate,18/05/2015,GENERAL OFFICE EXPENSES VAT RECOVERABLE,"FG IGS KNOWLEDGE, INFORMATION MANAGEMENT AND DEVOLUTION",SIRSIDYNIX,2033679664,"18,904"
Department for Work and Pensions ,Employment Programmes,08/05/2015,WP JSA 18-24 JOB SUSTAINMENT OUTCOME PAYMENT,WWEG EP NORTH EAST AVANTA ENTERPRISE,AVANTA ENTERPRISE,2033665692,"18,870"
Department for Work and Pensions ,Housing Benefits,14/05/2015,HOUSING BENEFIT ADMINISTRATION,HB ENGLAND,ROCHFORD DISTRICT COUNCIL,2033674031,"18,816"
Department for Work and Pensions ,Employment Programmes,08/05/2015,WP ESA (IR) WRAG 3/6 MTH MANDATORY SUSTAINMENT OUTCOME PAYMENT,WWEG EP S WEST DEV COR DOR AND SOM PROSPECTS SERVICES,PROSPECTS SERVICES LTD,2033665383,"18,800"
Department for Work and Pensions ,Employment Programmes,29/05/2015,OUTCOME FEE,WWEG EP WORK CHOICE NORTH AND MID WALES SOUTH EAST WALES,WORKING LINKS,2033697390,"18,783"
Department for Work and Pensions ,Employment Programmes,05/05/2015,WP JSA CLAIMING 22 OF 24MTHS SUSTAINMENT OUTCOME PAYMENT,WWEG EP EAST MIDLANDS A4E,A4E LTD,2033660434,"18,750"
Department for Work and Pensions ,Employment Programmes,11/05/2015,WP JSA NEET SUSTAINMENT OUTCOME PAYMENT,WWEG EP SCOTLAND WORKING LINKS,WORKING LINKS,2033666252,"18,750"
Department for Work and Pensions ,Employment Programmes,19/05/2015,WP JSA 25+ SUSTAINMENT OUTCOME PAYMENT,WWEG EP NORTH WEST MERS HAL CUMB AND LANCS A4E,A4E LTD,2033681223,"18,705"
Department for Work and Pensions ,Employment Programmes,20/05/2015,WP JSA 25+ SUSTAINMENT OUTCOME PAYMENT,WWEG EP SOUTH EAST SURR SUSSX AND KENT G4S,G4S REGIONAL MANAGEMENT UK & I LTD,2033683847,"18,705"
Department for Work and Pensions ,Employment Programmes,29/05/2015,WP JSA 25+ SUSTAINMENT OUTCOME PAYMENT,WWEG EP SCOTLAND INGEUS UK,INGEUS UK LTD,2033697557,"18,705"
Department for Work and Pensions ,Employment Programmes,22/05/2015,WP JSA 18-24 JOB SUSTAINMENT OUTCOME PAYMENT,WWEG EP NORTH WEST MERS HAL CUMB AND LANCS INGEUS UK,INGEUS UK LTD,2033687121,"18,700"
Department for Work and Pensions ,Employment Programmes,05/05/2015,WP JSA 18-24 JOB SUSTAINMENT OUTCOME PAYMENT,WWEG EP EAST LONDON SEETEC,SEETEC BUSINESS TECHNOLOGY CENTRE LTD,2033659959,"18,700"
Department for Work and Pensions ,Employment Programmes,20/05/2015,WP JSA 25+ JOB OUTCOME PAYMENTWP JSA 25+ JOB OUTCOME PAYMENT,WWEG EP WEST YORKSHIRE INGEUS UK,INGEUS UK LTD,2033683628,"18,648"
Department for Work and Pensions ,Employment Programmes,15/05/2015,WP JSA 18-24 JOB SUSTAINMENT OUTCOME PAYMENT,WWEG EP EAST MIDLANDS A4E,A4E LTD,2033676511,"18,530"
Department for Work and Pensions ,Employment Programmes,05/05/2015,WP JSA 18-24 JOB SUSTAINMENT OUTCOME PAYMENT,WWEG EP W MIDLANDS BIRM SOL BC NEWCASTLE COLLEGE GROUP,NEWCASTLE COLLEGE GROUP,2033660135,"18,530"
Department for Work and Pensions ,Employment Programmes,05/05/2015,WP JSA 18-24 JOB SUSTAINMENT OUTCOME PAYMENT,WWEG EP W MIDLANDS BIRM SOL BC PERTEMPS,PERTEMPS,2033660614,"18,530"
Department for Work and Pensions ,Employment Programmes,21/05/2015,WP JSA 25+ SUSTAINMENT OUTCOME PAYMENT,WWEG EP NORTH WEST MERS HAL CUMB AND LANCS A4E,A4E LTD,2033686803,"18,490"
Department for Work and Pensions ,Employment Programmes,08/05/2015,WP JSA 25+ SUSTAINMENT OUTCOME PAYMENT,WWEG EP NORTH WEST GM CHES AND WARR SEETEC,SEETEC BUSINESS TECHNOLOGY CENTRE LTD,2033665666,"18,490"
Department for Work and Pensions ,Corporate,06/05/2015,POSTAGE,OPS OPE NINO GLASGOW NDC,ROYAL MAIL GROUP PLC,2033662275,"18,374"
Department for Work and Pensions ,Employment Programmes,18/05/2015,WP JSA 18-24 JOB SUSTAINMENT OUTCOME PAYMENT,WWEG EP SCOTLAND WORKING LINKS,WORKING LINKS,2033678926,"18,360"
Department for Work and Pensions ,Employment Programmes,05/05/2015,WP ESA (IR) WRAG 3/6 MTH MANDATORY SUSTAINMENT OUTCOME PAYMENT,WWEG EP EAST MIDLANDS A4E,A4E LTD,2033660434,"18,330"
Department for Work and Pensions ,Employment Programmes,11/05/2015,WP JSA 25+ SUSTAINMENT OUTCOME PAYMENT,WWEG EP EAST LONDON CAREERS DEVELOPMENT GROUP,CAREERS DEVELOPMENT GROUP,2033666423,"18,275"
Department for Work and Pensions ,Employment Programmes,28/05/2015,WP JSA 25+ SUSTAINMENT OUTCOME PAYMENT,WWEG EP SOUTH EAST SURR SUSSX AND KENT G4S,G4S REGIONAL MANAGEMENT UK & I LTD,2033695785,"18,275"
Department for Work and Pensions ,Employment Programmes,06/05/2015,WP JSA 25+ SUSTAINMENT OUTCOME PAYMENT,WWEG EP NORTH EAST INGEUS UK,INGEUS UK LTD,2033660840,"18,275"
Department for Work and Pensions ,Employment Programmes,27/05/2015,WP JSA 25+ SUSTAINMENT OUTCOME PAYMENT,WWEG EP NORTH WEST MERS HAL CUMB AND LANCS INGEUS UK,INGEUS UK LTD,2033693183,"18,275"
Department for Work and Pensions ,Employment Programmes,05/05/2015,SERVICE FEE,WWEG EP CORE MWA CPA LONDON,SEETEC BUSINESS TECHNOLOGY CENTRE LTD,2033659959,"18,265"
Department for Work and Pensions ,Corporate,06/05/2015,CONTRACTORS & STAFF SUBSTITUTIONS,F&C CD SENIOR MANAGEMENT,CAPITA BUSINESS SERVICES LTD,2033661197,"18,260"
Department for Work and Pensions ,Employment Programmes,08/05/2015,WP JSA NEET SUSTAINMENT OUTCOME PAYMENT,WWEG EP NORTH WEST MERS HAL CUMB AND LANCS A4E,A4E LTD,2033666061,"18,250"
Department for Work and Pensions ,Employment Programmes,27/05/2015,WP JSA NEET SUSTAINMENT OUTCOME PAYMENT,WWEG EP SCOTLAND WORKING LINKS,WORKING LINKS,2033692920,"18,250"
Department for Work and Pensions ,Employment Programmes,26/05/2015,WP JSA 25+ JOB OUTCOME PAYMENTWP JSA 25+ JOB OUTCOME PAYMENT,WWEG EP NORTH WEST GM CHES AND WARR G4S,G4S REGIONAL MANAGEMENT UK & I LTD,2033690126,"18,216"
Department for Work and Pensions ,Corporate,19/05/2015,RENTAL UNDER OPERATING LEASES - VEHICLES RECURRENT EXPENDITURE,OPS OPE FES CCIIS INVESTIGATIONS - CENTRAL AND WALES,LEASEDRIVE LTD,2033681058,"18,202"
Department for Work and Pensions ,Corporate,29/05/2015,PRIME FACILITY PRICE,FG CD STORNOWAY,TELEREAL TRILLIUM,2033698847,"18,189"
Department for Work and Pensions ,Employment Programmes,13/05/2015,WP JSA 25+ JOB OUTCOME PAYMENTWP JSA 25+ JOB OUTCOME PAYMENT,WWEG EP SOUTH EAST SURR SUSSX AND KENT G4S,G4S REGIONAL MANAGEMENT UK & I LTD,2033671211,"18,144"
Department for Work and Pensions ,Employment Programmes,08/05/2015,WP JSA 25+ JOB OUTCOME PAYMENTWP JSA 25+ JOB OUTCOME PAYMENT,WWEG EP WEST LONDON REED IN PARTNERSHIP,REED IN PARTNERSHIP LTD,2033665650,"18,120"
Department for Work and Pensions ,Employment Programmes,26/05/2015,WP JSA 25+ SUSTAINMENT OUTCOME PAYMENT,WWEG EP EAST LONDON A4E,A4E LTD,2033690053,"18,060"
Department for Work and Pensions ,Employment Programmes,29/05/2015,WP JSA 25+ SUSTAINMENT OUTCOME PAYMENT,WWEG EP SOUTH EAST SURR SUSSX AND KENT AVANTA ENTERPRISE,AVANTA ENTERPRISE,2033699253,"18,060"
Department for Work and Pensions ,Employment Programmes,14/05/2015,WP JSA 25+ SUSTAINMENT OUTCOME PAYMENT,WWEG EP SCOTLAND INGEUS UK,INGEUS UK LTD,2033674438,"18,060"
Department for Work and Pensions ,Employment Programmes,26/05/2015,WP JSA 25+ SUSTAINMENT OUTCOME PAYMENT,WWEG EP WEST LONDON INGEUS UK,INGEUS UK LTD,2033689930,"18,060"
